Workbook

Sheet Cover
A1: =RIGHT(CELL("filename", $A$1), LEN(CELL("filename", $A$1)) - SEARCH("]", CELL("filename", $A$1))) -> 
B3: Eels fish entrainment screens
B5: Model code: | C5: PR24CA48
B6: Version number: | C6: 2
B7: File name: | C7: PR24CA48 - W - Eels fish entrainment screens
B8: Date: | C8: December 2024
B10: For enquiries please contact: | C10: PR24@ofwat.gov.uk
B23: Contents:
B25: Tab name | C25: Description
B26: Water_totex | C26: Input data - PR24 BP Net totex - Total inc. accelerated & transition costs
B27: F_Inputs BP | C27: Input data - EA/NRW environmental programme (WINEP/NEP) - Eels/fish entrainment screens; (WINEP/NEP) water totex - Total
B28: Inputs_Queries | C28: Input data - Number of actions per company
B29: F_Inputs SDEff | C29: Input data - Shallow dive company efficiency factor - enhancement - water
B30: Consolidated Input | C30: Consolidated input data from business plans tables
B31: Consolidated Input Override | C31: Overrides for "Consolidated Input"
B32: Final Input | C32: Input data from "Consolidated Input" plus any data overrides
B33: Unit Cost per Action | C33: Calculates unit cost per WINEP/NEP action
B34: Materiality & shallow dive | C34: Sets out materiality and shallow dives outputs
B35: Allowance | C35: Summary of our assessed allowances per company before other adjustments (e.g. frontier shift).
B36: Outputs to aggregator | C36: Summary of submitted and assessed costs profiled over 2023-30 period (including transitional and accelerated process expenditure).
B37: F_Outputs | C37: Outputs for aggregator
B38: Post Adj & FS Allowances | C38: Summary of imported, post-adjusted allowances per company per enhancement line per year.
B42: Error log:
B44: Company | C44: Description of change to be made | D44: Sheet(s) in current model

Sheet Flow chart
A1: =RIGHT(CELL("filename", A1), LEN(CELL("filename", A1)) - SEARCH("]", CELL("filename", A1))) -> 
A3: Conceptual model
A49: End of sheet

Sheet Inputs >>

Sheet Water_totex
A1: =RIGHT(CELL("filename", A1), LEN(CELL("filename", A1)) - SEARCH("]", CELL("filename", A1))) -> 
C2: PR24 WATER TOTEX FD V2 | E2: Run on 03 Sep 2024 16:48
A4: Company Acronym | B4: Item Code | C4: Item Description | D4: Item Unit | E4: Item Table Suite | F4: Constant
A5: Company Acronym | B5: Item Code | C5: Item Description | D5: Item Unit | E5: Item Table Suite | F5: Price Review 2024
A6: Company Acronym | B6: Item Code | C6: Item Description | D6: Item Unit | E6: Item Table Suite | F6: Run 11 - PR24 FD Data
A7: Company Acronym | B7: Item Code | C7: Item Description | D7: Item Unit | E7: Item Table Suite | F7: Latest
A8: ANH | B8: PR24_NETTOTEX_WATER | C8: PR24 BP Net totex - Total inc. accelerated & transition costs | D8: £m | E8: Price Review 2024 | F8: 4187.353839
A9: WSH | B9: PR24_NETTOTEX_WATER | C9: PR24 BP Net totex - Total inc. accelerated & transition costs | D9: £m | E9: Price Review 2024 | F9: 2365.636
A10: HDD | B10: PR24_NETTOTEX_WATER | C10: PR24 BP Net totex - Total inc. accelerated & transition costs | D10: £m | E10: Price Review 2024 | F10: 202.9929059
A11: NES | B11: PR24_NETTOTEX_WATER | C11: PR24 BP Net totex - Total inc. accelerated & transition costs | D11: £m | E11: Price Review 2024 | F11: 3081.858466
A12: SVE | B12: PR24_NETTOTEX_WATER | C12: PR24 BP Net totex - Total inc. accelerated & transition costs | D12: £m | E12: Price Review 2024 | F12: 5623.042444
A13: SWB | B13: PR24_NETTOTEX_WATER | C13: PR24 BP Net totex - Total inc. accelerated & transition costs | D13: £m | E13: Price Review 2024 | F13: 1570.211528
A14: SRN | B14: PR24_NETTOTEX_WATER | C14: PR24 BP Net totex - Total inc. accelerated & transition costs | D14: £m | E14: Price Review 2024 | F14: 3614.763
A15: TMS | B15: PR24_NETTOTEX_WATER | C15: PR24 BP Net totex - Total inc. accelerated & transition costs | D15: £m | E15: Price Review 2024 | F15: 10162.16273
A16: NWT | B16: PR24_NETTOTEX_WATER | C16: PR24 BP Net totex - Total inc. accelerated & transition costs | D16: £m | E16: Price Review 2024 | F16: 4204.144554
A17: WSX | B17: PR24_NETTOTEX_WATER | C17: PR24 BP Net totex - Total inc. accelerated & transition costs | D17: £m | E17: Price Review 2024 | F17: 1136.356395
A18: YKY | B18: PR24_NETTOTEX_WATER | C18: PR24 BP Net totex - Total inc. accelerated & transition costs | D18: £m | E18: Price Review 2024 | F18: 3120.05052
A19: AFW | B19: PR24_NETTOTEX_WATER | C19: PR24 BP Net totex - Total inc. accelerated & transition costs | D19: £m | E19: Price Review 2024 | F19: 2157.018576
A20: BRL | B20: PR24_NETTOTEX_WATER | C20: PR24 BP Net totex - Total inc. accelerated & transition costs | D20: £m | E20: Price Review 2024 | F20: 688.9547248
A21: PRT | B21: PR24_NETTOTEX_WATER | C21: PR24 BP Net totex - Total inc. accelerated & transition costs | D21: £m | E21: Price Review 2024 | F21: 341.6692826
A22: SEW | B22: PR24_NETTOTEX_WATER | C22: PR24 BP Net totex - Total inc. accelerated & transition costs | D22: £m | E22: Price Review 2024 | F22: 1862.837225
A23: SSC | B23: PR24_NETTOTEX_WATER | C23: PR24 BP Net totex - Total inc. accelerated & transition costs | D23: £m | E23: Price Review 2024 | F23: 737.9594339
A24: SES | B24: PR24_NETTOTEX_WATER | C24: PR24 BP Net totex - Total inc. accelerated & transition costs | D24: £m | E24: Price Review 2024 | F24: 377.6353912

Sheet F_Inputs BP
A1: =RIGHT(CELL("filename", A1), LEN(CELL("filename", A1)) - SEARCH("]", CELL("filename", A1))) -> 
C2: Eel screens v2 FD | E2: Run on 04 Sep 2024 9:05
A3: Acronym | B3: Reference | C3: Item description | D3: Unit | E3: Model | F3: 2023-24 | G3: 2024-25 | H3: 2025-26 | I3: 2026-27 | J3: 2027-28 | K3: 2028-29 | L3: 2029-30
F5: Price Review 2024 | G5: Price Review 2024 | H5: Price Review 2024 | I5: Price Review 2024 | J5: Price Review 2024 | K5: Price Review 2024 | L5: Price Review 2024
F6: Run 11 - PR24 FD Data | G6: Run 11 - PR24 FD Data | H6: Run 11 - PR24 FD Data | I6: Run 11 - PR24 FD Data | J6: Run 11 - PR24 FD Data | K6: Run 11 - PR24 FD Data | L6: Run 11 - PR24 FD Data
F7: Latest | G7: Latest | H7: Latest | I7: Latest | J7: Latest | K7: Latest | L7: Latest
A8: ANH | B8: CW3_006TOT_PR24 | C8: EA/NRW environmental programme (WINEP/NEP) - Eels/fish entrainment screens; (WINEP/NEP) water totex - Total | D8: £m | E8: Price Review 2024 | H8: 0 | I8: 0 | J8: 0 | K8: 0 | L8: 0
A9: ANH | B9: CW12_006TOT_PR24 | C9: EA/NRW environmental programme (WINEP/NEP) - Eels/fish entrainment screens; (WINEP/NEP) water totex - Total | D9: £m | E9: Price Review 2024 | F9: 0 | G9: 0
A10: ANH | B10: CW17_006TOT_PR24 | C10: EA/NRW environmental programme (WINEP/NEP) - Eels/fish entrainment screens; (WINEP/NEP) water totex - Total | D10: £m | E10: Price Review 2024 | F10: 0 | G10: 0 | H10: 0 | I10: 0 | J10: 0 | K10: 0 | L10: 0
A11: WSH | B11: CW3_006TOT_PR24 | C11: EA/NRW environmental programme (WINEP/NEP) - Eels/fish entrainment screens; (WINEP/NEP) water totex - Total | D11: £m | E11: Price Review 2024 | H11: 1.704 | I11: 1.676 | J11: 0.76 | K11: 0.765 | L11: 0.775
A12: WSH | B12: CW12_006TOT_PR24 | C12: EA/NRW environmental programme (WINEP/NEP) - Eels/fish entrainment screens; (WINEP/NEP) water totex - Total | D12: £m | E12: Price Review 2024 | F12: 0 | G12: 0
A13: WSH | B13: CW17_006TOT_PR24 | C13: EA/NRW environmental programme (WINEP/NEP) - Eels/fish entrainment screens; (WINEP/NEP) water totex - Total | D13: £m | E13: Price Review 2024 | F13: 0 | G13: 0 | H13: 0 | I13: 0 | J13: 0 | K13: 0 | L13: 0
A14: HDD | B14: CW3_006TOT_PR24 | C14: EA/NRW environmental programme (WINEP/NEP) - Eels/fish entrainment screens; (WINEP/NEP) water totex - Total | D14: £m | E14: Price Review 2024 | H14: 0 | I14: 0 | J14: 0 | K14: 0 | L14: 0
A15: HDD | B15: CW12_006TOT_PR24 | C15: EA/NRW environmental programme (WINEP/NEP) - Eels/fish entrainment screens; (WINEP/NEP) water totex - Total | D15: £m | E15: Price Review 2024 | F15: 0 | G15: 0
A16: HDD | B16: CW17_006TOT_PR24 | C16: EA/NRW environmental programme (WINEP/NEP) - Eels/fish entrainment screens; (WINEP/NEP) water totex - Total | D16: £m | E16: Price Review 2024 | F16: 0 | G16: 0 | H16: 0 | I16: 0 | J16: 0 | K16: 0 | L16: 0
A17: NES | B17: CW3_006TOT_PR24 | C17: EA/NRW environmental programme (WINEP/NEP) - Eels/fish entrainment screens; (WINEP/NEP) water totex - Total | D17: £m | E17: Price Review 2024 | H17: 0 | I17: 0 | J17: 0 | K17: 0 | L17: 0
A18: NES | B18: CW12_006TOT_PR24 | C18: EA/NRW environmental programme (WINEP/NEP) - Eels/fish entrainment screens; (WINEP/NEP) water totex - Total | D18: £m | E18: Price Review 2024 | F18: 0 | G18: 0
A19: NES | B19: CW17_006TOT_PR24 | C19: EA/NRW environmental programme (WINEP/NEP) - Eels/fish entrainment screens; (WINEP/NEP) water totex - Total | D19: £m | E19: Price Review 2024 | F19: 0 | G19: 0 | H19: 0 | I19: 0 | J19: 0 | K19: 0 | L19: 0
A20: SVE | B20: CW3_006TOT_PR24 | C20: EA/NRW environmental programme (WINEP/NEP) - Eels/fish entrainment screens; (WINEP/NEP) water totex - Total | D20: £m | E20: Price Review 2024 | H20: 0 | I20: 0 | J20: 0 | K20: 0 | L20: 0
A21: SVE | B21: CW12_006TOT_PR24 | C21: EA/NRW environmental programme (WINEP/NEP) - Eels/fish entrainment screens; (WINEP/NEP) water totex - Total | D21: £m | E21: Price Review 2024 | F21: 0 | G21: 0
A22: SVE | B22: CW17_006TOT_PR24 | C22: EA/NRW environmental programme (WINEP/NEP) - Eels/fish entrainment screens; (WINEP/NEP) water totex - Total | D22: £m | E22: Price Review 2024 | F22: 0 | G22: 0 | H22: 0 | I22: 0 | J22: 0 | K22: 0 | L22: 0
A23: SWB | B23: CW3_006TOT_PR24 | C23: EA/NRW environmental programme (WINEP/NEP) - Eels/fish entrainment screens; (WINEP/NEP) water totex - Total | D23: £m | E23: Price Review 2024 | H23: 1.87025 | I23: 1.87025 | J23: 1.87025 | K23: 1.87025 | L23: 1.87025
A24: SWB | B24: CW12_006TOT_PR24 | C24: EA/NRW environmental programme (WINEP/NEP) - Eels/fish entrainment screens; (WINEP/NEP) water totex - Total | D24: £m | E24: Price Review 2024 | F24: 0 | G24: 0
A25: SWB | B25: CW17_006TOT_PR24 | C25: EA/NRW environmental programme (WINEP/NEP) - Eels/fish entrainment screens; (WINEP/NEP) water totex - Total | D25: £m | E25: Price Review 2024 | F25: 0 | G25: 0 | H25: 0 | I25: 0 | J25: 0 | K25: 0 | L25: 0
A26: SRN | B26: CW3_006TOT_PR24 | C26: EA/NRW environmental programme (WINEP/NEP) - Eels/fish entrainment screens; (WINEP/NEP) water totex - Total | D26: £m | E26: Price Review 2024 | H26: 0 | I26: 0 | J26: 0 | K26: 0 | L26: 0
A27: SRN | B27: CW12_006TOT_PR24 | C27: EA/NRW environmental programme (WINEP/NEP) - Eels/fish entrainment screens; (WINEP/NEP) water totex - Total | D27: £m | E27: Price Review 2024 | F27: 0 | G27: 0
A28: SRN | B28: CW17_006TOT_PR24 | C28: EA/NRW environmental programme (WINEP/NEP) - Eels/fish entrainment screens; (WINEP/NEP) water totex - Total | D28: £m | E28: Price Review 2024 | F28: 0 | G28: 0 | H28: 0 | I28: 0 | J28: 0 | K28: 0 | L28: 0
A29: TMS | B29: CW3_006TOT_PR24 | C29: EA/NRW environmental programme (WINEP/NEP) - Eels/fish entrainment screens; (WINEP/NEP) water totex - Total | D29: £m | E29: Price Review 2024 | H29: 0.114 | I29: 0.541 | J29: 0.519 | K29: 0.521 | L29: 0
A30: TMS | B30: CW12_006TOT_PR24 | C30: EA/NRW environmental programme (WINEP/NEP) - Eels/fish entrainment screens; (WINEP/NEP) water totex - Total | D30: £m | E30: Price Review 2024 | F30: 0 | G30: 0
A31: TMS | B31: CW17_006TOT_PR24 | C31: EA/NRW environmental programme (WINEP/NEP) - Eels/fish entrainment screens; (WINEP/NEP) water totex - Total | D31: £m | E31: Price Review 2024 | F31: 0 | G31: 0 | H31: 0 | I31: 0 | J31: 0 | K31: 0 | L31: 0
A32: NWT | B32: CW3_006TOT_PR24 | C32: EA/NRW environmental programme (WINEP/NEP) - Eels/fish entrainment screens; (WINEP/NEP) water totex - Total | D32: £m | E32: Price Review 2024 | H32: 0.2639852097 | I32: 1.501720622 | J32: 0.5716014928 | K32: 0.04646325433 | L32: 0.1518328585
A33: NWT | B33: CW12_006TOT_PR24 | C33: EA/NRW environmental programme (WINEP/NEP) - Eels/fish entrainment screens; (WINEP/NEP) water totex - Total | D33: £m | E33: Price Review 2024 | F33: 0 | G33: 0.0707137191
A34: NWT | B34: CW17_006TOT_PR24 | C34: EA/NRW environmental programme (WINEP/NEP) - Eels/fish entrainment screens; (WINEP/NEP) water totex - Total | D34: £m | E34: Price Review 2024 | F34: 0 | G34: 0 | H34: 0 | I34: 0 | J34: 0 | K34: 0 | L34: 0
A35: WSX | B35: CW3_006TOT_PR24 | C35: EA/NRW environmental programme (WINEP/NEP) - Eels/fish entrainment screens; (WINEP/NEP) water totex - Total | D35: £m | E35: Price Review 2024 | H35: 0 | I35: 0 | J35: 0 | K35: 0 | L35: 0
A36: WSX | B36: CW12_006TOT_PR24 | C36: EA/NRW environmental programme (WINEP/NEP) - Eels/fish entrainment screens; (WINEP/NEP) water totex - Total | D36: £m | E36: Price Review 2024 | F36: 0 | G36: 0
A37: WSX | B37: CW17_006TOT_PR24 | C37: EA/NRW environmental programme (WINEP/NEP) - Eels/fish entrainment screens; (WINEP/NEP) water totex - Total | D37: £m | E37: Price Review 2024 | F37: 0 | G37: 0 | H37: 0 | I37: 0 | J37: 0 | K37: 0 | L37: 0
A38: YKY | B38: CW3_006TOT_PR24 | C38: EA/NRW environmental programme (WINEP/NEP) - Eels/fish entrainment screens; (WINEP/NEP) water totex - Total | D38: £m | E38: Price Review 2024 | H38: 1.0055168 | I38: 1.5313664 | J38: 1.6405248 | K38: 1.3361408 | L38: 0.7441664
A39: YKY | B39: CW12_006TOT_PR24 | C39: EA/NRW environmental programme (WINEP/NEP) - Eels/fish entrainment screens; (WINEP/NEP) water totex - Total | D39: £m | E39: Price Review 2024 | F39: 0 | G39: 0
A40: YKY | B40: CW17_006TOT_PR24 | C40: EA/NRW environmental programme (WINEP/NEP) - Eels/fish entrainment screens; (WINEP/NEP) water totex - Total | D40: £m | E40: Price Review 2024 | F40: 0 | G40: 0 | H40: 0 | I40: 0 | J40: 0 | K40: 0 | L40: 0
A41: AFW | B41: CW3_006TOT_PR24 | C41: EA/NRW environmental programme (WINEP/NEP) - Eels/fish entrainment screens; (WINEP/NEP) water totex - Total | D41: £m | E41: Price Review 2024 | H41: 0 | I41: 0 | J41: 0 | K41: 0 | L41: 0
A42: AFW | B42: CW12_006TOT_PR24 | C42: EA/NRW environmental programme (WINEP/NEP) - Eels/fish entrainment screens; (WINEP/NEP) water totex - Total | D42: £m | E42: Price Review 2024 | F42: 0 | G42: 0
A43: AFW | B43: CW17_006TOT_PR24 | C43: EA/NRW environmental programme (WINEP/NEP) - Eels/fish entrainment screens; (WINEP/NEP) water totex - Total | D43: £m | E43: Price Review 2024 | F43: 0 | G43: 0 | H43: 0 | I43: 0 | J43: 0 | K43: 0 | L43: 0
A44: BRL | B44: CW3_006TOT_PR24 | C44: EA/NRW environmental programme (WINEP/NEP) - Eels/fish entrainment screens; (WINEP/NEP) water totex - Total | D44: £m | E44: Price Review 2024 | H44: 0 | I44: 0 | J44: 0 | K44: 0 | L44: 0
A45: BRL | B45: CW12_006TOT_PR24 | C45: EA/NRW environmental programme (WINEP/NEP) - Eels/fish entrainment screens; (WINEP/NEP) water totex - Total | D45: £m | E45: Price Review 2024 | F45: 0 | G45: 0
A46: BRL | B46: CW17_006TOT_PR24 | C46: EA/NRW environmental programme (WINEP/NEP) - Eels/fish entrainment screens; (WINEP/NEP) water totex - Total | D46: £m | E46: Price Review 2024 | F46: 0 | G46: 0 | H46: 0 | I46: 0 | J46: 0 | K46: 0 | L46: 0
A47: PRT | B47: CW3_006TOT_PR24 | C47: EA/NRW environmental programme (WINEP/NEP) - Eels/fish entrainment screens; (WINEP/NEP) water totex - Total | D47: £m | E47: Price Review 2024 | H47: 0 | I47: 0 | J47: 0 | K47: 0 | L47: 0
A48: PRT | B48: CW12_006TOT_PR24 | C48: EA/NRW environmental programme (WINEP/NEP) - Eels/fish entrainment screens; (WINEP/NEP) water totex - Total | D48: £m | E48: Price Review 2024 | F48: 0 | G48: 0
A49: PRT | B49: CW17_006TOT_PR24 | C49: EA/NRW environmental programme (WINEP/NEP) - Eels/fish entrainment screens; (WINEP/NEP) water totex - Total | D49: £m | E49: Price Review 2024 | F49: 0 | G49: 0 | H49: 0 | I49: 0 | J49: 0 | K49: 0 | L49: 0
A50: SEW | B50: CW3_006TOT_PR24 | C50: EA/NRW environmental programme (WINEP/NEP) - Eels/fish entrainment screens; (WINEP/NEP) water totex - Total | D50: £m | E50: Price Review 2024 | H50: 0 | I50: 0 | J50: 0 | K50: 0 | L50: 0
A51: SEW | B51: CW12_006TOT_PR24 | C51: EA/NRW environmental programme (WINEP/NEP) - Eels/fish entrainment screens; (WINEP/NEP) water totex - Total | D51: £m | E51: Price Review 2024 | F51: 0 | G51: 0
A52: SEW | B52: CW17_006TOT_PR24 | C52: EA/NRW environmental programme (WINEP/NEP) - Eels/fish entrainment screens; (WINEP/NEP) water totex - Total | D52: £m | E52: Price Review 2024 | F52: 0 | G52: 0 | H52: 0 | I52: 0 | J52: 0 | K52: 0 | L52: 0
A53: SSC | B53: CW3_006TOT_PR24 | C53: EA/NRW environmental programme (WINEP/NEP) - Eels/fish entrainment screens; (WINEP/NEP) water totex - Total | D53: £m | E53: Price Review 2024 | H53: 0.42 | I53: 0.42 | J53: 0.42 | K53: 0.42 | L53: 0.42
A54: SSC | B54: CW12_006TOT_PR24 | C54: EA/NRW environmental programme (WINEP/NEP) - Eels/fish entrainment screens; (WINEP/NEP) water totex - Total | D54: £m | E54: Price Review 2024 | F54: 0 | G54: 0
A55: SSC | B55: CW17_006TOT_PR24 | C55: EA/NRW environmental programme (WINEP/NEP) - Eels/fish entrainment screens; (WINEP/NEP) water totex - Total | D55: £m | E55: Price Review 2024 | F55: 0 | G55: 0 | H55: 0 | I55: 0 | J55: 0 | K55: 0 | L55: 0
A56: SES | B56: CW3_006TOT_PR24 | C56: EA/NRW environmental programme (WINEP/NEP) - Eels/fish entrainment screens; (WINEP/NEP) water totex - Total | D56: £m | E56: Price Review 2024 | H56: 0.25 | I56: 0.751 | J56: 1 | K56: 0 | L56: 0
A57: SES | B57: CW12_006TOT_PR24 | C57: EA/NRW environmental programme (WINEP/NEP) - Eels/fish entrainment screens; (WINEP/NEP) water totex - Total | D57: £m | E57: Price Review 2024 | F57: 0 | G57: 0
A58: SES | B58: CW17_006TOT_PR24 | C58: EA/NRW environmental programme (WINEP/NEP) - Eels/fish entrainment screens; (WINEP/NEP) water totex - Total | D58: £m | E58: Price Review 2024 | F58: 0 | G58: 0 | H58: 0 | I58: 0 | J58: 0 | K58: 0 | L58: 0

Sheet Inputs_Queries
A1: =RIGHT(CELL("filename", $A$1), LEN(CELL("filename", $A$1)) - SEARCH("]", CELL("filename", $A$1))) -> 
A4: Company | B4: Number of Actions | C4: Query Reference(s)
A5: ANH
A6: WSH | B6: 3 | C6: OFW-OBQ-WSH-070
A7: HDD
A8: NES
A9: SVE | B9: 0 | C9: OFW-OBQ-SVE-100
A10: SWB | B10: 7 | C10: OFW-OBQ-SBB-132
A11: SRN
A12: TMS | B12: 3
A13: NWT | B13: 3 | C13: OFW-OBQ-UUW-117
A14: WSX
A15: YKY | B15: 2 | C15: OFW-OBQ-YKY-085
A16: AFW
A17: BRL
A18: PRT
A19: SEW
A20: SSC | B20: 1 | C20: OFW-OBQ-SSC-047
A21: SES | B21: 1

Sheet F_Inputs SDEff
A1: =RIGHT(CELL("filename", A1), LEN(CELL("filename", A1)) - SEARCH("]", CELL("filename", A1))) -> 
C2: Shallow dive efficiency - Run 11 | E2: Run on 14 Nov 2024 8:13
A4: Company Acronym | B4: Item Code | C4: Item Description | D4: Item Unit | E4: Item Table Suite | F4: 2025-26 | G4: 2026-27 | H4: 2027-28 | I4: 2028-29 | J4: 2029-30
A5: Company Acronym | B5: Item Code | C5: Item Description | D5: Item Unit | E5: Item Table Suite | F5: Price Review 2024 | G5: Price Review 2024 | H5: Price Review 2024 | I5: Price Review 2024 | J5: Price Review 2024
A6: Company Acronym | B6: Item Code | C6: Item Description | D6: Item Unit | E6: Item Table Suite | F6: Run 11 - PR24 FD Data | G6: Run 11 - PR24 FD Data | H6: Run 11 - PR24 FD Data | I6: Run 11 - PR24 FD Data | J6: Run 11 - PR24 FD Data
A7: Company Acronym | B7: Item Code | C7: Item Description | D7: Item Unit | E7: Item Table Suite | F7: Latest | G7: Latest | H7: Latest | I7: Latest | J7: Latest
A8: ANH | B8: C_PR24ENHW_SHALLOW_EFF | C8: Shallow dive company efficiency factor - enhancement - water | D8: % | E8: Price Review 2024 | F8: 0.02 | G8: 0.02 | H8: 0.02 | I8: 0.02 | J8: 0.02 | K8: =IF(AVERAGE(F8:J8) > 0.1, 0.1, AVERAGE(F8:J8)) -> 0.02
A9: WSH | B9: C_PR24ENHW_SHALLOW_EFF | C9: Shallow dive company efficiency factor - enhancement - water | D9: % | E9: Price Review 2024 | F9: 0.01 | G9: 0.01 | H9: 0.01 | I9: 0.01 | J9: 0.01 | K9: =IF(AVERAGE(F9:J9) > 0.1, 0.1, AVERAGE(F9:J9)) -> 0.01
A10: HDD | B10: C_PR24ENHW_SHALLOW_EFF | C10: Shallow dive company efficiency factor - enhancement - water | D10: % | E10: Price Review 2024 | F10: 0 | G10: 0 | H10: 0 | I10: 0 | J10: 0 | K10: 0
A11: NES | B11: C_PR24ENHW_SHALLOW_EFF | C11: Shallow dive company efficiency factor - enhancement - water | D11: % | E11: Price Review 2024 | F11: 0 | G11: 0 | H11: 0 | I11: 0 | J11: 0 | K11: 0
A12: SVE | B12: C_PR24ENHW_SHALLOW_EFF | C12: Shallow dive company efficiency factor - enhancement - water | D12: % | E12: Price Review 2024 | F12: 0 | G12: 0 | H12: 0 | I12: 0 | J12: 0 | K12: 0
A13: SWB | B13: C_PR24ENHW_SHALLOW_EFF | C13: Shallow dive company efficiency factor - enhancement - water | D13: % | E13: Price Review 2024 | F13: 0.1 | G13: 0.1 | H13: 0.1 | I13: 0.1 | J13: 0.1 | K13: 0.1
A14: SRN | B14: C_PR24ENHW_SHALLOW_EFF | C14: Shallow dive company efficiency factor - enhancement - water | D14: % | E14: Price Review 2024 | F14: 0.1 | G14: 0.1 | H14: 0.1 | I14: 0.1 | J14: 0.1 | K14: 0.1
A15: TMS | B15: C_PR24ENHW_SHALLOW_EFF | C15: Shallow dive company efficiency factor - enhancement - water | D15: % | E15: Price Review 2024 | F15: 0 | G15: 0 | H15: 0 | I15: 0 | J15: 0 | K15: 0
A16: NWT | B16: C_PR24ENHW_SHALLOW_EFF | C16: Shallow dive company efficiency factor - enhancement - water | D16: % | E16: Price Review 2024 | F16: 0 | G16: 0 | H16: 0 | I16: 0 | J16: 0 | K16: 0
A17: WSX | B17: C_PR24ENHW_SHALLOW_EFF | C17: Shallow dive company efficiency factor - enhancement - water | D17: % | E17: Price Review 2024 | F17: 0.07 | G17: 0.07 | H17: 0.07 | I17: 0.07 | J17: 0.07 | K17: 0.07
A18: YKY | B18: C_PR24ENHW_SHALLOW_EFF | C18: Shallow dive company efficiency factor - enhancement - water | D18: % | E18: Price Review 2024 | F18: 0 | G18: 0 | H18: 0 | I18: 0 | J18: 0 | K18: 0
A19: AFW | B19: C_PR24ENHW_SHALLOW_EFF | C19: Shallow dive company efficiency factor - enhancement - water | D19: % | E19: Price Review 2024 | F19: 0.03 | G19: 0.03 | H19: 0.03 | I19: 0.03 | J19: 0.03 | K19: 0.03
A20: BRL | B20: C_PR24ENHW_SHALLOW_EFF | C20: Shallow dive company efficiency factor - enhancement - water | D20: % | E20: Price Review 2024 | F20: 0.06 | G20: 0.06 | H20: 0.06 | I20: 0.06 | J20: 0.06 | K20: 0.06
A21: PRT | B21: C_PR24ENHW_SHALLOW_EFF | C21: Shallow dive company efficiency factor - enhancement - water | D21: % | E21: Price Review 2024 | F21: 0.07 | G21: 0.07 | H21: 0.07 | I21: 0.07 | J21: 0.07 | K21: 0.07
A22: SEW | B22: C_PR24ENHW_SHALLOW_EFF | C22: Shallow dive company efficiency factor - enhancement - water | D22: % | E22: Price Review 2024 | F22: 0.1 | G22: 0.1 | H22: 0.1 | I22: 0.1 | J22: 0.1 | K22: 0.1
A23: SSC | B23: C_PR24ENHW_SHALLOW_EFF | C23: Shallow dive company efficiency factor - enhancement - water | D23: % | E23: Price Review 2024 | F23: 0 | G23: 0 | H23: 0 | I23: 0 | J23: 0 | K23: 0
A24: SES | B24: C_PR24ENHW_SHALLOW_EFF | C24: Shallow dive company efficiency factor - enhancement - water | D24: % | E24: Price Review 2024 | F24: 0.1 | G24: 0.1 | H24: 0.1 | I24: 0.1 | J24: 0.1 | K24: 0.1

Sheet Consolidated Input
A1: =RIGHT(CELL("filename", $A$1), LEN(CELL("filename", $A$1)) - SEARCH("]", CELL("filename", $A$1))) -> 
A4: Acronym | B4: Item Description | C4: Unit | D4: 2023-24 | E4: 2024-25 | F4: 2025-26 | G4: 2026-27 | H4: 2027-28 | I4: 2028-29 | J4: 2029-30 | K4: Total 2023-30
A5: ANH | B5: EA/NRW environmental programme (WINEP/NEP) - Eels/fish entrainment screens; (WINEP/NEP) water totex - Total | C5: £m | D5: =SUMIFS('F_Inputs BP'!F$9:F$61,'F_Inputs BP'!$A$9:$A$61,A5,'F_Inputs BP'!$B$9:$B$61,"CW12_006TOT_PR24")+SUMIFS('F_Inputs BP'!F$9:F$61,'F_Inputs BP'!$A$9:$A$61,A5,'F_Inputs BP'!$B$9:$B$61,"CW17_006TOT_PR24") -> 0 | E5: =SUMIFS('F_Inputs BP'!G$9:G$61,'F_Inputs BP'!$A$9:$A$61,A5,'F_Inputs BP'!$B$9:$B$61,"CW12_006TOT_PR24")+SUMIFS('F_Inputs BP'!G$9:G$61,'F_Inputs BP'!$A$9:$A$61,A5,'F_Inputs BP'!$B$9:$B$61,"CW17_006TOT_PR24") -> 0 | F5: =SUMIFS('F_Inputs BP'!H$9:H$61,'F_Inputs BP'!$A$9:$A$61,$A5,'F_Inputs BP'!$B$9:$B$61,"CW3_006TOT_PR24") -> 0 | G5: =SUMIFS('F_Inputs BP'!I$9:I$61,'F_Inputs BP'!$A$9:$A$61,$A5,'F_Inputs BP'!$B$9:$B$61,"CW3_006TOT_PR24") -> 0 | H5: =SUMIFS('F_Inputs BP'!J$9:J$61,'F_Inputs BP'!$A$9:$A$61,$A5,'F_Inputs BP'!$B$9:$B$61,"CW3_006TOT_PR24") -> 0 | I5: =SUMIFS('F_Inputs BP'!K$9:K$61,'F_Inputs BP'!$A$9:$A$61,$A5,'F_Inputs BP'!$B$9:$B$61,"CW3_006TOT_PR24") -> 0 | J5: =SUMIFS('F_Inputs BP'!L$9:L$61,'F_Inputs BP'!$A$9:$A$61,$A5,'F_Inputs BP'!$B$9:$B$61,"CW3_006TOT_PR24") -> 0 | K5: =SUM(ConsInput[[#This Row],[2023-24]:[2029-30]]) -> 0
A6: WSH | B6: EA/NRW environmental programme (WINEP/NEP) - Eels/fish entrainment screens; (WINEP/NEP) water totex - Total | C6: £m | D6: =SUMIFS('F_Inputs BP'!F$9:F$61,'F_Inputs BP'!$A$9:$A$61,A6,'F_Inputs BP'!$B$9:$B$61,"CW12_006TOT_PR24")+SUMIFS('F_Inputs BP'!F$9:F$61,'F_Inputs BP'!$A$9:$A$61,A6,'F_Inputs BP'!$B$9:$B$61,"CW17_006TOT_PR24") -> 0 | E6: =SUMIFS('F_Inputs BP'!G$9:G$61,'F_Inputs BP'!$A$9:$A$61,A6,'F_Inputs BP'!$B$9:$B$61,"CW12_006TOT_PR24")+SUMIFS('F_Inputs BP'!G$9:G$61,'F_Inputs BP'!$A$9:$A$61,A6,'F_Inputs BP'!$B$9:$B$61,"CW17_006TOT_PR24") -> 0 | F6: =SUMIFS('F_Inputs BP'!H$9:H$61,'F_Inputs BP'!$A$9:$A$61,$A6,'F_Inputs BP'!$B$9:$B$61,"CW3_006TOT_PR24") -> 1.704 | G6: =SUMIFS('F_Inputs BP'!I$9:I$61,'F_Inputs BP'!$A$9:$A$61,$A6,'F_Inputs BP'!$B$9:$B$61,"CW3_006TOT_PR24") -> 1.676 | H6: =SUMIFS('F_Inputs BP'!J$9:J$61,'F_Inputs BP'!$A$9:$A$61,$A6,'F_Inputs BP'!$B$9:$B$61,"CW3_006TOT_PR24") -> 0.76 | I6: =SUMIFS('F_Inputs BP'!K$9:K$61,'F_Inputs BP'!$A$9:$A$61,$A6,'F_Inputs BP'!$B$9:$B$61,"CW3_006TOT_PR24") -> 0.765 | J6: =SUMIFS('F_Inputs BP'!L$9:L$61,'F_Inputs BP'!$A$9:$A$61,$A6,'F_Inputs BP'!$B$9:$B$61,"CW3_006TOT_PR24") -> 0.775 | K6: =SUM(ConsInput[[#This Row],[2023-24]:[2029-30]]) -> 5.68
A7: HDD | B7: EA/NRW environmental programme (WINEP/NEP) - Eels/fish entrainment screens; (WINEP/NEP) water totex - Total | C7: £m | D7: =SUMIFS('F_Inputs BP'!F$9:F$61,'F_Inputs BP'!$A$9:$A$61,A7,'F_Inputs BP'!$B$9:$B$61,"CW12_006TOT_PR24")+SUMIFS('F_Inputs BP'!F$9:F$61,'F_Inputs BP'!$A$9:$A$61,A7,'F_Inputs BP'!$B$9:$B$61,"CW17_006TOT_PR24") -> 0 | E7: =SUMIFS('F_Inputs BP'!G$9:G$61,'F_Inputs BP'!$A$9:$A$61,A7,'F_Inputs BP'!$B$9:$B$61,"CW12_006TOT_PR24")+SUMIFS('F_Inputs BP'!G$9:G$61,'F_Inputs BP'!$A$9:$A$61,A7,'F_Inputs BP'!$B$9:$B$61,"CW17_006TOT_PR24") -> 0 | F7: =SUMIFS('F_Inputs BP'!H$9:H$61,'F_Inputs BP'!$A$9:$A$61,$A7,'F_Inputs BP'!$B$9:$B$61,"CW3_006TOT_PR24") -> 0 | G7: =SUMIFS('F_Inputs BP'!I$9:I$61,'F_Inputs BP'!$A$9:$A$61,$A7,'F_Inputs BP'!$B$9:$B$61,"CW3_006TOT_PR24") -> 0 | H7: =SUMIFS('F_Inputs BP'!J$9:J$61,'F_Inputs BP'!$A$9:$A$61,$A7,'F_Inputs BP'!$B$9:$B$61,"CW3_006TOT_PR24") -> 0 | I7: =SUMIFS('F_Inputs BP'!K$9:K$61,'F_Inputs BP'!$A$9:$A$61,$A7,'F_Inputs BP'!$B$9:$B$61,"CW3_006TOT_PR24") -> 0 | J7: =SUMIFS('F_Inputs BP'!L$9:L$61,'F_Inputs BP'!$A$9:$A$61,$A7,'F_Inputs BP'!$B$9:$B$61,"CW3_006TOT_PR24") -> 0 | K7: =SUM(ConsInput[[#This Row],[2023-24]:[2029-30]]) -> 0
A8: NES | B8: EA/NRW environmental programme (WINEP/NEP) - Eels/fish entrainment screens; (WINEP/NEP) water totex - Total | C8: £m | D8: =SUMIFS('F_Inputs BP'!F$9:F$61,'F_Inputs BP'!$A$9:$A$61,A8,'F_Inputs BP'!$B$9:$B$61,"CW12_006TOT_PR24")+SUMIFS('F_Inputs BP'!F$9:F$61,'F_Inputs BP'!$A$9:$A$61,A8,'F_Inputs BP'!$B$9:$B$61,"CW17_006TOT_PR24") -> 0 | E8: =SUMIFS('F_Inputs BP'!G$9:G$61,'F_Inputs BP'!$A$9:$A$61,A8,'F_Inputs BP'!$B$9:$B$61,"CW12_006TOT_PR24")+SUMIFS('F_Inputs BP'!G$9:G$61,'F_Inputs BP'!$A$9:$A$61,A8,'F_Inputs BP'!$B$9:$B$61,"CW17_006TOT_PR24") -> 0 | F8: =SUMIFS('F_Inputs BP'!H$9:H$61,'F_Inputs BP'!$A$9:$A$61,$A8,'F_Inputs BP'!$B$9:$B$61,"CW3_006TOT_PR24") -> 0 | G8: =SUMIFS('F_Inputs BP'!I$9:I$61,'F_Inputs BP'!$A$9:$A$61,$A8,'F_Inputs BP'!$B$9:$B$61,"CW3_006TOT_PR24") -> 0 | H8: =SUMIFS('F_Inputs BP'!J$9:J$61,'F_Inputs BP'!$A$9:$A$61,$A8,'F_Inputs BP'!$B$9:$B$61,"CW3_006TOT_PR24") -> 0 | I8: =SUMIFS('F_Inputs BP'!K$9:K$61,'F_Inputs BP'!$A$9:$A$61,$A8,'F_Inputs BP'!$B$9:$B$61,"CW3_006TOT_PR24") -> 0 | J8: =SUMIFS('F_Inputs BP'!L$9:L$61,'F_Inputs BP'!$A$9:$A$61,$A8,'F_Inputs BP'!$B$9:$B$61,"CW3_006TOT_PR24") -> 0 | K8: =SUM(ConsInput[[#This Row],[2023-24]:[2029-30]]) -> 0
A9: SVE | B9: EA/NRW environmental programme (WINEP/NEP) - Eels/fish entrainment screens; (WINEP/NEP) water totex - Total | C9: £m | D9: =SUMIFS('F_Inputs BP'!F$9:F$61,'F_Inputs BP'!$A$9:$A$61,A9,'F_Inputs BP'!$B$9:$B$61,"CW12_006TOT_PR24")+SUMIFS('F_Inputs BP'!F$9:F$61,'F_Inputs BP'!$A$9:$A$61,A9,'F_Inputs BP'!$B$9:$B$61,"CW17_006TOT_PR24") -> 0 | E9: =SUMIFS('F_Inputs BP'!G$9:G$61,'F_Inputs BP'!$A$9:$A$61,A9,'F_Inputs BP'!$B$9:$B$61,"CW12_006TOT_PR24")+SUMIFS('F_Inputs BP'!G$9:G$61,'F_Inputs BP'!$A$9:$A$61,A9,'F_Inputs BP'!$B$9:$B$61,"CW17_006TOT_PR24") -> 0 | F9: =SUMIFS('F_Inputs BP'!H$9:H$61,'F_Inputs BP'!$A$9:$A$61,$A9,'F_Inputs BP'!$B$9:$B$61,"CW3_006TOT_PR24") -> 0 | G9: =SUMIFS('F_Inputs BP'!I$9:I$61,'F_Inputs BP'!$A$9:$A$61,$A9,'F_Inputs BP'!$B$9:$B$61,"CW3_006TOT_PR24") -> 0 | H9: =SUMIFS('F_Inputs BP'!J$9:J$61,'F_Inputs BP'!$A$9:$A$61,$A9,'F_Inputs BP'!$B$9:$B$61,"CW3_006TOT_PR24") -> 0 | I9: =SUMIFS('F_Inputs BP'!K$9:K$61,'F_Inputs BP'!$A$9:$A$61,$A9,'F_Inputs BP'!$B$9:$B$61,"CW3_006TOT_PR24") -> 0 | J9: =SUMIFS('F_Inputs BP'!L$9:L$61,'F_Inputs BP'!$A$9:$A$61,$A9,'F_Inputs BP'!$B$9:$B$61,"CW3_006TOT_PR24") -> 0 | K9: =SUM(ConsInput[[#This Row],[2023-24]:[2029-30]]) -> 0
A10: SWB | B10: EA/NRW environmental programme (WINEP/NEP) - Eels/fish entrainment screens; (WINEP/NEP) water totex - Total | C10: £m | D10: =SUMIFS('F_Inputs BP'!F$9:F$61,'F_Inputs BP'!$A$9:$A$61,A10,'F_Inputs BP'!$B$9:$B$61,"CW12_006TOT_PR24")+SUMIFS('F_Inputs BP'!F$9:F$61,'F_Inputs BP'!$A$9:$A$61,A10,'F_Inputs BP'!$B$9:$B$61,"CW17_006TOT_PR24") -> 0 | E10: =SUMIFS('F_Inputs BP'!G$9:G$61,'F_Inputs BP'!$A$9:$A$61,A10,'F_Inputs BP'!$B$9:$B$61,"CW12_006TOT_PR24")+SUMIFS('F_Inputs BP'!G$9:G$61,'F_Inputs BP'!$A$9:$A$61,A10,'F_Inputs BP'!$B$9:$B$61,"CW17_006TOT_PR24") -> 0 | F10: =SUMIFS('F_Inputs BP'!H$9:H$61,'F_Inputs BP'!$A$9:$A$61,$A10,'F_Inputs BP'!$B$9:$B$61,"CW3_006TOT_PR24") -> 1.87025 | G10: =SUMIFS('F_Inputs BP'!I$9:I$61,'F_Inputs BP'!$A$9:$A$61,$A10,'F_Inputs BP'!$B$9:$B$61,"CW3_006TOT_PR24") -> 1.87025 | H10: =SUMIFS('F_Inputs BP'!J$9:J$61,'F_Inputs BP'!$A$9:$A$61,$A10,'F_Inputs BP'!$B$9:$B$61,"CW3_006TOT_PR24") -> 1.87025 | I10: =SUMIFS('F_Inputs BP'!K$9:K$61,'F_Inputs BP'!$A$9:$A$61,$A10,'F_Inputs BP'!$B$9:$B$61,"CW3_006TOT_PR24") -> 1.87025 | J10: =SUMIFS('F_Inputs BP'!L$9:L$61,'F_Inputs BP'!$A$9:$A$61,$A10,'F_Inputs BP'!$B$9:$B$61,"CW3_006TOT_PR24") -> 1.87025 | K10: =SUM(ConsInput[[#This Row],[2023-24]:[2029-30]]) -> 9.35125
A11: SRN | B11: EA/NRW environmental programme (WINEP/NEP) - Eels/fish entrainment screens; (WINEP/NEP) water totex - Total | C11: £m | D11: =SUMIFS('F_Inputs BP'!F$9:F$61,'F_Inputs BP'!$A$9:$A$61,A11,'F_Inputs BP'!$B$9:$B$61,"CW12_006TOT_PR24")+SUMIFS('F_Inputs BP'!F$9:F$61,'F_Inputs BP'!$A$9:$A$61,A11,'F_Inputs BP'!$B$9:$B$61,"CW17_006TOT_PR24") -> 0 | E11: =SUMIFS('F_Inputs BP'!G$9:G$61,'F_Inputs BP'!$A$9:$A$61,A11,'F_Inputs BP'!$B$9:$B$61,"CW12_006TOT_PR24")+SUMIFS('F_Inputs BP'!G$9:G$61,'F_Inputs BP'!$A$9:$A$61,A11,'F_Inputs BP'!$B$9:$B$61,"CW17_006TOT_PR24") -> 0 | F11: =SUMIFS('F_Inputs BP'!H$9:H$61,'F_Inputs BP'!$A$9:$A$61,$A11,'F_Inputs BP'!$B$9:$B$61,"CW3_006TOT_PR24") -> 0 | G11: =SUMIFS('F_Inputs BP'!I$9:I$61,'F_Inputs BP'!$A$9:$A$61,$A11,'F_Inputs BP'!$B$9:$B$61,"CW3_006TOT_PR24") -> 0 | H11: =SUMIFS('F_Inputs BP'!J$9:J$61,'F_Inputs BP'!$A$9:$A$61,$A11,'F_Inputs BP'!$B$9:$B$61,"CW3_006TOT_PR24") -> 0 | I11: =SUMIFS('F_Inputs BP'!K$9:K$61,'F_Inputs BP'!$A$9:$A$61,$A11,'F_Inputs BP'!$B$9:$B$61,"CW3_006TOT_PR24") -> 0 | J11: =SUMIFS('F_Inputs BP'!L$9:L$61,'F_Inputs BP'!$A$9:$A$61,$A11,'F_Inputs BP'!$B$9:$B$61,"CW3_006TOT_PR24") -> 0 | K11: =SUM(ConsInput[[#This Row],[2023-24]:[2029-30]]) -> 0
A12: TMS | B12: EA/NRW environmental programme (WINEP/NEP) - Eels/fish entrainment screens; (WINEP/NEP) water totex - Total | C12: £m | D12: =SUMIFS('F_Inputs BP'!F$9:F$61,'F_Inputs BP'!$A$9:$A$61,A12,'F_Inputs BP'!$B$9:$B$61,"CW12_006TOT_PR24")+SUMIFS('F_Inputs BP'!F$9:F$61,'F_Inputs BP'!$A$9:$A$61,A12,'F_Inputs BP'!$B$9:$B$61,"CW17_006TOT_PR24") -> 0 | E12: =SUMIFS('F_Inputs BP'!G$9:G$61,'F_Inputs BP'!$A$9:$A$61,A12,'F_Inputs BP'!$B$9:$B$61,"CW12_006TOT_PR24")+SUMIFS('F_Inputs BP'!G$9:G$61,'F_Inputs BP'!$A$9:$A$61,A12,'F_Inputs BP'!$B$9:$B$61,"CW17_006TOT_PR24") -> 0 | F12: =SUMIFS('F_Inputs BP'!H$9:H$61,'F_Inputs BP'!$A$9:$A$61,$A12,'F_Inputs BP'!$B$9:$B$61,"CW3_006TOT_PR24") -> 0.114 | G12: =SUMIFS('F_Inputs BP'!I$9:I$61,'F_Inputs BP'!$A$9:$A$61,$A12,'F_Inputs BP'!$B$9:$B$61,"CW3_006TOT_PR24") -> 0.541 | H12: =SUMIFS('F_Inputs BP'!J$9:J$61,'F_Inputs BP'!$A$9:$A$61,$A12,'F_Inputs BP'!$B$9:$B$61,"CW3_006TOT_PR24") -> 0.519 | I12: =SUMIFS('F_Inputs BP'!K$9:K$61,'F_Inputs BP'!$A$9:$A$61,$A12,'F_Inputs BP'!$B$9:$B$61,"CW3_006TOT_PR24") -> 0.521 | J12: =SUMIFS('F_Inputs BP'!L$9:L$61,'F_Inputs BP'!$A$9:$A$61,$A12,'F_Inputs BP'!$B$9:$B$61,"CW3_006TOT_PR24") -> 0 | K12: =SUM(ConsInput[[#This Row],[2023-24]:[2029-30]]) -> 1.695
A13: NWT | B13: EA/NRW environmental programme (WINEP/NEP) - Eels/fish entrainment screens; (WINEP/NEP) water totex - Total | C13: £m | D13: =SUMIFS('F_Inputs BP'!F$9:F$61,'F_Inputs BP'!$A$9:$A$61,A13,'F_Inputs BP'!$B$9:$B$61,"CW12_006TOT_PR24")+SUMIFS('F_Inputs BP'!F$9:F$61,'F_Inputs BP'!$A$9:$A$61,A13,'F_Inputs BP'!$B$9:$B$61,"CW17_006TOT_PR24") -> 0 | E13: =SUMIFS('F_Inputs BP'!G$9:G$61,'F_Inputs BP'!$A$9:$A$61,A13,'F_Inputs BP'!$B$9:$B$61,"CW12_006TOT_PR24")+SUMIFS('F_Inputs BP'!G$9:G$61,'F_Inputs BP'!$A$9:$A$61,A13,'F_Inputs BP'!$B$9:$B$61,"CW17_006TOT_PR24") -> 0.0707137191 | F13: =SUMIFS('F_Inputs BP'!H$9:H$61,'F_Inputs BP'!$A$9:$A$61,$A13,'F_Inputs BP'!$B$9:$B$61,"CW3_006TOT_PR24") -> 0.2639852097 | G13: =SUMIFS('F_Inputs BP'!I$9:I$61,'F_Inputs BP'!$A$9:$A$61,$A13,'F_Inputs BP'!$B$9:$B$61,"CW3_006TOT_PR24") -> 1.501720622 | H13: =SUMIFS('F_Inputs BP'!J$9:J$61,'F_Inputs BP'!$A$9:$A$61,$A13,'F_Inputs BP'!$B$9:$B$61,"CW3_006TOT_PR24") -> 0.5716014928 | I13: =SUMIFS('F_Inputs BP'!K$9:K$61,'F_Inputs BP'!$A$9:$A$61,$A13,'F_Inputs BP'!$B$9:$B$61,"CW3_006TOT_PR24") -> 0.04646325433 | J13: =SUMIFS('F_Inputs BP'!L$9:L$61,'F_Inputs BP'!$A$9:$A$61,$A13,'F_Inputs BP'!$B$9:$B$61,"CW3_006TOT_PR24") -> 0.1518328585 | K13: =SUM(ConsInput[[#This Row],[2023-24]:[2029-30]]) -> 2.606317156
A14: WSX | B14: EA/NRW environmental programme (WINEP/NEP) - Eels/fish entrainment screens; (WINEP/NEP) water totex - Total | C14: £m | D14: =SUMIFS('F_Inputs BP'!F$9:F$61,'F_Inputs BP'!$A$9:$A$61,A14,'F_Inputs BP'!$B$9:$B$61,"CW12_006TOT_PR24")+SUMIFS('F_Inputs BP'!F$9:F$61,'F_Inputs BP'!$A$9:$A$61,A14,'F_Inputs BP'!$B$9:$B$61,"CW17_006TOT_PR24") -> 0 | E14: =SUMIFS('F_Inputs BP'!G$9:G$61,'F_Inputs BP'!$A$9:$A$61,A14,'F_Inputs BP'!$B$9:$B$61,"CW12_006TOT_PR24")+SUMIFS('F_Inputs BP'!G$9:G$61,'F_Inputs BP'!$A$9:$A$61,A14,'F_Inputs BP'!$B$9:$B$61,"CW17_006TOT_PR24") -> 0 | F14: =SUMIFS('F_Inputs BP'!H$9:H$61,'F_Inputs BP'!$A$9:$A$61,$A14,'F_Inputs BP'!$B$9:$B$61,"CW3_006TOT_PR24") -> 0 | G14: =SUMIFS('F_Inputs BP'!I$9:I$61,'F_Inputs BP'!$A$9:$A$61,$A14,'F_Inputs BP'!$B$9:$B$61,"CW3_006TOT_PR24") -> 0 | H14: =SUMIFS('F_Inputs BP'!J$9:J$61,'F_Inputs BP'!$A$9:$A$61,$A14,'F_Inputs BP'!$B$9:$B$61,"CW3_006TOT_PR24") -> 0 | I14: =SUMIFS('F_Inputs BP'!K$9:K$61,'F_Inputs BP'!$A$9:$A$61,$A14,'F_Inputs BP'!$B$9:$B$61,"CW3_006TOT_PR24") -> 0 | J14: =SUMIFS('F_Inputs BP'!L$9:L$61,'F_Inputs BP'!$A$9:$A$61,$A14,'F_Inputs BP'!$B$9:$B$61,"CW3_006TOT_PR24") -> 0 | K14: =SUM(ConsInput[[#This Row],[2023-24]:[2029-30]]) -> 0
A15: YKY | B15: EA/NRW environmental programme (WINEP/NEP) - Eels/fish entrainment screens; (WINEP/NEP) water totex - Total | C15: £m | D15: =SUMIFS('F_Inputs BP'!F$9:F$61,'F_Inputs BP'!$A$9:$A$61,A15,'F_Inputs BP'!$B$9:$B$61,"CW12_006TOT_PR24")+SUMIFS('F_Inputs BP'!F$9:F$61,'F_Inputs BP'!$A$9:$A$61,A15,'F_Inputs BP'!$B$9:$B$61,"CW17_006TOT_PR24") -> 0 | E15: =SUMIFS('F_Inputs BP'!G$9:G$61,'F_Inputs BP'!$A$9:$A$61,A15,'F_Inputs BP'!$B$9:$B$61,"CW12_006TOT_PR24")+SUMIFS('F_Inputs BP'!G$9:G$61,'F_Inputs BP'!$A$9:$A$61,A15,'F_Inputs BP'!$B$9:$B$61,"CW17_006TOT_PR24") -> 0 | F15: =SUMIFS('F_Inputs BP'!H$9:H$61,'F_Inputs BP'!$A$9:$A$61,$A15,'F_Inputs BP'!$B$9:$B$61,"CW3_006TOT_PR24") -> 1.0055168 | G15: =SUMIFS('F_Inputs BP'!I$9:I$61,'F_Inputs BP'!$A$9:$A$61,$A15,'F_Inputs BP'!$B$9:$B$61,"CW3_006TOT_PR24") -> 1.5313664 | H15: =SUMIFS('F_Inputs BP'!J$9:J$61,'F_Inputs BP'!$A$9:$A$61,$A15,'F_Inputs BP'!$B$9:$B$61,"CW3_006TOT_PR24") -> 1.6405248 | I15: =SUMIFS('F_Inputs BP'!K$9:K$61,'F_Inputs BP'!$A$9:$A$61,$A15,'F_Inputs BP'!$B$9:$B$61,"CW3_006TOT_PR24") -> 1.3361408 | J15: =SUMIFS('F_Inputs BP'!L$9:L$61,'F_Inputs BP'!$A$9:$A$61,$A15,'F_Inputs BP'!$B$9:$B$61,"CW3_006TOT_PR24") -> 0.7441664 | K15: =SUM(ConsInput[[#This Row],[2023-24]:[2029-30]]) -> 6.2577152
A16: AFW | B16: EA/NRW environmental programme (WINEP/NEP) - Eels/fish entrainment screens; (WINEP/NEP) water totex - Total | C16: £m | D16: =SUMIFS('F_Inputs BP'!F$9:F$61,'F_Inputs BP'!$A$9:$A$61,A16,'F_Inputs BP'!$B$9:$B$61,"CW12_006TOT_PR24")+SUMIFS('F_Inputs BP'!F$9:F$61,'F_Inputs BP'!$A$9:$A$61,A16,'F_Inputs BP'!$B$9:$B$61,"CW17_006TOT_PR24") -> 0 | E16: =SUMIFS('F_Inputs BP'!G$9:G$61,'F_Inputs BP'!$A$9:$A$61,A16,'F_Inputs BP'!$B$9:$B$61,"CW12_006TOT_PR24")+SUMIFS('F_Inputs BP'!G$9:G$61,'F_Inputs BP'!$A$9:$A$61,A16,'F_Inputs BP'!$B$9:$B$61,"CW17_006TOT_PR24") -> 0 | F16: =SUMIFS('F_Inputs BP'!H$9:H$61,'F_Inputs BP'!$A$9:$A$61,$A16,'F_Inputs BP'!$B$9:$B$61,"CW3_006TOT_PR24") -> 0 | G16: =SUMIFS('F_Inputs BP'!I$9:I$61,'F_Inputs BP'!$A$9:$A$61,$A16,'F_Inputs BP'!$B$9:$B$61,"CW3_006TOT_PR24") -> 0 | H16: =SUMIFS('F_Inputs BP'!J$9:J$61,'F_Inputs BP'!$A$9:$A$61,$A16,'F_Inputs BP'!$B$9:$B$61,"CW3_006TOT_PR24") -> 0 | I16: =SUMIFS('F_Inputs BP'!K$9:K$61,'F_Inputs BP'!$A$9:$A$61,$A16,'F_Inputs BP'!$B$9:$B$61,"CW3_006TOT_PR24") -> 0 | J16: =SUMIFS('F_Inputs BP'!L$9:L$61,'F_Inputs BP'!$A$9:$A$61,$A16,'F_Inputs BP'!$B$9:$B$61,"CW3_006TOT_PR24") -> 0 | K16: =SUM(ConsInput[[#This Row],[2023-24]:[2029-30]]) -> 0
A17: BRL | B17: EA/NRW environmental programme (WINEP/NEP) - Eels/fish entrainment screens; (WINEP/NEP) water totex - Total | C17: £m | D17: =SUMIFS('F_Inputs BP'!F$9:F$61,'F_Inputs BP'!$A$9:$A$61,A17,'F_Inputs BP'!$B$9:$B$61,"CW12_006TOT_PR24")+SUMIFS('F_Inputs BP'!F$9:F$61,'F_Inputs BP'!$A$9:$A$61,A17,'F_Inputs BP'!$B$9:$B$61,"CW17_006TOT_PR24") -> 0 | E17: =SUMIFS('F_Inputs BP'!G$9:G$61,'F_Inputs BP'!$A$9:$A$61,A17,'F_Inputs BP'!$B$9:$B$61,"CW12_006TOT_PR24")+SUMIFS('F_Inputs BP'!G$9:G$61,'F_Inputs BP'!$A$9:$A$61,A17,'F_Inputs BP'!$B$9:$B$61,"CW17_006TOT_PR24") -> 0 | F17: =SUMIFS('F_Inputs BP'!H$9:H$61,'F_Inputs BP'!$A$9:$A$61,$A17,'F_Inputs BP'!$B$9:$B$61,"CW3_006TOT_PR24") -> 0 | G17: =SUMIFS('F_Inputs BP'!I$9:I$61,'F_Inputs BP'!$A$9:$A$61,$A17,'F_Inputs BP'!$B$9:$B$61,"CW3_006TOT_PR24") -> 0 | H17: =SUMIFS('F_Inputs BP'!J$9:J$61,'F_Inputs BP'!$A$9:$A$61,$A17,'F_Inputs BP'!$B$9:$B$61,"CW3_006TOT_PR24") -> 0 | I17: =SUMIFS('F_Inputs BP'!K$9:K$61,'F_Inputs BP'!$A$9:$A$61,$A17,'F_Inputs BP'!$B$9:$B$61,"CW3_006TOT_PR24") -> 0 | J17: =SUMIFS('F_Inputs BP'!L$9:L$61,'F_Inputs BP'!$A$9:$A$61,$A17,'F_Inputs BP'!$B$9:$B$61,"CW3_006TOT_PR24") -> 0 | K17: =SUM(ConsInput[[#This Row],[2023-24]:[2029-30]]) -> 0
A18: PRT | B18: EA/NRW environmental programme (WINEP/NEP) - Eels/fish entrainment screens; (WINEP/NEP) water totex - Total | C18: £m | D18: =SUMIFS('F_Inputs BP'!F$9:F$61,'F_Inputs BP'!$A$9:$A$61,A18,'F_Inputs BP'!$B$9:$B$61,"CW12_006TOT_PR24")+SUMIFS('F_Inputs BP'!F$9:F$61,'F_Inputs BP'!$A$9:$A$61,A18,'F_Inputs BP'!$B$9:$B$61,"CW17_006TOT_PR24") -> 0 | E18: =SUMIFS('F_Inputs BP'!G$9:G$61,'F_Inputs BP'!$A$9:$A$61,A18,'F_Inputs BP'!$B$9:$B$61,"CW12_006TOT_PR24")+SUMIFS('F_Inputs BP'!G$9:G$61,'F_Inputs BP'!$A$9:$A$61,A18,'F_Inputs BP'!$B$9:$B$61,"CW17_006TOT_PR24") -> 0 | F18: =SUMIFS('F_Inputs BP'!H$9:H$61,'F_Inputs BP'!$A$9:$A$61,$A18,'F_Inputs BP'!$B$9:$B$61,"CW3_006TOT_PR24") -> 0 | G18: =SUMIFS('F_Inputs BP'!I$9:I$61,'F_Inputs BP'!$A$9:$A$61,$A18,'F_Inputs BP'!$B$9:$B$61,"CW3_006TOT_PR24") -> 0 | H18: =SUMIFS('F_Inputs BP'!J$9:J$61,'F_Inputs BP'!$A$9:$A$61,$A18,'F_Inputs BP'!$B$9:$B$61,"CW3_006TOT_PR24") -> 0 | I18: =SUMIFS('F_Inputs BP'!K$9:K$61,'F_Inputs BP'!$A$9:$A$61,$A18,'F_Inputs BP'!$B$9:$B$61,"CW3_006TOT_PR24") -> 0 | J18: =SUMIFS('F_Inputs BP'!L$9:L$61,'F_Inputs BP'!$A$9:$A$61,$A18,'F_Inputs BP'!$B$9:$B$61,"CW3_006TOT_PR24") -> 0 | K18: =SUM(ConsInput[[#This Row],[2023-24]:[2029-30]]) -> 0
A19: SEW | B19: EA/NRW environmental programme (WINEP/NEP) - Eels/fish entrainment screens; (WINEP/NEP) water totex - Total | C19: £m | D19: =SUMIFS('F_Inputs BP'!F$9:F$61,'F_Inputs BP'!$A$9:$A$61,A19,'F_Inputs BP'!$B$9:$B$61,"CW12_006TOT_PR24")+SUMIFS('F_Inputs BP'!F$9:F$61,'F_Inputs BP'!$A$9:$A$61,A19,'F_Inputs BP'!$B$9:$B$61,"CW17_006TOT_PR24") -> 0 | E19: =SUMIFS('F_Inputs BP'!G$9:G$61,'F_Inputs BP'!$A$9:$A$61,A19,'F_Inputs BP'!$B$9:$B$61,"CW12_006TOT_PR24")+SUMIFS('F_Inputs BP'!G$9:G$61,'F_Inputs BP'!$A$9:$A$61,A19,'F_Inputs BP'!$B$9:$B$61,"CW17_006TOT_PR24") -> 0 | F19: =SUMIFS('F_Inputs BP'!H$9:H$61,'F_Inputs BP'!$A$9:$A$61,$A19,'F_Inputs BP'!$B$9:$B$61,"CW3_006TOT_PR24") -> 0 | G19: =SUMIFS('F_Inputs BP'!I$9:I$61,'F_Inputs BP'!$A$9:$A$61,$A19,'F_Inputs BP'!$B$9:$B$61,"CW3_006TOT_PR24") -> 0 | H19: =SUMIFS('F_Inputs BP'!J$9:J$61,'F_Inputs BP'!$A$9:$A$61,$A19,'F_Inputs BP'!$B$9:$B$61,"CW3_006TOT_PR24") -> 0 | I19: =SUMIFS('F_Inputs BP'!K$9:K$61,'F_Inputs BP'!$A$9:$A$61,$A19,'F_Inputs BP'!$B$9:$B$61,"CW3_006TOT_PR24") -> 0 | J19: =SUMIFS('F_Inputs BP'!L$9:L$61,'F_Inputs BP'!$A$9:$A$61,$A19,'F_Inputs BP'!$B$9:$B$61,"CW3_006TOT_PR24") -> 0 | K19: =SUM(ConsInput[[#This Row],[2023-24]:[2029-30]]) -> 0
A20: SSC | B20: EA/NRW environmental programme (WINEP/NEP) - Eels/fish entrainment screens; (WINEP/NEP) water totex - Total | C20: £m | D20: =SUMIFS('F_Inputs BP'!F$9:F$61,'F_Inputs BP'!$A$9:$A$61,A20,'F_Inputs BP'!$B$9:$B$61,"CW12_006TOT_PR24")+SUMIFS('F_Inputs BP'!F$9:F$61,'F_Inputs BP'!$A$9:$A$61,A20,'F_Inputs BP'!$B$9:$B$61,"CW17_006TOT_PR24") -> 0 | E20: =SUMIFS('F_Inputs BP'!G$9:G$61,'F_Inputs BP'!$A$9:$A$61,A20,'F_Inputs BP'!$B$9:$B$61,"CW12_006TOT_PR24")+SUMIFS('F_Inputs BP'!G$9:G$61,'F_Inputs BP'!$A$9:$A$61,A20,'F_Inputs BP'!$B$9:$B$61,"CW17_006TOT_PR24") -> 0 | F20: =SUMIFS('F_Inputs BP'!H$9:H$61,'F_Inputs BP'!$A$9:$A$61,$A20,'F_Inputs BP'!$B$9:$B$61,"CW3_006TOT_PR24") -> 0.42 | G20: =SUMIFS('F_Inputs BP'!I$9:I$61,'F_Inputs BP'!$A$9:$A$61,$A20,'F_Inputs BP'!$B$9:$B$61,"CW3_006TOT_PR24") -> 0.42 | H20: =SUMIFS('F_Inputs BP'!J$9:J$61,'F_Inputs BP'!$A$9:$A$61,$A20,'F_Inputs BP'!$B$9:$B$61,"CW3_006TOT_PR24") -> 0.42 | I20: =SUMIFS('F_Inputs BP'!K$9:K$61,'F_Inputs BP'!$A$9:$A$61,$A20,'F_Inputs BP'!$B$9:$B$61,"CW3_006TOT_PR24") -> 0.42 | J20: =SUMIFS('F_Inputs BP'!L$9:L$61,'F_Inputs BP'!$A$9:$A$61,$A20,'F_Inputs BP'!$B$9:$B$61,"CW3_006TOT_PR24") -> 0.42 | K20: =SUM(ConsInput[[#This Row],[2023-24]:[2029-30]]) -> 2.1
A21: SES | B21: EA/NRW environmental programme (WINEP/NEP) - Eels/fish entrainment screens; (WINEP/NEP) water totex - Total | C21: £m | D21: =SUMIFS('F_Inputs BP'!F$9:F$61,'F_Inputs BP'!$A$9:$A$61,A21,'F_Inputs BP'!$B$9:$B$61,"CW12_006TOT_PR24")+SUMIFS('F_Inputs BP'!F$9:F$61,'F_Inputs BP'!$A$9:$A$61,A21,'F_Inputs BP'!$B$9:$B$61,"CW17_006TOT_PR24") -> 0 | E21: =SUMIFS('F_Inputs BP'!G$9:G$61,'F_Inputs BP'!$A$9:$A$61,A21,'F_Inputs BP'!$B$9:$B$61,"CW12_006TOT_PR24")+SUMIFS('F_Inputs BP'!G$9:G$61,'F_Inputs BP'!$A$9:$A$61,A21,'F_Inputs BP'!$B$9:$B$61,"CW17_006TOT_PR24") -> 0 | F21: =SUMIFS('F_Inputs BP'!H$9:H$61,'F_Inputs BP'!$A$9:$A$61,$A21,'F_Inputs BP'!$B$9:$B$61,"CW3_006TOT_PR24") -> 0.25 | G21: =SUMIFS('F_Inputs BP'!I$9:I$61,'F_Inputs BP'!$A$9:$A$61,$A21,'F_Inputs BP'!$B$9:$B$61,"CW3_006TOT_PR24") -> 0.751 | H21: =SUMIFS('F_Inputs BP'!J$9:J$61,'F_Inputs BP'!$A$9:$A$61,$A21,'F_Inputs BP'!$B$9:$B$61,"CW3_006TOT_PR24") -> 1 | I21: =SUMIFS('F_Inputs BP'!K$9:K$61,'F_Inputs BP'!$A$9:$A$61,$A21,'F_Inputs BP'!$B$9:$B$61,"CW3_006TOT_PR24") -> 0 | J21: =SUMIFS('F_Inputs BP'!L$9:L$61,'F_Inputs BP'!$A$9:$A$61,$A21,'F_Inputs BP'!$B$9:$B$61,"CW3_006TOT_PR24") -> 0 | K21: =SUM(ConsInput[[#This Row],[2023-24]:[2029-30]]) -> 2.001

Sheet Consolidated Input Override
A1: =RIGHT(CELL("filename", $A$1), LEN(CELL("filename", $A$1)) - SEARCH("]", CELL("filename", $A$1))) -> 
A4: Acronym | B4: Item Description | C4: Unit | D4: 2023-24 | E4: 2024-25 | F4: 2025-26 | G4: 2026-27 | H4: 2027-28 | I4: 2028-29 | J4: 2029-30 | K4: Total 2023-30 | L4: Reason for override
A5: ANH | B5: EA/NRW environmental programme (WINEP/NEP) - Eels/fish entrainment screens; (WINEP/NEP) water totex - Total | C5: £m
A6: WSH | B6: EA/NRW environmental programme (WINEP/NEP) - Eels/fish entrainment screens; (WINEP/NEP) water totex - Total | C6: £m
A7: HDD | B7: EA/NRW environmental programme (WINEP/NEP) - Eels/fish entrainment screens; (WINEP/NEP) water totex - Total | C7: £m
A8: NES | B8: EA/NRW environmental programme (WINEP/NEP) - Eels/fish entrainment screens; (WINEP/NEP) water totex - Total | C8: £m
A9: SVE | B9: EA/NRW environmental programme (WINEP/NEP) - Eels/fish entrainment screens; (WINEP/NEP) water totex - Total | C9: £m
A10: SWB | B10: EA/NRW environmental programme (WINEP/NEP) - Eels/fish entrainment screens; (WINEP/NEP) water totex - Total | C10: £m
A11: SRN | B11: EA/NRW environmental programme (WINEP/NEP) - Eels/fish entrainment screens; (WINEP/NEP) water totex - Total | C11: £m
A12: TMS | B12: EA/NRW environmental programme (WINEP/NEP) - Eels/fish entrainment screens; (WINEP/NEP) water totex - Total | C12: £m
A13: NWT | B13: EA/NRW environmental programme (WINEP/NEP) - Eels/fish entrainment screens; (WINEP/NEP) water totex - Total | C13: £m
A14: WSX | B14: EA/NRW environmental programme (WINEP/NEP) - Eels/fish entrainment screens; (WINEP/NEP) water totex - Total | C14: £m
A15: YKY | B15: EA/NRW environmental programme (WINEP/NEP) - Eels/fish entrainment screens; (WINEP/NEP) water totex - Total | C15: £m
A16: AFW | B16: EA/NRW environmental programme (WINEP/NEP) - Eels/fish entrainment screens; (WINEP/NEP) water totex - Total | C16: £m
A17: BRL | B17: EA/NRW environmental programme (WINEP/NEP) - Eels/fish entrainment screens; (WINEP/NEP) water totex - Total | C17: £m
A18: PRT | B18: EA/NRW environmental programme (WINEP/NEP) - Eels/fish entrainment screens; (WINEP/NEP) water totex - Total | C18: £m
A19: SEW | B19: EA/NRW environmental programme (WINEP/NEP) - Eels/fish entrainment screens; (WINEP/NEP) water totex - Total | C19: £m
A20: SSC | B20: EA/NRW environmental programme (WINEP/NEP) - Eels/fish entrainment screens; (WINEP/NEP) water totex - Total | C20: £m
A21: SES | B21: EA/NRW environmental programme (WINEP/NEP) - Eels/fish entrainment screens; (WINEP/NEP) water totex - Total | C21: £m

Sheet Final Input
A1: =RIGHT(CELL("filename", $A$1), LEN(CELL("filename", $A$1)) - SEARCH("]", CELL("filename", $A$1))) -> 
A4: Acronym | B4: Item Description | C4: Unit | D4: 2023-24 | E4: 2024-25 | F4: 2025-26 | G4: 2026-27 | H4: 2027-28 | I4: 2028-29 | J4: 2029-30 | K4: Total 2023-30
A5: ANH | B5: EA/NRW environmental programme (WINEP/NEP) - Eels/fish entrainment screens; (WINEP/NEP) water totex - Total | C5: £m | D5: =IF(ISBLANK(ConsInputOverride[[#This Row],[2023-24]]),ConsInput[[#This Row],[2023-24]],ConsInputOverride[[#This Row],[2023-24]]) -> 0 | E5: =IF(ISBLANK(ConsInputOverride[[#This Row],[2024-25]]),ConsInput[[#This Row],[2024-25]],ConsInputOverride[[#This Row],[2024-25]]) -> 0 | F5: =IF(ISBLANK(ConsInputOverride[[#This Row],[2025-26]]),ConsInput[[#This Row],[2025-26]],ConsInputOverride[[#This Row],[2025-26]]) -> 0 | G5: =IF(ISBLANK(ConsInputOverride[[#This Row],[2026-27]]),ConsInput[[#This Row],[2026-27]],ConsInputOverride[[#This Row],[2026-27]]) -> 0 | H5: =IF(ISBLANK(ConsInputOverride[[#This Row],[2027-28]]),ConsInput[[#This Row],[2027-28]],ConsInputOverride[[#This Row],[2027-28]]) -> 0 | I5: =IF(ISBLANK(ConsInputOverride[[#This Row],[2028-29]]),ConsInput[[#This Row],[2028-29]],ConsInputOverride[[#This Row],[2028-29]]) -> 0 | J5: =IF(ISBLANK(ConsInputOverride[[#This Row],[2029-30]]),ConsInput[[#This Row],[2029-30]],ConsInputOverride[[#This Row],[2029-30]]) -> 0 | K5: =SUM(D5:J5) -> 0
A6: WSH | B6: EA/NRW environmental programme (WINEP/NEP) - Eels/fish entrainment screens; (WINEP/NEP) water totex - Total | C6: £m | D6: =IF(ISBLANK(ConsInputOverride[[#This Row],[2023-24]]),ConsInput[[#This Row],[2023-24]],ConsInputOverride[[#This Row],[2023-24]]) -> 0 | E6: =IF(ISBLANK(ConsInputOverride[[#This Row],[2024-25]]),ConsInput[[#This Row],[2024-25]],ConsInputOverride[[#This Row],[2024-25]]) -> 0 | F6: =IF(ISBLANK(ConsInputOverride[[#This Row],[2025-26]]),ConsInput[[#This Row],[2025-26]],ConsInputOverride[[#This Row],[2025-26]]) -> 1.704 | G6: =IF(ISBLANK(ConsInputOverride[[#This Row],[2026-27]]),ConsInput[[#This Row],[2026-27]],ConsInputOverride[[#This Row],[2026-27]]) -> 1.676 | H6: =IF(ISBLANK(ConsInputOverride[[#This Row],[2027-28]]),ConsInput[[#This Row],[2027-28]],ConsInputOverride[[#This Row],[2027-28]]) -> 0.76 | I6: =IF(ISBLANK(ConsInputOverride[[#This Row],[2028-29]]),ConsInput[[#This Row],[2028-29]],ConsInputOverride[[#This Row],[2028-29]]) -> 0.765 | J6: =IF(ISBLANK(ConsInputOverride[[#This Row],[2029-30]]),ConsInput[[#This Row],[2029-30]],ConsInputOverride[[#This Row],[2029-30]]) -> 0.775 | K6: =SUM(D6:J6) -> 5.68
A7: HDD | B7: EA/NRW environmental programme (WINEP/NEP) - Eels/fish entrainment screens; (WINEP/NEP) water totex - Total | C7: £m | D7: =IF(ISBLANK(ConsInputOverride[[#This Row],[2023-24]]),ConsInput[[#This Row],[2023-24]],ConsInputOverride[[#This Row],[2023-24]]) -> 0 | E7: =IF(ISBLANK(ConsInputOverride[[#This Row],[2024-25]]),ConsInput[[#This Row],[2024-25]],ConsInputOverride[[#This Row],[2024-25]]) -> 0 | F7: =IF(ISBLANK(ConsInputOverride[[#This Row],[2025-26]]),ConsInput[[#This Row],[2025-26]],ConsInputOverride[[#This Row],[2025-26]]) -> 0 | G7: =IF(ISBLANK(ConsInputOverride[[#This Row],[2026-27]]),ConsInput[[#This Row],[2026-27]],ConsInputOverride[[#This Row],[2026-27]]) -> 0 | H7: =IF(ISBLANK(ConsInputOverride[[#This Row],[2027-28]]),ConsInput[[#This Row],[2027-28]],ConsInputOverride[[#This Row],[2027-28]]) -> 0 | I7: =IF(ISBLANK(ConsInputOverride[[#This Row],[2028-29]]),ConsInput[[#This Row],[2028-29]],ConsInputOverride[[#This Row],[2028-29]]) -> 0 | J7: =IF(ISBLANK(ConsInputOverride[[#This Row],[2029-30]]),ConsInput[[#This Row],[2029-30]],ConsInputOverride[[#This Row],[2029-30]]) -> 0 | K7: 0
A8: NES | B8: EA/NRW environmental programme (WINEP/NEP) - Eels/fish entrainment screens; (WINEP/NEP) water totex - Total | C8: £m | D8: =IF(ISBLANK(ConsInputOverride[[#This Row],[2023-24]]),ConsInput[[#This Row],[2023-24]],ConsInputOverride[[#This Row],[2023-24]]) -> 0 | E8: =IF(ISBLANK(ConsInputOverride[[#This Row],[2024-25]]),ConsInput[[#This Row],[2024-25]],ConsInputOverride[[#This Row],[2024-25]]) -> 0 | F8: =IF(ISBLANK(ConsInputOverride[[#This Row],[2025-26]]),ConsInput[[#This Row],[2025-26]],ConsInputOverride[[#This Row],[2025-26]]) -> 0 | G8: =IF(ISBLANK(ConsInputOverride[[#This Row],[2026-27]]),ConsInput[[#This Row],[2026-27]],ConsInputOverride[[#This Row],[2026-27]]) -> 0 | H8: =IF(ISBLANK(ConsInputOverride[[#This Row],[2027-28]]),ConsInput[[#This Row],[2027-28]],ConsInputOverride[[#This Row],[2027-28]]) -> 0 | I8: =IF(ISBLANK(ConsInputOverride[[#This Row],[2028-29]]),ConsInput[[#This Row],[2028-29]],ConsInputOverride[[#This Row],[2028-29]]) -> 0 | J8: =IF(ISBLANK(ConsInputOverride[[#This Row],[2029-30]]),ConsInput[[#This Row],[2029-30]],ConsInputOverride[[#This Row],[2029-30]]) -> 0 | K8: 0
A9: SVE | B9: EA/NRW environmental programme (WINEP/NEP) - Eels/fish entrainment screens; (WINEP/NEP) water totex - Total | C9: £m | D9: =IF(ISBLANK(ConsInputOverride[[#This Row],[2023-24]]),ConsInput[[#This Row],[2023-24]],ConsInputOverride[[#This Row],[2023-24]]) -> 0 | E9: =IF(ISBLANK(ConsInputOverride[[#This Row],[2024-25]]),ConsInput[[#This Row],[2024-25]],ConsInputOverride[[#This Row],[2024-25]]) -> 0 | F9: =IF(ISBLANK(ConsInputOverride[[#This Row],[2025-26]]),ConsInput[[#This Row],[2025-26]],ConsInputOverride[[#This Row],[2025-26]]) -> 0 | G9: =IF(ISBLANK(ConsInputOverride[[#This Row],[2026-27]]),ConsInput[[#This Row],[2026-27]],ConsInputOverride[[#This Row],[2026-27]]) -> 0 | H9: =IF(ISBLANK(ConsInputOverride[[#This Row],[2027-28]]),ConsInput[[#This Row],[2027-28]],ConsInputOverride[[#This Row],[2027-28]]) -> 0 | I9: =IF(ISBLANK(ConsInputOverride[[#This Row],[2028-29]]),ConsInput[[#This Row],[2028-29]],ConsInputOverride[[#This Row],[2028-29]]) -> 0 | J9: =IF(ISBLANK(ConsInputOverride[[#This Row],[2029-30]]),ConsInput[[#This Row],[2029-30]],ConsInputOverride[[#This Row],[2029-30]]) -> 0 | K9: 0
A10: SWB | B10: EA/NRW environmental programme (WINEP/NEP) - Eels/fish entrainment screens; (WINEP/NEP) water totex - Total | C10: £m | D10: =IF(ISBLANK(ConsInputOverride[[#This Row],[2023-24]]),ConsInput[[#This Row],[2023-24]],ConsInputOverride[[#This Row],[2023-24]]) -> 0 | E10: =IF(ISBLANK(ConsInputOverride[[#This Row],[2024-25]]),ConsInput[[#This Row],[2024-25]],ConsInputOverride[[#This Row],[2024-25]]) -> 0 | F10: =IF(ISBLANK(ConsInputOverride[[#This Row],[2025-26]]),ConsInput[[#This Row],[2025-26]],ConsInputOverride[[#This Row],[2025-26]]) -> 1.87025 | G10: =IF(ISBLANK(ConsInputOverride[[#This Row],[2026-27]]),ConsInput[[#This Row],[2026-27]],ConsInputOverride[[#This Row],[2026-27]]) -> 1.87025 | H10: =IF(ISBLANK(ConsInputOverride[[#This Row],[2027-28]]),ConsInput[[#This Row],[2027-28]],ConsInputOverride[[#This Row],[2027-28]]) -> 1.87025 | I10: =IF(ISBLANK(ConsInputOverride[[#This Row],[2028-29]]),ConsInput[[#This Row],[2028-29]],ConsInputOverride[[#This Row],[2028-29]]) -> 1.87025 | J10: =IF(ISBLANK(ConsInputOverride[[#This Row],[2029-30]]),ConsInput[[#This Row],[2029-30]],ConsInputOverride[[#This Row],[2029-30]]) -> 1.87025 | K10: 9.35125
A11: SRN | B11: EA/NRW environmental programme (WINEP/NEP) - Eels/fish entrainment screens; (WINEP/NEP) water totex - Total | C11: £m | D11: =IF(ISBLANK(ConsInputOverride[[#This Row],[2023-24]]),ConsInput[[#This Row],[2023-24]],ConsInputOverride[[#This Row],[2023-24]]) -> 0 | E11: =IF(ISBLANK(ConsInputOverride[[#This Row],[2024-25]]),ConsInput[[#This Row],[2024-25]],ConsInputOverride[[#This Row],[2024-25]]) -> 0 | F11: =IF(ISBLANK(ConsInputOverride[[#This Row],[2025-26]]),ConsInput[[#This Row],[2025-26]],ConsInputOverride[[#This Row],[2025-26]]) -> 0 | G11: =IF(ISBLANK(ConsInputOverride[[#This Row],[2026-27]]),ConsInput[[#This Row],[2026-27]],ConsInputOverride[[#This Row],[2026-27]]) -> 0 | H11: =IF(ISBLANK(ConsInputOverride[[#This Row],[2027-28]]),ConsInput[[#This Row],[2027-28]],ConsInputOverride[[#This Row],[2027-28]]) -> 0 | I11: =IF(ISBLANK(ConsInputOverride[[#This Row],[2028-29]]),ConsInput[[#This Row],[2028-29]],ConsInputOverride[[#This Row],[2028-29]]) -> 0 | J11: =IF(ISBLANK(ConsInputOverride[[#This Row],[2029-30]]),ConsInput[[#This Row],[2029-30]],ConsInputOverride[[#This Row],[2029-30]]) -> 0 | K11: 0
A12: TMS | B12: EA/NRW environmental programme (WINEP/NEP) - Eels/fish entrainment screens; (WINEP/NEP) water totex - Total | C12: £m | D12: =IF(ISBLANK(ConsInputOverride[[#This Row],[2023-24]]),ConsInput[[#This Row],[2023-24]],ConsInputOverride[[#This Row],[2023-24]]) -> 0 | E12: =IF(ISBLANK(ConsInputOverride[[#This Row],[2024-25]]),ConsInput[[#This Row],[2024-25]],ConsInputOverride[[#This Row],[2024-25]]) -> 0 | F12: =IF(ISBLANK(ConsInputOverride[[#This Row],[2025-26]]),ConsInput[[#This Row],[2025-26]],ConsInputOverride[[#This Row],[2025-26]]) -> 0.114 | G12: =IF(ISBLANK(ConsInputOverride[[#This Row],[2026-27]]),ConsInput[[#This Row],[2026-27]],ConsInputOverride[[#This Row],[2026-27]]) -> 0.541 | H12: =IF(ISBLANK(ConsInputOverride[[#This Row],[2027-28]]),ConsInput[[#This Row],[2027-28]],ConsInputOverride[[#This Row],[2027-28]]) -> 0.519 | I12: =IF(ISBLANK(ConsInputOverride[[#This Row],[2028-29]]),ConsInput[[#This Row],[2028-29]],ConsInputOverride[[#This Row],[2028-29]]) -> 0.521 | J12: =IF(ISBLANK(ConsInputOverride[[#This Row],[2029-30]]),ConsInput[[#This Row],[2029-30]],ConsInputOverride[[#This Row],[2029-30]]) -> 0 | K12: 1.695
A13: NWT | B13: EA/NRW environmental programme (WINEP/NEP) - Eels/fish entrainment screens; (WINEP/NEP) water totex - Total | C13: £m | D13: =IF(ISBLANK(ConsInputOverride[[#This Row],[2023-24]]),ConsInput[[#This Row],[2023-24]],ConsInputOverride[[#This Row],[2023-24]]) -> 0 | E13: =IF(ISBLANK(ConsInputOverride[[#This Row],[2024-25]]),ConsInput[[#This Row],[2024-25]],ConsInputOverride[[#This Row],[2024-25]]) -> 0.0707137191 | F13: =IF(ISBLANK(ConsInputOverride[[#This Row],[2025-26]]),ConsInput[[#This Row],[2025-26]],ConsInputOverride[[#This Row],[2025-26]]) -> 0.2639852097 | G13: =IF(ISBLANK(ConsInputOverride[[#This Row],[2026-27]]),ConsInput[[#This Row],[2026-27]],ConsInputOverride[[#This Row],[2026-27]]) -> 1.501720622 | H13: =IF(ISBLANK(ConsInputOverride[[#This Row],[2027-28]]),ConsInput[[#This Row],[2027-28]],ConsInputOverride[[#This Row],[2027-28]]) -> 0.5716014928 | I13: =IF(ISBLANK(ConsInputOverride[[#This Row],[2028-29]]),ConsInput[[#This Row],[2028-29]],ConsInputOverride[[#This Row],[2028-29]]) -> 0.04646325433 | J13: =IF(ISBLANK(ConsInputOverride[[#This Row],[2029-30]]),ConsInput[[#This Row],[2029-30]],ConsInputOverride[[#This Row],[2029-30]]) -> 0.1518328585 | K13: 2.606317156
A14: WSX | B14: EA/NRW environmental programme (WINEP/NEP) - Eels/fish entrainment screens; (WINEP/NEP) water totex - Total | C14: £m | D14: =IF(ISBLANK(ConsInputOverride[[#This Row],[2023-24]]),ConsInput[[#This Row],[2023-24]],ConsInputOverride[[#This Row],[2023-24]]) -> 0 | E14: =IF(ISBLANK(ConsInputOverride[[#This Row],[2024-25]]),ConsInput[[#This Row],[2024-25]],ConsInputOverride[[#This Row],[2024-25]]) -> 0 | F14: =IF(ISBLANK(ConsInputOverride[[#This Row],[2025-26]]),ConsInput[[#This Row],[2025-26]],ConsInputOverride[[#This Row],[2025-26]]) -> 0 | G14: =IF(ISBLANK(ConsInputOverride[[#This Row],[2026-27]]),ConsInput[[#This Row],[2026-27]],ConsInputOverride[[#This Row],[2026-27]]) -> 0 | H14: =IF(ISBLANK(ConsInputOverride[[#This Row],[2027-28]]),ConsInput[[#This Row],[2027-28]],ConsInputOverride[[#This Row],[2027-28]]) -> 0 | I14: =IF(ISBLANK(ConsInputOverride[[#This Row],[2028-29]]),ConsInput[[#This Row],[2028-29]],ConsInputOverride[[#This Row],[2028-29]]) -> 0 | J14: =IF(ISBLANK(ConsInputOverride[[#This Row],[2029-30]]),ConsInput[[#This Row],[2029-30]],ConsInputOverride[[#This Row],[2029-30]]) -> 0 | K14: 0
A15: YKY | B15: EA/NRW environmental programme (WINEP/NEP) - Eels/fish entrainment screens; (WINEP/NEP) water totex - Total | C15: £m | D15: =IF(ISBLANK(ConsInputOverride[[#This Row],[2023-24]]),ConsInput[[#This Row],[2023-24]],ConsInputOverride[[#This Row],[2023-24]]) -> 0 | E15: =IF(ISBLANK(ConsInputOverride[[#This Row],[2024-25]]),ConsInput[[#This Row],[2024-25]],ConsInputOverride[[#This Row],[2024-25]]) -> 0 | F15: =IF(ISBLANK(ConsInputOverride[[#This Row],[2025-26]]),ConsInput[[#This Row],[2025-26]],ConsInputOverride[[#This Row],[2025-26]]) -> 1.0055168 | G15: =IF(ISBLANK(ConsInputOverride[[#This Row],[2026-27]]),ConsInput[[#This Row],[2026-27]],ConsInputOverride[[#This Row],[2026-27]]) -> 1.5313664 | H15: =IF(ISBLANK(ConsInputOverride[[#This Row],[2027-28]]),ConsInput[[#This Row],[2027-28]],ConsInputOverride[[#This Row],[2027-28]]) -> 1.6405248 | I15: =IF(ISBLANK(ConsInputOverride[[#This Row],[2028-29]]),ConsInput[[#This Row],[2028-29]],ConsInputOverride[[#This Row],[2028-29]]) -> 1.3361408 | J15: =IF(ISBLANK(ConsInputOverride[[#This Row],[2029-30]]),ConsInput[[#This Row],[2029-30]],ConsInputOverride[[#This Row],[2029-30]]) -> 0.7441664 | K15: 6.2577152
A16: AFW | B16: EA/NRW environmental programme (WINEP/NEP) - Eels/fish entrainment screens; (WINEP/NEP) water totex - Total | C16: £m | D16: =IF(ISBLANK(ConsInputOverride[[#This Row],[2023-24]]),ConsInput[[#This Row],[2023-24]],ConsInputOverride[[#This Row],[2023-24]]) -> 0 | E16: =IF(ISBLANK(ConsInputOverride[[#This Row],[2024-25]]),ConsInput[[#This Row],[2024-25]],ConsInputOverride[[#This Row],[2024-25]]) -> 0 | F16: =IF(ISBLANK(ConsInputOverride[[#This Row],[2025-26]]),ConsInput[[#This Row],[2025-26]],ConsInputOverride[[#This Row],[2025-26]]) -> 0 | G16: =IF(ISBLANK(ConsInputOverride[[#This Row],[2026-27]]),ConsInput[[#This Row],[2026-27]],ConsInputOverride[[#This Row],[2026-27]]) -> 0 | H16: =IF(ISBLANK(ConsInputOverride[[#This Row],[2027-28]]),ConsInput[[#This Row],[2027-28]],ConsInputOverride[[#This Row],[2027-28]]) -> 0 | I16: =IF(ISBLANK(ConsInputOverride[[#This Row],[2028-29]]),ConsInput[[#This Row],[2028-29]],ConsInputOverride[[#This Row],[2028-29]]) -> 0 | J16: =IF(ISBLANK(ConsInputOverride[[#This Row],[2029-30]]),ConsInput[[#This Row],[2029-30]],ConsInputOverride[[#This Row],[2029-30]]) -> 0 | K16: 0
A17: BRL | B17: EA/NRW environmental programme (WINEP/NEP) - Eels/fish entrainment screens; (WINEP/NEP) water totex - Total | C17: £m | D17: =IF(ISBLANK(ConsInputOverride[[#This Row],[2023-24]]),ConsInput[[#This Row],[2023-24]],ConsInputOverride[[#This Row],[2023-24]]) -> 0 | E17: =IF(ISBLANK(ConsInputOverride[[#This Row],[2024-25]]),ConsInput[[#This Row],[2024-25]],ConsInputOverride[[#This Row],[2024-25]]) -> 0 | F17: =IF(ISBLANK(ConsInputOverride[[#This Row],[2025-26]]),ConsInput[[#This Row],[2025-26]],ConsInputOverride[[#This Row],[2025-26]]) -> 0 | G17: =IF(ISBLANK(ConsInputOverride[[#This Row],[2026-27]]),ConsInput[[#This Row],[2026-27]],ConsInputOverride[[#This Row],[2026-27]]) -> 0 | H17: =IF(ISBLANK(ConsInputOverride[[#This Row],[2027-28]]),ConsInput[[#This Row],[2027-28]],ConsInputOverride[[#This Row],[2027-28]]) -> 0 | I17: =IF(ISBLANK(ConsInputOverride[[#This Row],[2028-29]]),ConsInput[[#This Row],[2028-29]],ConsInputOverride[[#This Row],[2028-29]]) -> 0 | J17: =IF(ISBLANK(ConsInputOverride[[#This Row],[2029-30]]),ConsInput[[#This Row],[2029-30]],ConsInputOverride[[#This Row],[2029-30]]) -> 0 | K17: 0
A18: PRT | B18: EA/NRW environmental programme (WINEP/NEP) - Eels/fish entrainment screens; (WINEP/NEP) water totex - Total | C18: £m | D18: =IF(ISBLANK(ConsInputOverride[[#This Row],[2023-24]]),ConsInput[[#This Row],[2023-24]],ConsInputOverride[[#This Row],[2023-24]]) -> 0 | E18: =IF(ISBLANK(ConsInputOverride[[#This Row],[2024-25]]),ConsInput[[#This Row],[2024-25]],ConsInputOverride[[#This Row],[2024-25]]) -> 0 | F18: =IF(ISBLANK(ConsInputOverride[[#This Row],[2025-26]]),ConsInput[[#This Row],[2025-26]],ConsInputOverride[[#This Row],[2025-26]]) -> 0 | G18: =IF(ISBLANK(ConsInputOverride[[#This Row],[2026-27]]),ConsInput[[#This Row],[2026-27]],ConsInputOverride[[#This Row],[2026-27]]) -> 0 | H18: =IF(ISBLANK(ConsInputOverride[[#This Row],[2027-28]]),ConsInput[[#This Row],[2027-28]],ConsInputOverride[[#This Row],[2027-28]]) -> 0 | I18: =IF(ISBLANK(ConsInputOverride[[#This Row],[2028-29]]),ConsInput[[#This Row],[2028-29]],ConsInputOverride[[#This Row],[2028-29]]) -> 0 | J18: =IF(ISBLANK(ConsInputOverride[[#This Row],[2029-30]]),ConsInput[[#This Row],[2029-30]],ConsInputOverride[[#This Row],[2029-30]]) -> 0 | K18: 0
A19: SEW | B19: EA/NRW environmental programme (WINEP/NEP) - Eels/fish entrainment screens; (WINEP/NEP) water totex - Total | C19: £m | D19: =IF(ISBLANK(ConsInputOverride[[#This Row],[2023-24]]),ConsInput[[#This Row],[2023-24]],ConsInputOverride[[#This Row],[2023-24]]) -> 0 | E19: =IF(ISBLANK(ConsInputOverride[[#This Row],[2024-25]]),ConsInput[[#This Row],[2024-25]],ConsInputOverride[[#This Row],[2024-25]]) -> 0 | F19: =IF(ISBLANK(ConsInputOverride[[#This Row],[2025-26]]),ConsInput[[#This Row],[2025-26]],ConsInputOverride[[#This Row],[2025-26]]) -> 0 | G19: =IF(ISBLANK(ConsInputOverride[[#This Row],[2026-27]]),ConsInput[[#This Row],[2026-27]],ConsInputOverride[[#This Row],[2026-27]]) -> 0 | H19: =IF(ISBLANK(ConsInputOverride[[#This Row],[2027-28]]),ConsInput[[#This Row],[2027-28]],ConsInputOverride[[#This Row],[2027-28]]) -> 0 | I19: =IF(ISBLANK(ConsInputOverride[[#This Row],[2028-29]]),ConsInput[[#This Row],[2028-29]],ConsInputOverride[[#This Row],[2028-29]]) -> 0 | J19: =IF(ISBLANK(ConsInputOverride[[#This Row],[2029-30]]),ConsInput[[#This Row],[2029-30]],ConsInputOverride[[#This Row],[2029-30]]) -> 0 | K19: 0
A20: SSC | B20: EA/NRW environmental programme (WINEP/NEP) - Eels/fish entrainment screens; (WINEP/NEP) water totex - Total | C20: £m | D20: =IF(ISBLANK(ConsInputOverride[[#This Row],[2023-24]]),ConsInput[[#This Row],[2023-24]],ConsInputOverride[[#This Row],[2023-24]]) -> 0 | E20: =IF(ISBLANK(ConsInputOverride[[#This Row],[2024-25]]),ConsInput[[#This Row],[2024-25]],ConsInputOverride[[#This Row],[2024-25]]) -> 0 | F20: =IF(ISBLANK(ConsInputOverride[[#This Row],[2025-26]]),ConsInput[[#This Row],[2025-26]],ConsInputOverride[[#This Row],[2025-26]]) -> 0.42 | G20: =IF(ISBLANK(ConsInputOverride[[#This Row],[2026-27]]),ConsInput[[#This Row],[2026-27]],ConsInputOverride[[#This Row],[2026-27]]) -> 0.42 | H20: =IF(ISBLANK(ConsInputOverride[[#This Row],[2027-28]]),ConsInput[[#This Row],[2027-28]],ConsInputOverride[[#This Row],[2027-28]]) -> 0.42 | I20: =IF(ISBLANK(ConsInputOverride[[#This Row],[2028-29]]),ConsInput[[#This Row],[2028-29]],ConsInputOverride[[#This Row],[2028-29]]) -> 0.42 | J20: =IF(ISBLANK(ConsInputOverride[[#This Row],[2029-30]]),ConsInput[[#This Row],[2029-30]],ConsInputOverride[[#This Row],[2029-30]]) -> 0.42 | K20: 2.1
A21: SES | B21: EA/NRW environmental programme (WINEP/NEP) - Eels/fish entrainment screens; (WINEP/NEP) water totex - Total | C21: £m | D21: =IF(ISBLANK(ConsInputOverride[[#This Row],[2023-24]]),ConsInput[[#This Row],[2023-24]],ConsInputOverride[[#This Row],[2023-24]]) -> 0 | E21: =IF(ISBLANK(ConsInputOverride[[#This Row],[2024-25]]),ConsInput[[#This Row],[2024-25]],ConsInputOverride[[#This Row],[2024-25]]) -> 0 | F21: =IF(ISBLANK(ConsInputOverride[[#This Row],[2025-26]]),ConsInput[[#This Row],[2025-26]],ConsInputOverride[[#This Row],[2025-26]]) -> 0.25 | G21: =IF(ISBLANK(ConsInputOverride[[#This Row],[2026-27]]),ConsInput[[#This Row],[2026-27]],ConsInputOverride[[#This Row],[2026-27]]) -> 0.751 | H21: =IF(ISBLANK(ConsInputOverride[[#This Row],[2027-28]]),ConsInput[[#This Row],[2027-28]],ConsInputOverride[[#This Row],[2027-28]]) -> 1 | I21: =IF(ISBLANK(ConsInputOverride[[#This Row],[2028-29]]),ConsInput[[#This Row],[2028-29]],ConsInputOverride[[#This Row],[2028-29]]) -> 0 | J21: =IF(ISBLANK(ConsInputOverride[[#This Row],[2029-30]]),ConsInput[[#This Row],[2029-30]],ConsInputOverride[[#This Row],[2029-30]]) -> 0 | K21: 2.001

Sheet Analysis >>

Sheet Unit Cost per Action
A1: =RIGHT(CELL("filename", $A$1), LEN(CELL("filename", $A$1)) - SEARCH("]", CELL("filename", $A$1))) -> 
A4: Acronym | B4: Unit Cost per Action (£m)
A5: ANH | B5: =IFERROR('Final Input'!K5/Inputs_Queries!B5,"") -> 
A6: WSH | B6: =IFERROR('Final Input'!K6/Inputs_Queries!B6,"") -> 1.893333333
A7: HDD | B7: =IFERROR('Final Input'!K7/Inputs_Queries!B7,"") -> 
A8: NES | B8: =IFERROR('Final Input'!K8/Inputs_Queries!B8,"") -> 
A9: SVE | B9: =IFERROR('Final Input'!K9/Inputs_Queries!B9,"") -> 
A10: SWB | B10: =IFERROR('Final Input'!K10/Inputs_Queries!B10,"") -> 1.335892857
A11: SRN | B11: =IFERROR('Final Input'!K11/Inputs_Queries!B11,"") -> 
A12: TMS | B12: =IFERROR('Final Input'!K12/Inputs_Queries!B12,"") -> 0.565
A13: NWT | B13: =IFERROR('Final Input'!K13/Inputs_Queries!B13,"") -> 0.8687723854
A14: WSX | B14: =IFERROR('Final Input'!K14/Inputs_Queries!B14,"") -> 
A15: YKY | B15: =IFERROR('Final Input'!K15/Inputs_Queries!B15,"") -> 3.1288576
A16: AFW | B16: =IFERROR('Final Input'!K16/Inputs_Queries!B16,"") -> 
A17: BRL | B17: =IFERROR('Final Input'!K17/Inputs_Queries!B17,"") -> 
A18: PRT | B18: =IFERROR('Final Input'!K18/Inputs_Queries!B18,"") -> 
A19: SEW | B19: =IFERROR('Final Input'!K19/Inputs_Queries!B19,"") -> 
A20: SSC | B20: =IFERROR('Final Input'!K20/Inputs_Queries!B20,"") -> 2.1
A21: SES | B21: =IFERROR('Final Input'!K21/Inputs_Queries!B21,"") -> 2.001
A22: Median | B22: =MEDIAN(B5:B21) -> 1.893333333

Sheet Materiality & shallow dive
A1: =RIGHT(CELL("filename", $A$1), LEN(CELL("filename", $A$1)) - SEARCH("]", CELL("filename", $A$1))) -> 
B5: Company | C5: Total Totex for Price control (£m) | D5: Totex requested in business plan (£m) | E5: Materiality (%) | F5: Type of assessment | G5: Efficiency factor | H5: Shallow dive output | I5: Justification
A6: 1 | B6: ANH | C6: =INDEX(Water_totex!F:F,MATCH(B6,Water_totex!A:A,0)) -> 4187.353839 | D6: =_xlfn.XLOOKUP(B6,'Final Input'!$A$4:$A$21,'Final Input'!$K$4:$K$21,"Not Found",0) -> 0 | E6: =D6/C6 -> 0 | G6: =_xlfn.XLOOKUP(B6,'F_Inputs SDEff'!$A$8:$A$24,'F_Inputs SDEff'!$K$8:$K$24,"Not Found",0) -> 0.02 | H6: =D6*(1-G6) -> 0
A7: 2 | B7: WSH | C7: =INDEX(Water_totex!F:F,MATCH(B7,Water_totex!A:A,0)) -> 2365.636 | D7: =_xlfn.XLOOKUP(B7,'Final Input'!$A$4:$A$21,'Final Input'!$K$4:$K$21,"Not Found",0) -> 5.68 | E7: =D7/C7 -> 0.002401045638 | F7: Shallow dive | G7: =_xlfn.XLOOKUP(B7,'F_Inputs SDEff'!$A$8:$A$24,'F_Inputs SDEff'!$K$8:$K$24,"Not Found",0) -> 0.01 | H7: 5.6232 | I7: Below shallow dive threshold, company specific efficiency challenge applied
A8: 3 | B8: HDD | C8: =INDEX(Water_totex!F:F,MATCH(B8,Water_totex!A:A,0)) -> 202.9929059 | D8: =_xlfn.XLOOKUP(B8,'Final Input'!$A$4:$A$21,'Final Input'!$K$4:$K$21,"Not Found",0) -> 0 | E8: 0 | G8: =_xlfn.XLOOKUP(B8,'F_Inputs SDEff'!$A$8:$A$24,'F_Inputs SDEff'!$K$8:$K$24,"Not Found",0) -> 0 | H8: 0
A9: 4 | B9: NES | C9: =INDEX(Water_totex!F:F,MATCH(B9,Water_totex!A:A,0)) -> 3081.858466 | D9: =_xlfn.XLOOKUP(B9,'Final Input'!$A$4:$A$21,'Final Input'!$K$4:$K$21,"Not Found",0) -> 0 | E9: 0 | G9: =_xlfn.XLOOKUP(B9,'F_Inputs SDEff'!$A$8:$A$24,'F_Inputs SDEff'!$K$8:$K$24,"Not Found",0) -> 0 | H9: 0
A10: 5 | B10: SVE | C10: =INDEX(Water_totex!F:F,MATCH(B10,Water_totex!A:A,0)) -> 5623.042444 | D10: =_xlfn.XLOOKUP(B10,'Final Input'!$A$4:$A$21,'Final Input'!$K$4:$K$21,"Not Found",0) -> 0 | E10: 0 | G10: =_xlfn.XLOOKUP(B10,'F_Inputs SDEff'!$A$8:$A$24,'F_Inputs SDEff'!$K$8:$K$24,"Not Found",0) -> 0 | H10: 0
A11: 6 | B11: SWB | C11: =INDEX(Water_totex!F:F,MATCH(B11,Water_totex!A:A,0)) -> 1570.211528 | D11: =_xlfn.XLOOKUP(B11,'Final Input'!$A$4:$A$21,'Final Input'!$K$4:$K$21,"Not Found",0) -> 9.35125 | E11: 0.005955407812 | F11: Shallow dive | G11: =_xlfn.XLOOKUP(B11,'F_Inputs SDEff'!$A$8:$A$24,'F_Inputs SDEff'!$K$8:$K$24,"Not Found",0) -> 0.1 | H11: 8.416125 | I11: Efficient against indicative benchmark, company specific efficiency challenge applied
A12: 7 | B12: SRN | C12: =INDEX(Water_totex!F:F,MATCH(B12,Water_totex!A:A,0)) -> 3614.763 | D12: =_xlfn.XLOOKUP(B12,'Final Input'!$A$4:$A$21,'Final Input'!$K$4:$K$21,"Not Found",0) -> 0 | E12: 0 | G12: =_xlfn.XLOOKUP(B12,'F_Inputs SDEff'!$A$8:$A$24,'F_Inputs SDEff'!$K$8:$K$24,"Not Found",0) -> 0.1 | H12: 0
A13: 8 | B13: TMS | C13: =INDEX(Water_totex!F:F,MATCH(B13,Water_totex!A:A,0)) -> 10162.16273 | D13: =_xlfn.XLOOKUP(B13,'Final Input'!$A$4:$A$21,'Final Input'!$K$4:$K$21,"Not Found",0) -> 1.695 | E13: 0.0001667952035 | F13: Shallow dive | G13: =_xlfn.XLOOKUP(B13,'F_Inputs SDEff'!$A$8:$A$24,'F_Inputs SDEff'!$K$8:$K$24,"Not Found",0) -> 0 | H13: 1.695 | I13: Below shallow dive threshold, company specific efficiency challenge applied
A14: 9 | B14: NWT | C14: =INDEX(Water_totex!F:F,MATCH(B14,Water_totex!A:A,0)) -> 4204.144554 | D14: =_xlfn.XLOOKUP(B14,'Final Input'!$A$4:$A$21,'Final Input'!$K$4:$K$21,"Not Found",0) -> 2.606317156 | E14: 0.000619939948 | F14: Shallow dive | G14: =_xlfn.XLOOKUP(B14,'F_Inputs SDEff'!$A$8:$A$24,'F_Inputs SDEff'!$K$8:$K$24,"Not Found",0) -> 0 | H14: 2.606317156 | I14: Below shallow dive threshold, company specific efficiency challenge applied
A15: 10 | B15: WSX | C15: =INDEX(Water_totex!F:F,MATCH(B15,Water_totex!A:A,0)) -> 1136.356395 | D15: =_xlfn.XLOOKUP(B15,'Final Input'!$A$4:$A$21,'Final Input'!$K$4:$K$21,"Not Found",0) -> 0 | E15: 0 | G15: =_xlfn.XLOOKUP(B15,'F_Inputs SDEff'!$A$8:$A$24,'F_Inputs SDEff'!$K$8:$K$24,"Not Found",0) -> 0.07 | H15: 0
A16: 11 | B16: YKY | C16: =INDEX(Water_totex!F:F,MATCH(B16,Water_totex!A:A,0)) -> 3120.05052 | D16: =_xlfn.XLOOKUP(B16,'Final Input'!$A$4:$A$21,'Final Input'!$K$4:$K$21,"Not Found",0) -> 6.2577152 | E16: 0.002005645473 | F16: Shallow dive | G16: =_xlfn.XLOOKUP(B16,'F_Inputs SDEff'!$A$8:$A$24,'F_Inputs SDEff'!$K$8:$K$24,"Not Found",0) -> 0 | H16: =D16*(1-G16) -> 6.2577152 | I16: Below shallow dive threshold, company specific efficiency challenge applied
A17: 12 | B17: AFW | C17: =INDEX(Water_totex!F:F,MATCH(B17,Water_totex!A:A,0)) -> 2157.018576 | D17: =_xlfn.XLOOKUP(B17,'Final Input'!$A$4:$A$21,'Final Input'!$K$4:$K$21,"Not Found",0) -> 0 | E17: 0 | G17: =_xlfn.XLOOKUP(B17,'F_Inputs SDEff'!$A$8:$A$24,'F_Inputs SDEff'!$K$8:$K$24,"Not Found",0) -> 0.03 | H17: =D17*(1-G17) -> 0
A18: 13 | B18: BRL | C18: =INDEX(Water_totex!F:F,MATCH(B18,Water_totex!A:A,0)) -> 688.9547248 | D18: =_xlfn.XLOOKUP(B18,'Final Input'!$A$4:$A$21,'Final Input'!$K$4:$K$21,"Not Found",0) -> 0 | E18: 0 | G18: =_xlfn.XLOOKUP(B18,'F_Inputs SDEff'!$A$8:$A$24,'F_Inputs SDEff'!$K$8:$K$24,"Not Found",0) -> 0.06 | H18: 0
A19: 14 | B19: PRT | C19: =INDEX(Water_totex!F:F,MATCH(B19,Water_totex!A:A,0)) -> 341.6692826 | D19: =_xlfn.XLOOKUP(B19,'Final Input'!$A$4:$A$21,'Final Input'!$K$4:$K$21,"Not Found",0) -> 0 | E19: 0 | G19: =_xlfn.XLOOKUP(B19,'F_Inputs SDEff'!$A$8:$A$24,'F_Inputs SDEff'!$K$8:$K$24,"Not Found",0) -> 0.07 | H19: 0
A20: 15 | B20: SEW | C20: =INDEX(Water_totex!F:F,MATCH(B20,Water_totex!A:A,0)) -> 1862.837225 | D20: =_xlfn.XLOOKUP(B20,'Final Input'!$A$4:$A$21,'Final Input'!$K$4:$K$21,"Not Found",0) -> 0 | E20: 0 | G20: =_xlfn.XLOOKUP(B20,'F_Inputs SDEff'!$A$8:$A$24,'F_Inputs SDEff'!$K$8:$K$24,"Not Found",0) -> 0.1 | H20: 0
A21: 16 | B21: SSC | C21: =INDEX(Water_totex!F:F,MATCH(B21,Water_totex!A:A,0)) -> 737.9594339 | D21: =_xlfn.XLOOKUP(B21,'Final Input'!$A$4:$A$21,'Final Input'!$K$4:$K$21,"Not Found",0) -> 2.1 | E21: 0.002845684876 | F21: Shallow dive | G21: =_xlfn.XLOOKUP(B21,'F_Inputs SDEff'!$A$8:$A$24,'F_Inputs SDEff'!$K$8:$K$24,"Not Found",0) -> 0 | H21: =D21*(1-G21) -> 2.1 | I21: Below shallow dive threshold, company specific efficiency challenge applied
A22: 17 | B22: SES | C22: =INDEX(Water_totex!F:F,MATCH(B22,Water_totex!A:A,0)) -> 377.6353912 | D22: =_xlfn.XLOOKUP(B22,'Final Input'!$A$4:$A$21,'Final Input'!$K$4:$K$21,"Not Found",0) -> 2.001 | E22: 0.00529876184 | F22: Shallow dive | G22: =_xlfn.XLOOKUP(B22,'F_Inputs SDEff'!$A$8:$A$24,'F_Inputs SDEff'!$K$8:$K$24,"Not Found",0) -> 0.1 | H22: =D22*(1-G22) -> 1.8009 | I22: Efficient against indicative benchmark, company specific efficiency challenge applied
B23: Total | C23: =SUM(C6:C22) -> 45434.64701 | D23: =SUM(D6:D22) -> 29.69128236 | H23: =SUM(H6:H22) -> 28.49925736

Sheet Outputs >>

Sheet Allowance
A1: =RIGHT(CELL("filename", $A$1), LEN(CELL("filename", $A$1)) - SEARCH("]", CELL("filename", $A$1))) -> 
A3: Summary of allowed costs
A6: Cost allowance for 2025-2030 (£m in 2022-23 prices)
B9: Company | C9: Totex in business plan - wholesale water | D9: Net totex reallocated in/out | E9: Totex after reallocations | F9: SPF validation adjustment | G9: Base adjustment | H9: Totex after adjustments | I9: Shallow dive allowance | J9: Modelled allowance | K9: Deep dive allowance | L9: Totex allowed - wholesale water
A10: 1 | B10: ANH | C10: =SUMIF(ConsInput[Acronym], Allowance!B10, ConsInput[Total 2023-30]) -> 0 | E10: =C10-D10 -> 0 | I10: =SUMIF('Materiality & shallow dive'!$B$6:$B$22, B10, 'Materiality & shallow dive'!$H$6:$H$22) -> 0 | L10: =I10 -> 0
A11: 2 | B11: WSH | C11: =SUMIF(ConsInput[Acronym], Allowance!B11, ConsInput[Total 2023-30]) -> 5.68 | E11: =C11-D11 -> 5.68 | I11: =SUMIF('Materiality & shallow dive'!$B$6:$B$22, B11, 'Materiality & shallow dive'!$H$6:$H$22) -> 5.6232 | L11: =I11 -> 5.6232
A12: 3 | B12: HDD | C12: =SUMIF(ConsInput[Acronym], Allowance!B12, ConsInput[Total 2023-30]) -> 0 | E12: 0 | I12: =SUMIF('Materiality & shallow dive'!$B$6:$B$22, B12, 'Materiality & shallow dive'!$H$6:$H$22) -> 0 | L12: =I12 -> 0
A13: 4 | B13: NES | C13: =SUMIF(ConsInput[Acronym], Allowance!B13, ConsInput[Total 2023-30]) -> 0 | E13: 0 | I13: =SUMIF('Materiality & shallow dive'!$B$6:$B$22, B13, 'Materiality & shallow dive'!$H$6:$H$22) -> 0 | L13: 0
A14: 5 | B14: SVE | C14: =SUMIF(ConsInput[Acronym], Allowance!B14, ConsInput[Total 2023-30]) -> 0 | E14: 0 | I14: =SUMIF('Materiality & shallow dive'!$B$6:$B$22, B14, 'Materiality & shallow dive'!$H$6:$H$22) -> 0 | L14: =I14 -> 0
A15: 6 | B15: SWB | C15: =SUMIF(ConsInput[Acronym], Allowance!B15, ConsInput[Total 2023-30]) -> 9.35125 | E15: 9.35125 | I15: =SUMIF('Materiality & shallow dive'!$B$6:$B$22, B15, 'Materiality & shallow dive'!$H$6:$H$22) -> 8.416125 | L15: 8.416125
A16: 7 | B16: SRN | C16: =SUMIF(ConsInput[Acronym], Allowance!B16, ConsInput[Total 2023-30]) -> 0 | E16: 0 | I16: =SUMIF('Materiality & shallow dive'!$B$6:$B$22, B16, 'Materiality & shallow dive'!$H$6:$H$22) -> 0 | L16: 0
A17: 8 | B17: TMS | C17: =SUMIF(ConsInput[Acronym], Allowance!B17, ConsInput[Total 2023-30]) -> 1.695 | E17: 1.695 | I17: =SUMIF('Materiality & shallow dive'!$B$6:$B$22, B17, 'Materiality & shallow dive'!$H$6:$H$22) -> 1.695 | L17: 1.695
A18: 9 | B18: NWT | C18: =SUMIF(ConsInput[Acronym], Allowance!B18, ConsInput[Total 2023-30]) -> 2.606317156 | E18: 2.606317156 | I18: =SUMIF('Materiality & shallow dive'!$B$6:$B$22, B18, 'Materiality & shallow dive'!$H$6:$H$22) -> 2.606317156 | L18: 2.606317156
A19: 10 | B19: WSX | C19: =SUMIF(ConsInput[Acronym], Allowance!B19, ConsInput[Total 2023-30]) -> 0 | E19: 0 | I19: =SUMIF('Materiality & shallow dive'!$B$6:$B$22, B19, 'Materiality & shallow dive'!$H$6:$H$22) -> 0 | L19: 0
A20: 11 | B20: YKY | C20: =SUMIF(ConsInput[Acronym], Allowance!B20, ConsInput[Total 2023-30]) -> 6.2577152 | E20: 6.2577152 | I20: =SUMIF('Materiality & shallow dive'!$B$6:$B$22, B20, 'Materiality & shallow dive'!$H$6:$H$22) -> 6.2577152 | L20: 6.2577152
A21: 12 | B21: AFW | C21: =SUMIF(ConsInput[Acronym], Allowance!B21, ConsInput[Total 2023-30]) -> 0 | E21: 0 | I21: =SUMIF('Materiality & shallow dive'!$B$6:$B$22, B21, 'Materiality & shallow dive'!$H$6:$H$22) -> 0 | L21: 0
A22: 13 | B22: BRL | C22: =SUMIF(ConsInput[Acronym], Allowance!B22, ConsInput[Total 2023-30]) -> 0 | E22: 0 | I22: =SUMIF('Materiality & shallow dive'!$B$6:$B$22, B22, 'Materiality & shallow dive'!$H$6:$H$22) -> 0 | L22: 0
A23: 14 | B23: PRT | C23: =SUMIF(ConsInput[Acronym], Allowance!B23, ConsInput[Total 2023-30]) -> 0 | E23: 0 | I23: =SUMIF('Materiality & shallow dive'!$B$6:$B$22, B23, 'Materiality & shallow dive'!$H$6:$H$22) -> 0 | L23: 0
A24: 15 | B24: SEW | C24: =SUMIF(ConsInput[Acronym], Allowance!B24, ConsInput[Total 2023-30]) -> 0 | E24: 0 | I24: =SUMIF('Materiality & shallow dive'!$B$6:$B$22, B24, 'Materiality & shallow dive'!$H$6:$H$22) -> 0 | L24: 0
A25: 16 | B25: SSC | C25: =SUMIF(ConsInput[Acronym], Allowance!B25, ConsInput[Total 2023-30]) -> 2.1 | E25: 2.1 | I25: =SUMIF('Materiality & shallow dive'!$B$6:$B$22, B25, 'Materiality & shallow dive'!$H$6:$H$22) -> 2.1 | L25: 2.1
A26: 17 | B26: SES | C26: =SUMIF(ConsInput[Acronym], Allowance!B26, ConsInput[Total 2023-30]) -> 2.001 | E26: 2.001 | I26: =SUMIF('Materiality & shallow dive'!$B$6:$B$22, B26, 'Materiality & shallow dive'!$H$6:$H$22) -> 1.8009 | L26: 1.8009
B27: Total | C27: =SUM(C10:C26) -> 29.69128236 | E27: =SUM(E10:E26) -> 29.69128236 | I27: =SUM(I10:I26) -> 28.49925736 | L27: =SUM(L10:L26) -> 28.49925736

Sheet Outputs to aggregator
A1: =RIGHT(CELL("filename", $A$1), LEN(CELL("filename", $A$1)) - SEARCH("]", CELL("filename", $A$1))) -> 
A3: Summary of submitted costs before and after reallocations
B5: As submitted | O5: As assessed
B6: Company | C6: Totex in business plan - wholesale water | D6: 2023/2024 - transition exp | E6: 2023/2024 - accelerated prog | F6: 2024/2025 - transition exp | G6: 2024/2025 - accelerated prog | H6: 2025/2026 | I6: 2026/2027 | J6: 2027/2028 | K6: 2028/2029 | L6: 2029/2030 | M6: Total | O6: Company | P6: Totex in business plan - wholesale water | Q6: 2023/2024 - transition exp | R6: 2023/2024 - accelerated prog | S6: 2024/2025 - transition exp | T6: 2024/2025 - accelerated prog | U6: 2025/2026 | V6: 2026/2027 | W6: 2027/2028 | X6: 2028/2029 | Y6: 2029/2030 | Z6: Total
B7: =Allowance!B10 -> ANH | C7: =Allowance!C10 -> 0 | D7: =SUMIFS('F_Inputs BP'!F$9:F$59,'F_Inputs BP'!$A$9:$A$59,B7,'F_Inputs BP'!$B$9:$B$59,"CW12_006TOT_PR24") -> 0 | E7: =SUMIFS('F_Inputs BP'!H$9:H$59,'F_Inputs BP'!$A$9:$A$59,B7,'F_Inputs BP'!$B$9:$B$59,"CW17_006TOT_PR24") -> 0 | F7: =SUMIFS('F_Inputs BP'!G$9:G$59,'F_Inputs BP'!$A$9:$A$59,B7,'F_Inputs BP'!$B$9:$B$59,"CW12_006TOT_PR24") -> 0 | G7: =SUMIFS('F_Inputs BP'!I$9:I$59,'F_Inputs BP'!$A$9:$A$59,B7,'F_Inputs BP'!$B$9:$B$59,"CW17_006TOT_PR24") -> 0 | H7: =SUMIFS('Consolidated Input'!F$5:F$21, 'Consolidated Input'!$A$5:$A$21, $B7) -> 0 | I7: =SUMIFS('Consolidated Input'!G$5:G$21, 'Consolidated Input'!$A$5:$A$21, $B7) -> 0 | J7: =SUMIFS('Consolidated Input'!H$5:H$21, 'Consolidated Input'!$A$5:$A$21, $B7) -> 0 | K7: =SUMIFS('Consolidated Input'!I$5:I$21, 'Consolidated Input'!$A$5:$A$21, $B7) -> 0 | L7: =SUMIFS('Consolidated Input'!J$5:J$21, 'Consolidated Input'!$A$5:$A$21, $B7) -> 0 | M7: =SUM(D7:L7) -> 0 | O7: =Allowance!B10 -> ANH | P7: =Allowance!E10 -> 0 | Q7: =D7 -> 0 | R7: =E7 -> 0 | S7: 0 | T7: 0 | U7: =SUMIFS('Final Input'!F$5:F$21, 'Final Input'!$A$5:$A$21, $O7) -> 0 | V7: =SUMIFS('Final Input'!G$5:G$21, 'Final Input'!$A$5:$A$21, $O7) -> 0 | W7: =SUMIFS('Final Input'!H$5:H$21, 'Final Input'!$A$5:$A$21, $O7) -> 0 | X7: =SUMIFS('Final Input'!I$5:I$21, 'Final Input'!$A$5:$A$21, $O7) -> 0 | Y7: =SUMIFS('Final Input'!J$5:J$21, 'Final Input'!$A$5:$A$21, $O7) -> 0 | Z7: =SUM(Q7:Y7) -> 0
B8: =Allowance!B11 -> WSH | C8: =Allowance!C11 -> 5.68 | D8: =SUMIFS('F_Inputs BP'!F$9:F$59,'F_Inputs BP'!$A$9:$A$59,B8,'F_Inputs BP'!$B$9:$B$59,"CW12_006TOT_PR24") -> 0 | E8: =SUMIFS('F_Inputs BP'!H$9:H$59,'F_Inputs BP'!$A$9:$A$59,B8,'F_Inputs BP'!$B$9:$B$59,"CW17_006TOT_PR24") -> 0 | F8: =SUMIFS('F_Inputs BP'!G$9:G$59,'F_Inputs BP'!$A$9:$A$59,B8,'F_Inputs BP'!$B$9:$B$59,"CW12_006TOT_PR24") -> 0 | G8: =SUMIFS('F_Inputs BP'!I$9:I$59,'F_Inputs BP'!$A$9:$A$59,B8,'F_Inputs BP'!$B$9:$B$59,"CW17_006TOT_PR24") -> 0 | H8: =SUMIFS('Consolidated Input'!F$5:F$21, 'Consolidated Input'!$A$5:$A$21, $B8) -> 1.704 | I8: =SUMIFS('Consolidated Input'!G$5:G$21, 'Consolidated Input'!$A$5:$A$21, $B8) -> 1.676 | J8: =SUMIFS('Consolidated Input'!H$5:H$21, 'Consolidated Input'!$A$5:$A$21, $B8) -> 0.76 | K8: =SUMIFS('Consolidated Input'!I$5:I$21, 'Consolidated Input'!$A$5:$A$21, $B8) -> 0.765 | L8: =SUMIFS('Consolidated Input'!J$5:J$21, 'Consolidated Input'!$A$5:$A$21, $B8) -> 0.775 | M8: =SUM(D8:L8) -> 5.68 | O8: =Allowance!B11 -> WSH | P8: =Allowance!E11 -> 5.68 | Q8: =D8 -> 0 | R8: 0 | S8: 0 | T8: 0 | U8: =SUMIFS('Final Input'!F$5:F$21, 'Final Input'!$A$5:$A$21, $O8) -> 1.704 | V8: =SUMIFS('Final Input'!G$5:G$21, 'Final Input'!$A$5:$A$21, $O8) -> 1.676 | W8: =SUMIFS('Final Input'!H$5:H$21, 'Final Input'!$A$5:$A$21, $O8) -> 0.76 | X8: =SUMIFS('Final Input'!I$5:I$21, 'Final Input'!$A$5:$A$21, $O8) -> 0.765 | Y8: =SUMIFS('Final Input'!J$5:J$21, 'Final Input'!$A$5:$A$21, $O8) -> 0.775 | Z8: =SUM(Q8:Y8) -> 5.68
B9: =Allowance!B12 -> HDD | C9: =Allowance!C12 -> 0 | D9: =SUMIFS('F_Inputs BP'!F$9:F$59,'F_Inputs BP'!$A$9:$A$59,B9,'F_Inputs BP'!$B$9:$B$59,"CW12_006TOT_PR24") -> 0 | E9: =SUMIFS('F_Inputs BP'!H$9:H$59,'F_Inputs BP'!$A$9:$A$59,B9,'F_Inputs BP'!$B$9:$B$59,"CW17_006TOT_PR24") -> 0 | F9: =SUMIFS('F_Inputs BP'!G$9:G$59,'F_Inputs BP'!$A$9:$A$59,B9,'F_Inputs BP'!$B$9:$B$59,"CW12_006TOT_PR24") -> 0 | G9: =SUMIFS('F_Inputs BP'!I$9:I$59,'F_Inputs BP'!$A$9:$A$59,B9,'F_Inputs BP'!$B$9:$B$59,"CW17_006TOT_PR24") -> 0 | H9: =SUMIFS('Consolidated Input'!F$5:F$21, 'Consolidated Input'!$A$5:$A$21, $B9) -> 0 | I9: =SUMIFS('Consolidated Input'!G$5:G$21, 'Consolidated Input'!$A$5:$A$21, $B9) -> 0 | J9: =SUMIFS('Consolidated Input'!H$5:H$21, 'Consolidated Input'!$A$5:$A$21, $B9) -> 0 | K9: =SUMIFS('Consolidated Input'!I$5:I$21, 'Consolidated Input'!$A$5:$A$21, $B9) -> 0 | L9: =SUMIFS('Consolidated Input'!J$5:J$21, 'Consolidated Input'!$A$5:$A$21, $B9) -> 0 | M9: 0 | O9: =Allowance!B12 -> HDD | P9: =Allowance!E12 -> 0 | Q9: 0 | R9: 0 | S9: 0 | T9: 0 | U9: =SUMIFS('Final Input'!F$5:F$21, 'Final Input'!$A$5:$A$21, $O9) -> 0 | V9: =SUMIFS('Final Input'!G$5:G$21, 'Final Input'!$A$5:$A$21, $O9) -> 0 | W9: =SUMIFS('Final Input'!H$5:H$21, 'Final Input'!$A$5:$A$21, $O9) -> 0 | X9: =SUMIFS('Final Input'!I$5:I$21, 'Final Input'!$A$5:$A$21, $O9) -> 0 | Y9: =SUMIFS('Final Input'!J$5:J$21, 'Final Input'!$A$5:$A$21, $O9) -> 0 | Z9: 0
B10: =Allowance!B13 -> NES | C10: =Allowance!C13 -> 0 | D10: =SUMIFS('F_Inputs BP'!F$9:F$59,'F_Inputs BP'!$A$9:$A$59,B10,'F_Inputs BP'!$B$9:$B$59,"CW12_006TOT_PR24") -> 0 | E10: =SUMIFS('F_Inputs BP'!H$9:H$59,'F_Inputs BP'!$A$9:$A$59,B10,'F_Inputs BP'!$B$9:$B$59,"CW17_006TOT_PR24") -> 0 | F10: =SUMIFS('F_Inputs BP'!G$9:G$59,'F_Inputs BP'!$A$9:$A$59,B10,'F_Inputs BP'!$B$9:$B$59,"CW12_006TOT_PR24") -> 0 | G10: =SUMIFS('F_Inputs BP'!I$9:I$59,'F_Inputs BP'!$A$9:$A$59,B10,'F_Inputs BP'!$B$9:$B$59,"CW17_006TOT_PR24") -> 0 | H10: =SUMIFS('Consolidated Input'!F$5:F$21, 'Consolidated Input'!$A$5:$A$21, $B10) -> 0 | I10: =SUMIFS('Consolidated Input'!G$5:G$21, 'Consolidated Input'!$A$5:$A$21, $B10) -> 0 | J10: =SUMIFS('Consolidated Input'!H$5:H$21, 'Consolidated Input'!$A$5:$A$21, $B10) -> 0 | K10: =SUMIFS('Consolidated Input'!I$5:I$21, 'Consolidated Input'!$A$5:$A$21, $B10) -> 0 | L10: =SUMIFS('Consolidated Input'!J$5:J$21, 'Consolidated Input'!$A$5:$A$21, $B10) -> 0 | M10: 0 | O10: =Allowance!B13 -> NES | P10: =Allowance!E13 -> 0 | Q10: 0 | R10: 0 | S10: 0 | T10: 0 | U10: =SUMIFS('Final Input'!F$5:F$21, 'Final Input'!$A$5:$A$21, $O10) -> 0 | V10: =SUMIFS('Final Input'!G$5:G$21, 'Final Input'!$A$5:$A$21, $O10) -> 0 | W10: =SUMIFS('Final Input'!H$5:H$21, 'Final Input'!$A$5:$A$21, $O10) -> 0 | X10: =SUMIFS('Final Input'!I$5:I$21, 'Final Input'!$A$5:$A$21, $O10) -> 0 | Y10: =SUMIFS('Final Input'!J$5:J$21, 'Final Input'!$A$5:$A$21, $O10) -> 0 | Z10: 0
B11: =Allowance!B14 -> SVE | C11: =Allowance!C14 -> 0 | D11: =SUMIFS('F_Inputs BP'!F$9:F$59,'F_Inputs BP'!$A$9:$A$59,B11,'F_Inputs BP'!$B$9:$B$59,"CW12_006TOT_PR24") -> 0 | E11: =SUMIFS('F_Inputs BP'!H$9:H$59,'F_Inputs BP'!$A$9:$A$59,B11,'F_Inputs BP'!$B$9:$B$59,"CW17_006TOT_PR24") -> 0 | F11: =SUMIFS('F_Inputs BP'!G$9:G$59,'F_Inputs BP'!$A$9:$A$59,B11,'F_Inputs BP'!$B$9:$B$59,"CW12_006TOT_PR24") -> 0 | G11: =SUMIFS('F_Inputs BP'!I$9:I$59,'F_Inputs BP'!$A$9:$A$59,B11,'F_Inputs BP'!$B$9:$B$59,"CW17_006TOT_PR24") -> 0 | H11: =SUMIFS('Consolidated Input'!F$5:F$21, 'Consolidated Input'!$A$5:$A$21, $B11) -> 0 | I11: =SUMIFS('Consolidated Input'!G$5:G$21, 'Consolidated Input'!$A$5:$A$21, $B11) -> 0 | J11: =SUMIFS('Consolidated Input'!H$5:H$21, 'Consolidated Input'!$A$5:$A$21, $B11) -> 0 | K11: =SUMIFS('Consolidated Input'!I$5:I$21, 'Consolidated Input'!$A$5:$A$21, $B11) -> 0 | L11: =SUMIFS('Consolidated Input'!J$5:J$21, 'Consolidated Input'!$A$5:$A$21, $B11) -> 0 | M11: 0 | O11: =Allowance!B14 -> SVE | P11: =Allowance!E14 -> 0 | Q11: 0 | R11: 0 | S11: 0 | T11: 0 | U11: =SUMIFS('Final Input'!F$5:F$21, 'Final Input'!$A$5:$A$21, $O11) -> 0 | V11: =SUMIFS('Final Input'!G$5:G$21, 'Final Input'!$A$5:$A$21, $O11) -> 0 | W11: =SUMIFS('Final Input'!H$5:H$21, 'Final Input'!$A$5:$A$21, $O11) -> 0 | X11: =SUMIFS('Final Input'!I$5:I$21, 'Final Input'!$A$5:$A$21, $O11) -> 0 | Y11: =SUMIFS('Final Input'!J$5:J$21, 'Final Input'!$A$5:$A$21, $O11) -> 0 | Z11: 0
B12: =Allowance!B15 -> SWB | C12: =Allowance!C15 -> 9.35125 | D12: =SUMIFS('F_Inputs BP'!F$9:F$59,'F_Inputs BP'!$A$9:$A$59,B12,'F_Inputs BP'!$B$9:$B$59,"CW12_006TOT_PR24") -> 0 | E12: =SUMIFS('F_Inputs BP'!H$9:H$59,'F_Inputs BP'!$A$9:$A$59,B12,'F_Inputs BP'!$B$9:$B$59,"CW17_006TOT_PR24") -> 0 | F12: =SUMIFS('F_Inputs BP'!G$9:G$59,'F_Inputs BP'!$A$9:$A$59,B12,'F_Inputs BP'!$B$9:$B$59,"CW12_006TOT_PR24") -> 0 | G12: =SUMIFS('F_Inputs BP'!I$9:I$59,'F_Inputs BP'!$A$9:$A$59,B12,'F_Inputs BP'!$B$9:$B$59,"CW17_006TOT_PR24") -> 0 | H12: =SUMIFS('Consolidated Input'!F$5:F$21, 'Consolidated Input'!$A$5:$A$21, $B12) -> 1.87025 | I12: =SUMIFS('Consolidated Input'!G$5:G$21, 'Consolidated Input'!$A$5:$A$21, $B12) -> 1.87025 | J12: =SUMIFS('Consolidated Input'!H$5:H$21, 'Consolidated Input'!$A$5:$A$21, $B12) -> 1.87025 | K12: =SUMIFS('Consolidated Input'!I$5:I$21, 'Consolidated Input'!$A$5:$A$21, $B12) -> 1.87025 | L12: =SUMIFS('Consolidated Input'!J$5:J$21, 'Consolidated Input'!$A$5:$A$21, $B12) -> 1.87025 | M12: 9.35125 | O12: =Allowance!B15 -> SWB | P12: =Allowance!E15 -> 9.35125 | Q12: 0 | R12: 0 | S12: 0 | T12: 0 | U12: =SUMIFS('Final Input'!F$5:F$21, 'Final Input'!$A$5:$A$21, $O12) -> 1.87025 | V12: =SUMIFS('Final Input'!G$5:G$21, 'Final Input'!$A$5:$A$21, $O12) -> 1.87025 | W12: =SUMIFS('Final Input'!H$5:H$21, 'Final Input'!$A$5:$A$21, $O12) -> 1.87025 | X12: =SUMIFS('Final Input'!I$5:I$21, 'Final Input'!$A$5:$A$21, $O12) -> 1.87025 | Y12: =SUMIFS('Final Input'!J$5:J$21, 'Final Input'!$A$5:$A$21, $O12) -> 1.87025 | Z12: 9.35125
B13: =Allowance!B16 -> SRN | C13: =Allowance!C16 -> 0 | D13: =SUMIFS('F_Inputs BP'!F$9:F$59,'F_Inputs BP'!$A$9:$A$59,B13,'F_Inputs BP'!$B$9:$B$59,"CW12_006TOT_PR24") -> 0 | E13: =SUMIFS('F_Inputs BP'!H$9:H$59,'F_Inputs BP'!$A$9:$A$59,B13,'F_Inputs BP'!$B$9:$B$59,"CW17_006TOT_PR24") -> 0 | F13: =SUMIFS('F_Inputs BP'!G$9:G$59,'F_Inputs BP'!$A$9:$A$59,B13,'F_Inputs BP'!$B$9:$B$59,"CW12_006TOT_PR24") -> 0 | G13: =SUMIFS('F_Inputs BP'!I$9:I$59,'F_Inputs BP'!$A$9:$A$59,B13,'F_Inputs BP'!$B$9:$B$59,"CW17_006TOT_PR24") -> 0 | H13: =SUMIFS('Consolidated Input'!F$5:F$21, 'Consolidated Input'!$A$5:$A$21, $B13) -> 0 | I13: =SUMIFS('Consolidated Input'!G$5:G$21, 'Consolidated Input'!$A$5:$A$21, $B13) -> 0 | J13: =SUMIFS('Consolidated Input'!H$5:H$21, 'Consolidated Input'!$A$5:$A$21, $B13) -> 0 | K13: =SUMIFS('Consolidated Input'!I$5:I$21, 'Consolidated Input'!$A$5:$A$21, $B13) -> 0 | L13: =SUMIFS('Consolidated Input'!J$5:J$21, 'Consolidated Input'!$A$5:$A$21, $B13) -> 0 | M13: 0 | O13: =Allowance!B16 -> SRN | P13: =Allowance!E16 -> 0 | Q13: 0 | R13: 0 | S13: 0 | T13: 0 | U13: =SUMIFS('Final Input'!F$5:F$21, 'Final Input'!$A$5:$A$21, $O13) -> 0 | V13: =SUMIFS('Final Input'!G$5:G$21, 'Final Input'!$A$5:$A$21, $O13) -> 0 | W13: =SUMIFS('Final Input'!H$5:H$21, 'Final Input'!$A$5:$A$21, $O13) -> 0 | X13: =SUMIFS('Final Input'!I$5:I$21, 'Final Input'!$A$5:$A$21, $O13) -> 0 | Y13: =SUMIFS('Final Input'!J$5:J$21, 'Final Input'!$A$5:$A$21, $O13) -> 0 | Z13: 0
B14: =Allowance!B17 -> TMS | C14: =Allowance!C17 -> 1.695 | D14: =SUMIFS('F_Inputs BP'!F$9:F$59,'F_Inputs BP'!$A$9:$A$59,B14,'F_Inputs BP'!$B$9:$B$59,"CW12_006TOT_PR24") -> 0 | E14: =SUMIFS('F_Inputs BP'!H$9:H$59,'F_Inputs BP'!$A$9:$A$59,B14,'F_Inputs BP'!$B$9:$B$59,"CW17_006TOT_PR24") -> 0 | F14: =SUMIFS('F_Inputs BP'!G$9:G$59,'F_Inputs BP'!$A$9:$A$59,B14,'F_Inputs BP'!$B$9:$B$59,"CW12_006TOT_PR24") -> 0 | G14: =SUMIFS('F_Inputs BP'!I$9:I$59,'F_Inputs BP'!$A$9:$A$59,B14,'F_Inputs BP'!$B$9:$B$59,"CW17_006TOT_PR24") -> 0 | H14: =SUMIFS('Consolidated Input'!F$5:F$21, 'Consolidated Input'!$A$5:$A$21, $B14) -> 0.114 | I14: =SUMIFS('Consolidated Input'!G$5:G$21, 'Consolidated Input'!$A$5:$A$21, $B14) -> 0.541 | J14: =SUMIFS('Consolidated Input'!H$5:H$21, 'Consolidated Input'!$A$5:$A$21, $B14) -> 0.519 | K14: =SUMIFS('Consolidated Input'!I$5:I$21, 'Consolidated Input'!$A$5:$A$21, $B14) -> 0.521 | L14: =SUMIFS('Consolidated Input'!J$5:J$21, 'Consolidated Input'!$A$5:$A$21, $B14) -> 0 | M14: 1.695 | O14: =Allowance!B17 -> TMS | P14: =Allowance!E17 -> 1.695 | Q14: 0 | R14: 0 | S14: 0 | T14: 0 | U14: =SUMIFS('Final Input'!F$5:F$21, 'Final Input'!$A$5:$A$21, $O14) -> 0.114 | V14: =SUMIFS('Final Input'!G$5:G$21, 'Final Input'!$A$5:$A$21, $O14) -> 0.541 | W14: =SUMIFS('Final Input'!H$5:H$21, 'Final Input'!$A$5:$A$21, $O14) -> 0.519 | X14: =SUMIFS('Final Input'!I$5:I$21, 'Final Input'!$A$5:$A$21, $O14) -> 0.521 | Y14: =SUMIFS('Final Input'!J$5:J$21, 'Final Input'!$A$5:$A$21, $O14) -> 0 | Z14: 1.695
B15: =Allowance!B18 -> NWT | C15: =Allowance!C18 -> 2.606317156 | D15: =SUMIFS('F_Inputs BP'!F$9:F$59,'F_Inputs BP'!$A$9:$A$59,B15,'F_Inputs BP'!$B$9:$B$59,"CW12_006TOT_PR24") -> 0 | E15: =SUMIFS('F_Inputs BP'!H$9:H$59,'F_Inputs BP'!$A$9:$A$59,B15,'F_Inputs BP'!$B$9:$B$59,"CW17_006TOT_PR24") -> 0 | F15: =SUMIFS('F_Inputs BP'!G$9:G$59,'F_Inputs BP'!$A$9:$A$59,B15,'F_Inputs BP'!$B$9:$B$59,"CW12_006TOT_PR24") -> 0.0707137191 | G15: =SUMIFS('F_Inputs BP'!I$9:I$59,'F_Inputs BP'!$A$9:$A$59,B15,'F_Inputs BP'!$B$9:$B$59,"CW17_006TOT_PR24") -> 0 | H15: =SUMIFS('Consolidated Input'!F$5:F$21, 'Consolidated Input'!$A$5:$A$21, $B15) -> 0.2639852097 | I15: =SUMIFS('Consolidated Input'!G$5:G$21, 'Consolidated Input'!$A$5:$A$21, $B15) -> 1.501720622 | J15: =SUMIFS('Consolidated Input'!H$5:H$21, 'Consolidated Input'!$A$5:$A$21, $B15) -> 0.5716014928 | K15: =SUMIFS('Consolidated Input'!I$5:I$21, 'Consolidated Input'!$A$5:$A$21, $B15) -> 0.04646325433 | L15: =SUMIFS('Consolidated Input'!J$5:J$21, 'Consolidated Input'!$A$5:$A$21, $B15) -> 0.1518328585 | M15: 2.606317156 | O15: =Allowance!B18 -> NWT | P15: =Allowance!E18 -> 2.606317156 | Q15: 0 | R15: 0 | S15: 0.0707137191 | T15: 0 | U15: =SUMIFS('Final Input'!F$5:F$21, 'Final Input'!$A$5:$A$21, $O15) -> 0.2639852097 | V15: =SUMIFS('Final Input'!G$5:G$21, 'Final Input'!$A$5:$A$21, $O15) -> 1.501720622 | W15: =SUMIFS('Final Input'!H$5:H$21, 'Final Input'!$A$5:$A$21, $O15) -> 0.5716014928 | X15: =SUMIFS('Final Input'!I$5:I$21, 'Final Input'!$A$5:$A$21, $O15) -> 0.04646325433 | Y15: =SUMIFS('Final Input'!J$5:J$21, 'Final Input'!$A$5:$A$21, $O15) -> 0.1518328585 | Z15: 2.606317156
B16: =Allowance!B19 -> WSX | C16: =Allowance!C19 -> 0 | D16: =SUMIFS('F_Inputs BP'!F$9:F$59,'F_Inputs BP'!$A$9:$A$59,B16,'F_Inputs BP'!$B$9:$B$59,"CW12_006TOT_PR24") -> 0 | E16: =SUMIFS('F_Inputs BP'!H$9:H$59,'F_Inputs BP'!$A$9:$A$59,B16,'F_Inputs BP'!$B$9:$B$59,"CW17_006TOT_PR24") -> 0 | F16: =SUMIFS('F_Inputs BP'!G$9:G$59,'F_Inputs BP'!$A$9:$A$59,B16,'F_Inputs BP'!$B$9:$B$59,"CW12_006TOT_PR24") -> 0 | G16: =SUMIFS('F_Inputs BP'!I$9:I$59,'F_Inputs BP'!$A$9:$A$59,B16,'F_Inputs BP'!$B$9:$B$59,"CW17_006TOT_PR24") -> 0 | H16: =SUMIFS('Consolidated Input'!F$5:F$21, 'Consolidated Input'!$A$5:$A$21, $B16) -> 0 | I16: =SUMIFS('Consolidated Input'!G$5:G$21, 'Consolidated Input'!$A$5:$A$21, $B16) -> 0 | J16: =SUMIFS('Consolidated Input'!H$5:H$21, 'Consolidated Input'!$A$5:$A$21, $B16) -> 0 | K16: =SUMIFS('Consolidated Input'!I$5:I$21, 'Consolidated Input'!$A$5:$A$21, $B16) -> 0 | L16: =SUMIFS('Consolidated Input'!J$5:J$21, 'Consolidated Input'!$A$5:$A$21, $B16) -> 0 | M16: 0 | O16: =Allowance!B19 -> WSX | P16: =Allowance!E19 -> 0 | Q16: 0 | R16: 0 | S16: 0 | T16: 0 | U16: =SUMIFS('Final Input'!F$5:F$21, 'Final Input'!$A$5:$A$21, $O16) -> 0 | V16: =SUMIFS('Final Input'!G$5:G$21, 'Final Input'!$A$5:$A$21, $O16) -> 0 | W16: =SUMIFS('Final Input'!H$5:H$21, 'Final Input'!$A$5:$A$21, $O16) -> 0 | X16: =SUMIFS('Final Input'!I$5:I$21, 'Final Input'!$A$5:$A$21, $O16) -> 0 | Y16: =SUMIFS('Final Input'!J$5:J$21, 'Final Input'!$A$5:$A$21, $O16) -> 0 | Z16: 0
B17: =Allowance!B20 -> YKY | C17: =Allowance!C20 -> 6.2577152 | D17: =SUMIFS('F_Inputs BP'!F$9:F$59,'F_Inputs BP'!$A$9:$A$59,B17,'F_Inputs BP'!$B$9:$B$59,"CW12_006TOT_PR24") -> 0 | E17: =SUMIFS('F_Inputs BP'!H$9:H$59,'F_Inputs BP'!$A$9:$A$59,B17,'F_Inputs BP'!$B$9:$B$59,"CW17_006TOT_PR24") -> 0 | F17: =SUMIFS('F_Inputs BP'!G$9:G$59,'F_Inputs BP'!$A$9:$A$59,B17,'F_Inputs BP'!$B$9:$B$59,"CW12_006TOT_PR24") -> 0 | G17: =SUMIFS('F_Inputs BP'!I$9:I$59,'F_Inputs BP'!$A$9:$A$59,B17,'F_Inputs BP'!$B$9:$B$59,"CW17_006TOT_PR24") -> 0 | H17: =SUMIFS('Consolidated Input'!F$5:F$21, 'Consolidated Input'!$A$5:$A$21, $B17) -> 1.0055168 | I17: =SUMIFS('Consolidated Input'!G$5:G$21, 'Consolidated Input'!$A$5:$A$21, $B17) -> 1.5313664 | J17: =SUMIFS('Consolidated Input'!H$5:H$21, 'Consolidated Input'!$A$5:$A$21, $B17) -> 1.6405248 | K17: =SUMIFS('Consolidated Input'!I$5:I$21, 'Consolidated Input'!$A$5:$A$21, $B17) -> 1.3361408 | L17: =SUMIFS('Consolidated Input'!J$5:J$21, 'Consolidated Input'!$A$5:$A$21, $B17) -> 0.7441664 | M17: 6.2577152 | O17: =Allowance!B20 -> YKY | P17: =Allowance!E20 -> 6.2577152 | Q17: 0 | R17: 0 | S17: 0 | T17: 0 | U17: =SUMIFS('Final Input'!F$5:F$21, 'Final Input'!$A$5:$A$21, $O17) -> 1.0055168 | V17: =SUMIFS('Final Input'!G$5:G$21, 'Final Input'!$A$5:$A$21, $O17) -> 1.5313664 | W17: =SUMIFS('Final Input'!H$5:H$21, 'Final Input'!$A$5:$A$21, $O17) -> 1.6405248 | X17: =SUMIFS('Final Input'!I$5:I$21, 'Final Input'!$A$5:$A$21, $O17) -> 1.3361408 | Y17: =SUMIFS('Final Input'!J$5:J$21, 'Final Input'!$A$5:$A$21, $O17) -> 0.7441664 | Z17: 6.2577152
B18: =Allowance!B21 -> AFW | C18: =Allowance!C21 -> 0 | D18: =SUMIFS('F_Inputs BP'!F$9:F$59,'F_Inputs BP'!$A$9:$A$59,B18,'F_Inputs BP'!$B$9:$B$59,"CW12_006TOT_PR24") -> 0 | E18: =SUMIFS('F_Inputs BP'!H$9:H$59,'F_Inputs BP'!$A$9:$A$59,B18,'F_Inputs BP'!$B$9:$B$59,"CW17_006TOT_PR24") -> 0 | F18: =SUMIFS('F_Inputs BP'!G$9:G$59,'F_Inputs BP'!$A$9:$A$59,B18,'F_Inputs BP'!$B$9:$B$59,"CW12_006TOT_PR24") -> 0 | G18: =SUMIFS('F_Inputs BP'!I$9:I$59,'F_Inputs BP'!$A$9:$A$59,B18,'F_Inputs BP'!$B$9:$B$59,"CW17_006TOT_PR24") -> 0 | H18: =SUMIFS('Consolidated Input'!F$5:F$21, 'Consolidated Input'!$A$5:$A$21, $B18) -> 0 | I18: =SUMIFS('Consolidated Input'!G$5:G$21, 'Consolidated Input'!$A$5:$A$21, $B18) -> 0 | J18: =SUMIFS('Consolidated Input'!H$5:H$21, 'Consolidated Input'!$A$5:$A$21, $B18) -> 0 | K18: =SUMIFS('Consolidated Input'!I$5:I$21, 'Consolidated Input'!$A$5:$A$21, $B18) -> 0 | L18: =SUMIFS('Consolidated Input'!J$5:J$21, 'Consolidated Input'!$A$5:$A$21, $B18) -> 0 | M18: 0 | O18: =Allowance!B21 -> AFW | P18: =Allowance!E21 -> 0 | Q18: 0 | R18: 0 | S18: 0 | T18: 0 | U18: =SUMIFS('Final Input'!F$5:F$21, 'Final Input'!$A$5:$A$21, $O18) -> 0 | V18: =SUMIFS('Final Input'!G$5:G$21, 'Final Input'!$A$5:$A$21, $O18) -> 0 | W18: =SUMIFS('Final Input'!H$5:H$21, 'Final Input'!$A$5:$A$21, $O18) -> 0 | X18: =SUMIFS('Final Input'!I$5:I$21, 'Final Input'!$A$5:$A$21, $O18) -> 0 | Y18: =SUMIFS('Final Input'!J$5:J$21, 'Final Input'!$A$5:$A$21, $O18) -> 0 | Z18: 0
B19: =Allowance!B22 -> BRL | C19: =Allowance!C22 -> 0 | D19: =SUMIFS('F_Inputs BP'!F$9:F$59,'F_Inputs BP'!$A$9:$A$59,B19,'F_Inputs BP'!$B$9:$B$59,"CW12_006TOT_PR24") -> 0 | E19: =SUMIFS('F_Inputs BP'!H$9:H$59,'F_Inputs BP'!$A$9:$A$59,B19,'F_Inputs BP'!$B$9:$B$59,"CW17_006TOT_PR24") -> 0 | F19: =SUMIFS('F_Inputs BP'!G$9:G$59,'F_Inputs BP'!$A$9:$A$59,B19,'F_Inputs BP'!$B$9:$B$59,"CW12_006TOT_PR24") -> 0 | G19: =SUMIFS('F_Inputs BP'!I$9:I$59,'F_Inputs BP'!$A$9:$A$59,B19,'F_Inputs BP'!$B$9:$B$59,"CW17_006TOT_PR24") -> 0 | H19: =SUMIFS('Consolidated Input'!F$5:F$21, 'Consolidated Input'!$A$5:$A$21, $B19) -> 0 | I19: =SUMIFS('Consolidated Input'!G$5:G$21, 'Consolidated Input'!$A$5:$A$21, $B19) -> 0 | J19: =SUMIFS('Consolidated Input'!H$5:H$21, 'Consolidated Input'!$A$5:$A$21, $B19) -> 0 | K19: =SUMIFS('Consolidated Input'!I$5:I$21, 'Consolidated Input'!$A$5:$A$21, $B19) -> 0 | L19: =SUMIFS('Consolidated Input'!J$5:J$21, 'Consolidated Input'!$A$5:$A$21, $B19) -> 0 | M19: 0 | O19: =Allowance!B22 -> BRL | P19: =Allowance!E22 -> 0 | Q19: 0 | R19: 0 | S19: 0 | T19: 0 | U19: =SUMIFS('Final Input'!F$5:F$21, 'Final Input'!$A$5:$A$21, $O19) -> 0 | V19: =SUMIFS('Final Input'!G$5:G$21, 'Final Input'!$A$5:$A$21, $O19) -> 0 | W19: =SUMIFS('Final Input'!H$5:H$21, 'Final Input'!$A$5:$A$21, $O19) -> 0 | X19: =SUMIFS('Final Input'!I$5:I$21, 'Final Input'!$A$5:$A$21, $O19) -> 0 | Y19: =SUMIFS('Final Input'!J$5:J$21, 'Final Input'!$A$5:$A$21, $O19) -> 0 | Z19: 0
B20: =Allowance!B23 -> PRT | C20: =Allowance!C23 -> 0 | D20: =SUMIFS('F_Inputs BP'!F$9:F$59,'F_Inputs BP'!$A$9:$A$59,B20,'F_Inputs BP'!$B$9:$B$59,"CW12_006TOT_PR24") -> 0 | E20: =SUMIFS('F_Inputs BP'!H$9:H$59,'F_Inputs BP'!$A$9:$A$59,B20,'F_Inputs BP'!$B$9:$B$59,"CW17_006TOT_PR24") -> 0 | F20: =SUMIFS('F_Inputs BP'!G$9:G$59,'F_Inputs BP'!$A$9:$A$59,B20,'F_Inputs BP'!$B$9:$B$59,"CW12_006TOT_PR24") -> 0 | G20: =SUMIFS('F_Inputs BP'!I$9:I$59,'F_Inputs BP'!$A$9:$A$59,B20,'F_Inputs BP'!$B$9:$B$59,"CW17_006TOT_PR24") -> 0 | H20: =SUMIFS('Consolidated Input'!F$5:F$21, 'Consolidated Input'!$A$5:$A$21, $B20) -> 0 | I20: =SUMIFS('Consolidated Input'!G$5:G$21, 'Consolidated Input'!$A$5:$A$21, $B20) -> 0 | J20: =SUMIFS('Consolidated Input'!H$5:H$21, 'Consolidated Input'!$A$5:$A$21, $B20) -> 0 | K20: =SUMIFS('Consolidated Input'!I$5:I$21, 'Consolidated Input'!$A$5:$A$21, $B20) -> 0 | L20: =SUMIFS('Consolidated Input'!J$5:J$21, 'Consolidated Input'!$A$5:$A$21, $B20) -> 0 | M20: 0 | O20: =Allowance!B23 -> PRT | P20: =Allowance!E23 -> 0 | Q20: 0 | R20: 0 | S20: 0 | T20: 0 | U20: =SUMIFS('Final Input'!F$5:F$21, 'Final Input'!$A$5:$A$21, $O20) -> 0 | V20: =SUMIFS('Final Input'!G$5:G$21, 'Final Input'!$A$5:$A$21, $O20) -> 0 | W20: =SUMIFS('Final Input'!H$5:H$21, 'Final Input'!$A$5:$A$21, $O20) -> 0 | X20: =SUMIFS('Final Input'!I$5:I$21, 'Final Input'!$A$5:$A$21, $O20) -> 0 | Y20: =SUMIFS('Final Input'!J$5:J$21, 'Final Input'!$A$5:$A$21, $O20) -> 0 | Z20: 0
B21: =Allowance!B24 -> SEW | C21: =Allowance!C24 -> 0 | D21: =SUMIFS('F_Inputs BP'!F$9:F$59,'F_Inputs BP'!$A$9:$A$59,B21,'F_Inputs BP'!$B$9:$B$59,"CW12_006TOT_PR24") -> 0 | E21: =SUMIFS('F_Inputs BP'!H$9:H$59,'F_Inputs BP'!$A$9:$A$59,B21,'F_Inputs BP'!$B$9:$B$59,"CW17_006TOT_PR24") -> 0 | F21: =SUMIFS('F_Inputs BP'!G$9:G$59,'F_Inputs BP'!$A$9:$A$59,B21,'F_Inputs BP'!$B$9:$B$59,"CW12_006TOT_PR24") -> 0 | G21: =SUMIFS('F_Inputs BP'!I$9:I$59,'F_Inputs BP'!$A$9:$A$59,B21,'F_Inputs BP'!$B$9:$B$59,"CW17_006TOT_PR24") -> 0 | H21: =SUMIFS('Consolidated Input'!F$5:F$21, 'Consolidated Input'!$A$5:$A$21, $B21) -> 0 | I21: =SUMIFS('Consolidated Input'!G$5:G$21, 'Consolidated Input'!$A$5:$A$21, $B21) -> 0 | J21: =SUMIFS('Consolidated Input'!H$5:H$21, 'Consolidated Input'!$A$5:$A$21, $B21) -> 0 | K21: =SUMIFS('Consolidated Input'!I$5:I$21, 'Consolidated Input'!$A$5:$A$21, $B21) -> 0 | L21: =SUMIFS('Consolidated Input'!J$5:J$21, 'Consolidated Input'!$A$5:$A$21, $B21) -> 0 | M21: 0 | O21: =Allowance!B24 -> SEW | P21: =Allowance!E24 -> 0 | Q21: 0 | R21: 0 | S21: 0 | T21: 0 | U21: =SUMIFS('Final Input'!F$5:F$21, 'Final Input'!$A$5:$A$21, $O21) -> 0 | V21: =SUMIFS('Final Input'!G$5:G$21, 'Final Input'!$A$5:$A$21, $O21) -> 0 | W21: =SUMIFS('Final Input'!H$5:H$21, 'Final Input'!$A$5:$A$21, $O21) -> 0 | X21: =SUMIFS('Final Input'!I$5:I$21, 'Final Input'!$A$5:$A$21, $O21) -> 0 | Y21: =SUMIFS('Final Input'!J$5:J$21, 'Final Input'!$A$5:$A$21, $O21) -> 0 | Z21: 0
B22: =Allowance!B25 -> SSC | C22: =Allowance!C25 -> 2.1 | D22: =SUMIFS('F_Inputs BP'!F$9:F$59,'F_Inputs BP'!$A$9:$A$59,B22,'F_Inputs BP'!$B$9:$B$59,"CW12_006TOT_PR24") -> 0 | E22: =SUMIFS('F_Inputs BP'!H$9:H$59,'F_Inputs BP'!$A$9:$A$59,B22,'F_Inputs BP'!$B$9:$B$59,"CW17_006TOT_PR24") -> 0 | F22: =SUMIFS('F_Inputs BP'!G$9:G$59,'F_Inputs BP'!$A$9:$A$59,B22,'F_Inputs BP'!$B$9:$B$59,"CW12_006TOT_PR24") -> 0 | G22: =SUMIFS('F_Inputs BP'!I$9:I$59,'F_Inputs BP'!$A$9:$A$59,B22,'F_Inputs BP'!$B$9:$B$59,"CW17_006TOT_PR24") -> 0 | H22: =SUMIFS('Consolidated Input'!F$5:F$21, 'Consolidated Input'!$A$5:$A$21, $B22) -> 0.42 | I22: =SUMIFS('Consolidated Input'!G$5:G$21, 'Consolidated Input'!$A$5:$A$21, $B22) -> 0.42 | J22: =SUMIFS('Consolidated Input'!H$5:H$21, 'Consolidated Input'!$A$5:$A$21, $B22) -> 0.42 | K22: =SUMIFS('Consolidated Input'!I$5:I$21, 'Consolidated Input'!$A$5:$A$21, $B22) -> 0.42 | L22: =SUMIFS('Consolidated Input'!J$5:J$21, 'Consolidated Input'!$A$5:$A$21, $B22) -> 0.42 | M22: 2.1 | O22: =Allowance!B25 -> SSC | P22: =Allowance!E25 -> 2.1 | Q22: 0 | R22: 0 | S22: 0 | T22: 0 | U22: =SUMIFS('Final Input'!F$5:F$21, 'Final Input'!$A$5:$A$21, $O22) -> 0.42 | V22: =SUMIFS('Final Input'!G$5:G$21, 'Final Input'!$A$5:$A$21, $O22) -> 0.42 | W22: =SUMIFS('Final Input'!H$5:H$21, 'Final Input'!$A$5:$A$21, $O22) -> 0.42 | X22: =SUMIFS('Final Input'!I$5:I$21, 'Final Input'!$A$5:$A$21, $O22) -> 0.42 | Y22: =SUMIFS('Final Input'!J$5:J$21, 'Final Input'!$A$5:$A$21, $O22) -> 0.42 | Z22: 2.1
B23: =Allowance!B26 -> SES | C23: =Allowance!C26 -> 2.001 | D23: =SUMIFS('F_Inputs BP'!F$9:F$59,'F_Inputs BP'!$A$9:$A$59,B23,'F_Inputs BP'!$B$9:$B$59,"CW12_006TOT_PR24") -> 0 | E23: =SUMIFS('F_Inputs BP'!H$9:H$59,'F_Inputs BP'!$A$9:$A$59,B23,'F_Inputs BP'!$B$9:$B$59,"CW17_006TOT_PR24") -> 0 | F23: =SUMIFS('F_Inputs BP'!G$9:G$59,'F_Inputs BP'!$A$9:$A$59,B23,'F_Inputs BP'!$B$9:$B$59,"CW12_006TOT_PR24") -> 0 | G23: =SUMIFS('F_Inputs BP'!I$9:I$59,'F_Inputs BP'!$A$9:$A$59,B23,'F_Inputs BP'!$B$9:$B$59,"CW17_006TOT_PR24") -> 0 | H23: =SUMIFS('Consolidated Input'!F$5:F$21, 'Consolidated Input'!$A$5:$A$21, $B23) -> 0.25 | I23: =SUMIFS('Consolidated Input'!G$5:G$21, 'Consolidated Input'!$A$5:$A$21, $B23) -> 0.751 | J23: =SUMIFS('Consolidated Input'!H$5:H$21, 'Consolidated Input'!$A$5:$A$21, $B23) -> 1 | K23: =SUMIFS('Consolidated Input'!I$5:I$21, 'Consolidated Input'!$A$5:$A$21, $B23) -> 0 | L23: =SUMIFS('Consolidated Input'!J$5:J$21, 'Consolidated Input'!$A$5:$A$21, $B23) -> 0 | M23: 2.001 | O23: =Allowance!B26 -> SES | P23: =Allowance!E26 -> 2.001 | Q23: 0 | R23: 0 | S23: 0 | T23: 0 | U23: =SUMIFS('Final Input'!F$5:F$21, 'Final Input'!$A$5:$A$21, $O23) -> 0.25 | V23: =SUMIFS('Final Input'!G$5:G$21, 'Final Input'!$A$5:$A$21, $O23) -> 0.751 | W23: =SUMIFS('Final Input'!H$5:H$21, 'Final Input'!$A$5:$A$21, $O23) -> 1 | X23: =SUMIFS('Final Input'!I$5:I$21, 'Final Input'!$A$5:$A$21, $O23) -> 0 | Y23: =SUMIFS('Final Input'!J$5:J$21, 'Final Input'!$A$5:$A$21, $O23) -> 0 | Z23: 2.001
B24: =Allowance!B27 -> Total | C24: =Allowance!C27 -> 29.69128236 | D24: =SUM(D7:D23) -> 0 | E24: =SUM(E7:E23) -> 0 | F24: 0.0707137191 | G24: 0 | H24: 5.62775201 | I24: 8.291337022 | J24: 6.781376293 | K24: 4.958854054 | L24: 3.961249259 | M24: 29.69128236 | O24: =Allowance!B27 -> Total | P24: =Allowance!E27 -> 29.69128236 | Q24: =SUM(Q7:Q23) -> 0 | R24: =SUM(R7:R23) -> 0 | S24: 0.0707137191 | T24: 0 | U24: =SUM(U7:U23) -> 5.62775201 | V24: =SUM(V7:V23) -> 8.291337022 | W24: 6.781376293 | X24: 4.958854054 | Y24: 3.961249259 | Z24: 29.69128236
A26: Summary of allowances based on temporal profiling of submitted costs - for company level allowances
B28: Temporal profiling | O28: Allowances
B29: Company | C29: 2023/2024 - transition exp | D29: 2023/2024 - accelerated prog | E29: 2024/2025 - transition exp | F29: 2024/2025 - accelerated prog | G29: 2025/2026 | H29: 2026/2027 | I29: 2027/2028 | J29: 2028/2029 | K29: 2029/2030 | L29: Check | O29: =Allowance!B9 -> Company | P29: Total allowances | Q29: 2023/2024 - transition exp | R29: 2023/2024 - accelerated prog | S29: 2024/2025 - transition exp | T29: 2024/2025 - accelerated prog | U29: 2025/2026 | V29: 2026/2027 | W29: 2027/2028 | X29: 2028/2029 | Y29: 2029/2030
B30: =Allowance!B10 -> ANH | C30: =IFERROR(D7/SUM($D7:$L7), 0) -> 0 | D30: =IFERROR(E7/SUM($D7:$L7), 0) -> 0 | E30: 0 | F30: 0 | G30: 0 | H30: 0 | I30: 0 | J30: 0 | K30: 0 | L30: =IF(OR(SUM(C30:K30)=1,SUM(C30:K30)=0), "reconciled","check") -> reconciled | O30: =Allowance!B10 -> ANH | P30: =Allowance!L10 -> 0 | Q30: =C30*$P30 -> 0 | R30: =D30*$P30 -> 0 | S30: 0 | T30: 0 | U30: =G30*$P30 -> 0 | V30: 0 | W30: 0 | X30: 0 | Y30: 0
B31: =Allowance!B11 -> WSH | C31: =IFERROR(D8/SUM($D8:$L8), 0) -> 0 | D31: 0 | E31: 0 | F31: 0 | G31: 0.3 | H31: 0.2950704225 | I31: 0.1338028169 | J31: 0.1346830986 | K31: 0.136443662 | L31: =IF(OR(SUM(C31:K31)=1,SUM(C31:K31)=0), "reconciled","check") -> reconciled | O31: =Allowance!B11 -> WSH | P31: =Allowance!L11 -> 5.6232 | Q31: =C31*$P31 -> 0 | R31: 0 | S31: 0 | T31: 0 | U31: 1.68696 | V31: 1.65924 | W31: 0.7524 | X31: 0.75735 | Y31: 0.76725
B32: =Allowance!B12 -> HDD | C32: =IFERROR(D9/SUM($D9:$L9), 0) -> 0 | D32: 0 | E32: 0 | F32: 0 | G32: 0 | H32: 0 | I32: 0 | J32: 0 | K32: 0 | L32: reconciled | O32: =Allowance!B12 -> HDD | P32: =Allowance!L12 -> 0 | Q32: 0 | R32: 0 | S32: 0 | T32: 0 | U32: 0 | V32: 0 | W32: 0 | X32: 0 | Y32: 0
B33: =Allowance!B13 -> NES | C33: =IFERROR(D10/SUM($D10:$L10), 0) -> 0 | D33: 0 | E33: 0 | F33: 0 | G33: 0 | H33: 0 | I33: 0 | J33: 0 | K33: 0 | L33: reconciled | O33: =Allowance!B13 -> NES | P33: =Allowance!L13 -> 0 | Q33: 0 | R33: 0 | S33: 0 | T33: 0 | U33: 0 | V33: 0 | W33: 0 | X33: 0 | Y33: 0
B34: =Allowance!B14 -> SVE | C34: =IFERROR(D11/SUM($D11:$L11), 0) -> 0 | D34: 0 | E34: 0 | F34: 0 | G34: 0 | H34: 0 | I34: 0 | J34: 0 | K34: 0 | L34: reconciled | O34: =Allowance!B14 -> SVE | P34: =Allowance!L14 -> 0 | Q34: 0 | R34: 0 | S34: 0 | T34: 0 | U34: 0 | V34: 0 | W34: 0 | X34: 0 | Y34: 0
B35: =Allowance!B15 -> SWB | C35: =IFERROR(D12/SUM($D12:$L12), 0) -> 0 | D35: 0 | E35: 0 | F35: 0 | G35: 0.2 | H35: 0.2 | I35: 0.2 | J35: 0.2 | K35: 0.2 | L35: reconciled | O35: =Allowance!B15 -> SWB | P35: =Allowance!L15 -> 8.416125 | Q35: 0 | R35: 0 | S35: 0 | T35: 0 | U35: 1.683225 | V35: 1.683225 | W35: 1.683225 | X35: 1.683225 | Y35: 1.683225
B36: =Allowance!B16 -> SRN | C36: =IFERROR(D13/SUM($D13:$L13), 0) -> 0 | D36: 0 | E36: 0 | F36: 0 | G36: 0 | H36: 0 | I36: 0 | J36: 0 | K36: 0 | L36: reconciled | O36: =Allowance!B16 -> SRN | P36: =Allowance!L16 -> 0 | Q36: 0 | R36: 0 | S36: 0 | T36: 0 | U36: 0 | V36: 0 | W36: 0 | X36: 0 | Y36: 0
B37: =Allowance!B17 -> TMS | C37: =IFERROR(D14/SUM($D14:$L14), 0) -> 0 | D37: 0 | E37: 0 | F37: 0 | G37: 0.06725663717 | H37: 0.3191740413 | I37: 0.3061946903 | J37: 0.3073746313 | K37: 0 | L37: reconciled | O37: =Allowance!B17 -> TMS | P37: =Allowance!L17 -> 1.695 | Q37: 0 | R37: 0 | S37: 0 | T37: 0 | U37: 0.114 | V37: 0.541 | W37: 0.519 | X37: 0.521 | Y37: 0
B38: =Allowance!B18 -> NWT | C38: =IFERROR(D15/SUM($D15:$L15), 0) -> 0 | D38: 0 | E38: 0.02713166314 | F38: 0 | G38: 0.1012866792 | H38: 0.5761849121 | I38: 0.2193138665 | J38: 0.0178271682 | K38: 0.0582557108 | L38: reconciled | O38: =Allowance!B18 -> NWT | P38: =Allowance!L18 -> 2.606317156 | Q38: 0 | R38: 0 | S38: 0.0707137191 | T38: 0 | U38: 0.2639852097 | V38: 1.501720622 | W38: 0.5716014928 | X38: 0.04646325433 | Y38: 0.1518328585
B39: =Allowance!B19 -> WSX | C39: =IFERROR(D16/SUM($D16:$L16), 0) -> 0 | D39: 0 | E39: 0 | F39: 0 | G39: 0 | H39: 0 | I39: 0 | J39: 0 | K39: 0 | L39: reconciled | O39: =Allowance!B19 -> WSX | P39: =Allowance!L19 -> 0 | Q39: 0 | R39: 0 | S39: 0 | T39: 0 | U39: 0 | V39: 0 | W39: 0 | X39: 0 | Y39: 0
B40: =Allowance!B20 -> YKY | C40: =IFERROR(D17/SUM($D17:$L17), 0) -> 0 | D40: 0 | E40: 0 | F40: 0 | G40: 0.1606843341 | H40: 0.2447165381 | I40: 0.2621603489 | J40: 0.2135189534 | K40: 0.1189198256 | L40: reconciled | O40: =Allowance!B20 -> YKY | P40: =Allowance!L20 -> 6.2577152 | Q40: 0 | R40: 0 | S40: 0 | T40: 0 | U40: 1.0055168 | V40: 1.5313664 | W40: 1.6405248 | X40: 1.3361408 | Y40: 0.7441664
B41: =Allowance!B21 -> AFW | C41: =IFERROR(D18/SUM($D18:$L18), 0) -> 0 | D41: 0 | E41: 0 | F41: 0 | G41: 0 | H41: 0 | I41: 0 | J41: 0 | K41: 0 | L41: reconciled | O41: =Allowance!B21 -> AFW | P41: =Allowance!L21 -> 0 | Q41: 0 | R41: 0 | S41: 0 | T41: 0 | U41: =G41*$P41 -> 0 | V41: 0 | W41: 0 | X41: 0 | Y41: 0
B42: =Allowance!B22 -> BRL | C42: =IFERROR(D19/SUM($D19:$L19), 0) -> 0 | D42: 0 | E42: 0 | F42: 0 | G42: 0 | H42: 0 | I42: 0 | J42: 0 | K42: 0 | L42: reconciled | O42: =Allowance!B22 -> BRL | P42: =Allowance!L22 -> 0 | Q42: 0 | R42: 0 | S42: 0 | T42: 0 | U42: 0 | V42: 0 | W42: 0 | X42: 0 | Y42: 0
B43: =Allowance!B23 -> PRT | C43: =IFERROR(D20/SUM($D20:$L20), 0) -> 0 | D43: 0 | E43: 0 | F43: 0 | G43: 0 | H43: 0 | I43: 0 | J43: 0 | K43: 0 | L43: reconciled | O43: =Allowance!B23 -> PRT | P43: =Allowance!L23 -> 0 | Q43: 0 | R43: 0 | S43: 0 | T43: 0 | U43: 0 | V43: 0 | W43: 0 | X43: 0 | Y43: 0
B44: =Allowance!B24 -> SEW | C44: =IFERROR(D21/SUM($D21:$L21), 0) -> 0 | D44: 0 | E44: 0 | F44: 0 | G44: 0 | H44: 0 | I44: 0 | J44: 0 | K44: 0 | L44: reconciled | O44: =Allowance!B24 -> SEW | P44: =Allowance!L24 -> 0 | Q44: 0 | R44: 0 | S44: 0 | T44: 0 | U44: 0 | V44: 0 | W44: 0 | X44: 0 | Y44: 0
B45: =Allowance!B25 -> SSC | C45: =IFERROR(D22/SUM($D22:$L22), 0) -> 0 | D45: 0 | E45: 0 | F45: 0 | G45: 0.2 | H45: 0.2 | I45: 0.2 | J45: 0.2 | K45: 0.2 | L45: reconciled | O45: =Allowance!B25 -> SSC | P45: =Allowance!L25 -> 2.1 | Q45: 0 | R45: 0 | S45: 0 | T45: 0 | U45: 0.42 | V45: 0.42 | W45: 0.42 | X45: 0.42 | Y45: 0.42
B46: =Allowance!B26 -> SES | C46: =IFERROR(D23/SUM($D23:$L23), 0) -> 0 | D46: 0 | E46: 0 | F46: 0 | G46: 0.1249375312 | H46: 0.3753123438 | I46: 0.4997501249 | J46: 0 | K46: 0 | L46: reconciled | O46: =Allowance!B26 -> SES | P46: =Allowance!L26 -> 1.8009 | Q46: 0 | R46: 0 | S46: 0 | T46: 0 | U46: 0.225 | V46: 0.6759 | W46: 0.9 | X46: 0 | Y46: 0
O47: =Allowance!B27 -> Total | P47: =Allowance!L27 -> 28.49925736 | Q47: =SUM(Q30:Q46) -> 0 | R47: 0 | S47: 0.0707137191 | T47: 0 | U47: 5.39868701 | V47: 8.012452022 | W47: 6.486751293 | X47: 4.764179054 | Y47: 3.766474259

Sheet F_Outputs
A1: =RIGHT(CELL("filename", A1), LEN(CELL("filename", A1)) - SEARCH("]", CELL("filename", A1))) -> 
C2: PR24CA48
A3: Acronym | B3: Reference | C3: Item description | D3: Unit | E3: Model | F3: Constant | G3: 2023-24 | H3: 2024-25 | I3: 2025-26 | J3: 2026-27 | K3: 2027-28 | L3: 2028-29 | M3: 2029-30
A5: ANH | B5: =CONCATENATE("C_", $C$2, "_ENH_W_TOT") -> C_PR24CA48_ENH_W_TOT | C5: Total enhancement allowance - Water - Eel fish screens - Totex | D5: £m | E5: Price Review 2024 | I5: =SUMIFS('Outputs to aggregator'!U$30:U$47, 'Outputs to aggregator'!$O$30:$O$47, $A5) -> 0 | J5: =SUMIFS('Outputs to aggregator'!V$30:V$47, 'Outputs to aggregator'!$O$30:$O$47, $A5) -> 0 | K5: =SUMIFS('Outputs to aggregator'!W$30:W$47, 'Outputs to aggregator'!$O$30:$O$47, $A5) -> 0 | L5: =SUMIFS('Outputs to aggregator'!X$30:X$47, 'Outputs to aggregator'!$O$30:$O$47, $A5) -> 0 | M5: =SUMIFS('Outputs to aggregator'!Y$30:Y$47, 'Outputs to aggregator'!$O$30:$O$47, $A5) -> 0
A6: ANH | B6: =CONCATENATE("C_", $C$2, "_ENH_W_AP") -> C_PR24CA48_ENH_W_AP | C6: Total enhancement allowance - Water - Eel fish screens - Accelerated programme | D6: £m | E6: Price Review 2024 | G6: =SUMIFS('Outputs to aggregator'!R$30:R$47, 'Outputs to aggregator'!$O$30:$O$47, $A6) -> 0 | H6: =SUMIFS('Outputs to aggregator'!T$30:T$47, 'Outputs to aggregator'!$O$30:$O$47, $A6) -> 0
A7: ANH | B7: =CONCATENATE("C_", $C$2, "_ENH_W_TE") -> C_PR24CA48_ENH_W_TE | C7: Total enhancement allowance - Water - Eel fish screens - Transition allowance | D7: £m | E7: Price Review 2024 | G7: =SUMIFS('Outputs to aggregator'!Q$30:Q$47, 'Outputs to aggregator'!$O$30:$O$47, $A7) -> 0 | H7: =SUMIFS('Outputs to aggregator'!S$30:S$47, 'Outputs to aggregator'!$O$30:$O$47, $A7) -> 0
A8: ANH | B8: =CONCATENATE("PR24QA_", $C$2, "_OUT1") -> PR24QA_PR24CA48_OUT1 | C8: =CONCATENATE("Date & Time for Model - ", $C$2) -> Date & Time for Model - PR24CA48 | D8: Text | E8: Price Review 2024 | F8: =CONCATENATE("[…]", TEXT(NOW(),"dd/mm/yyy hh:mm:ss")) -> […]16/12/2024 16:46:21 | G8: […]16/12/2024 16:46:21 | H8: […]16/12/2024 16:46:21 | I8: […]16/12/2024 16:46:21 | J8: […]16/12/2024 16:46:21 | K8: […]16/12/2024 16:46:21 | L8: […]16/12/2024 16:46:21 | M8: […]16/12/2024 16:46:21
A9: ANH | B9: =CONCATENATE("PR24QA_", $C$2, "_OUT2") -> PR24QA_PR24CA48_OUT2 | C9: =CONCATENATE("Name of Model - ", $C$2) -> Name of Model - PR24CA48 | D9: Text | E9: Price Review 2024 | F9: =MID(CELL("filename"),SEARCH("[",CELL("filename"))+1,SEARCH("]",CELL("filename"))-SEARCH("[",CELL("filename"))-1) -> 
A10: ANH | B10: =CONCATENATE("PR24QA_", $C$2, "_OUT3") -> PR24QA_PR24CA48_OUT3 | C10: =CONCATENATE("F_Inputs time stamp - ", $C$2) -> F_Inputs time stamp - PR24CA48 | D10: Text | E10: Price Review 2024 | F10: ='F_Inputs BP'!$E$2 -> Run on 04 Sep 2024 9:05 | G10: ='F_Inputs BP'!$E$2 -> Run on 04 Sep 2024 9:05 | H10: ='F_Inputs BP'!$E$2 -> Run on 04 Sep 2024 9:05 | I10: ='F_Inputs BP'!$E$2 -> Run on 04 Sep 2024 9:05 | J10: ='F_Inputs BP'!$E$2 -> Run on 04 Sep 2024 9:05 | K10: ='F_Inputs BP'!$E$2 -> Run on 04 Sep 2024 9:05 | L10: ='F_Inputs BP'!$E$2 -> Run on 04 Sep 2024 9:05 | M10: ='F_Inputs BP'!$E$2 -> Run on 04 Sep 2024 9:05
A11: ANH | B11: =CONCATENATE("PR24QA_", $C$2, "_OUT4") -> PR24QA_PR24CA48_OUT4 | C11: =CONCATENATE("Model override switch for - ", $C$2) -> Model override switch for - PR24CA48 | D11: nr | E11: Price Review 2024 | F11: =IF(SUM('Consolidated Input Override'!$E$5:$K$147)>0,1,0) -> 0 | G11: =IF(SUM('Consolidated Input Override'!$E$5:$K$147)>0,1,0) -> 0 | H11: =IF(SUM('Consolidated Input Override'!$E$5:$K$147)>0,1,0) -> 0 | I11: =IF(SUM('Consolidated Input Override'!$E$5:$K$147)>0,1,0) -> 0 | J11: =IF(SUM('Consolidated Input Override'!$E$5:$K$147)>0,1,0) -> 0 | K11: =IF(SUM('Consolidated Input Override'!$E$5:$K$147)>0,1,0) -> 0 | L11: =IF(SUM('Consolidated Input Override'!$E$5:$K$147)>0,1,0) -> 0 | M11: =IF(SUM('Consolidated Input Override'!$E$5:$K$147)>0,1,0) -> 0
A12: ANH | B12: =CONCATENATE("C_", $C$2, "_ENH_W_ASSESSED") -> C_PR24CA48_ENH_W_ASSESSED | C12: =CONCATENATE("Total amount assessed - ", MID($C$5,31,200)) -> Total amount assessed - Water - Eel fish screens - Totex | D12: £m | E12: Price Review 2024 | F12: =SUMIFS(Allowance!$E$10:$E$26, Allowance!$B$10:$B$26, A12) -> 0
A13: HDD | B13: =CONCATENATE("C_", $C$2, "_ENH_W_TOT") -> C_PR24CA48_ENH_W_TOT | C13: =$C$5 -> Total enhancement allowance - Water - Eel fish screens - Totex | D13: £m | E13: Price Review 2024 | I13: =SUMIFS('Outputs to aggregator'!U$30:U$47, 'Outputs to aggregator'!$O$30:$O$47, $A13) -> 0 | J13: =SUMIFS('Outputs to aggregator'!V$30:V$47, 'Outputs to aggregator'!$O$30:$O$47, $A13) -> 0 | K13: =SUMIFS('Outputs to aggregator'!W$30:W$47, 'Outputs to aggregator'!$O$30:$O$47, $A13) -> 0 | L13: =SUMIFS('Outputs to aggregator'!X$30:X$47, 'Outputs to aggregator'!$O$30:$O$47, $A13) -> 0 | M13: =SUMIFS('Outputs to aggregator'!Y$30:Y$47, 'Outputs to aggregator'!$O$30:$O$47, $A13) -> 0
A14: HDD | B14: =CONCATENATE("C_", $C$2, "_ENH_W_AP") -> C_PR24CA48_ENH_W_AP | C14: =$C$6 -> Total enhancement allowance - Water - Eel fish screens - Accelerated programme | D14: £m | E14: Price Review 2024 | G14: =SUMIFS('Outputs to aggregator'!R$30:R$47, 'Outputs to aggregator'!$O$30:$O$47, $A14) -> 0 | H14: =SUMIFS('Outputs to aggregator'!T$30:T$47, 'Outputs to aggregator'!$O$30:$O$47, $A14) -> 0
A15: HDD | B15: =CONCATENATE("C_", $C$2, "_ENH_W_TE") -> C_PR24CA48_ENH_W_TE | C15: =$C$7 -> Total enhancement allowance - Water - Eel fish screens - Transition allowance | D15: £m | E15: Price Review 2024 | G15: =SUMIFS('Outputs to aggregator'!Q$30:Q$47, 'Outputs to aggregator'!$O$30:$O$47, $A15) -> 0 | H15: =SUMIFS('Outputs to aggregator'!S$30:S$47, 'Outputs to aggregator'!$O$30:$O$47, $A15) -> 0
A16: HDD | B16: =CONCATENATE("PR24QA_", $C$2, "_OUT1") -> PR24QA_PR24CA48_OUT1 | C16: =CONCATENATE("Date & Time for Model - ", $C$2) -> Date & Time for Model - PR24CA48 | D16: Text | E16: Price Review 2024 | F16: =CONCATENATE("[…]", TEXT(NOW(),"dd/mm/yyy hh:mm:ss")) -> […]16/12/2024 16:46:21 | G16: […]16/12/2024 16:46:21 | H16: […]16/12/2024 16:46:21 | I16: […]16/12/2024 16:46:21 | J16: […]16/12/2024 16:46:21 | K16: […]16/12/2024 16:46:21 | L16: […]16/12/2024 16:46:21 | M16: […]16/12/2024 16:46:21
A17: HDD | B17: =CONCATENATE("PR24QA_", $C$2, "_OUT2") -> PR24QA_PR24CA48_OUT2 | C17: =CONCATENATE("Name of Model - ", $C$2) -> Name of Model - PR24CA48 | D17: Text | E17: Price Review 2024 | F17: =MID(CELL("filename"),SEARCH("[",CELL("filename"))+1,SEARCH("]",CELL("filename"))-SEARCH("[",CELL("filename"))-1) -> 
A18: HDD | B18: =CONCATENATE("PR24QA_", $C$2, "_OUT3") -> PR24QA_PR24CA48_OUT3 | C18: =CONCATENATE("F_Inputs time stamp - ", $C$2) -> F_Inputs time stamp - PR24CA48 | D18: Text | E18: Price Review 2024 | F18: ='F_Inputs BP'!$E$2 -> Run on 04 Sep 2024 9:05 | G18: ='F_Inputs BP'!$E$2 -> Run on 04 Sep 2024 9:05 | H18: ='F_Inputs BP'!$E$2 -> Run on 04 Sep 2024 9:05 | I18: ='F_Inputs BP'!$E$2 -> Run on 04 Sep 2024 9:05 | J18: ='F_Inputs BP'!$E$2 -> Run on 04 Sep 2024 9:05 | K18: ='F_Inputs BP'!$E$2 -> Run on 04 Sep 2024 9:05 | L18: ='F_Inputs BP'!$E$2 -> Run on 04 Sep 2024 9:05 | M18: ='F_Inputs BP'!$E$2 -> Run on 04 Sep 2024 9:05
A19: HDD | B19: =CONCATENATE("PR24QA_", $C$2, "_OUT4") -> PR24QA_PR24CA48_OUT4 | C19: =CONCATENATE("Model override switch for - ", $C$2) -> Model override switch for - PR24CA48 | D19: nr | E19: Price Review 2024 | F19: =IF(SUM('Consolidated Input Override'!$E$5:$K$147)>0,1,0) -> 0 | G19: =IF(SUM('Consolidated Input Override'!$E$5:$K$147)>0,1,0) -> 0 | H19: =IF(SUM('Consolidated Input Override'!$E$5:$K$147)>0,1,0) -> 0 | I19: =IF(SUM('Consolidated Input Override'!$E$5:$K$147)>0,1,0) -> 0 | J19: =IF(SUM('Consolidated Input Override'!$E$5:$K$147)>0,1,0) -> 0 | K19: =IF(SUM('Consolidated Input Override'!$E$5:$K$147)>0,1,0) -> 0 | L19: =IF(SUM('Consolidated Input Override'!$E$5:$K$147)>0,1,0) -> 0 | M19: =IF(SUM('Consolidated Input Override'!$E$5:$K$147)>0,1,0) -> 0
A20: HDD | B20: =CONCATENATE("C_", $C$2, "_ENH_W_ASSESSED") -> C_PR24CA48_ENH_W_ASSESSED | C20: =CONCATENATE("Total amount assessed - ", MID($C$5,31,200)) -> Total amount assessed - Water - Eel fish screens - Totex | D20: £m | E20: Price Review 2024 | F20: =SUMIFS(Allowance!$E$10:$E$26, Allowance!$B$10:$B$26, A20) -> 0
A21: NES | B21: =CONCATENATE("C_", $C$2, "_ENH_W_TOT") -> C_PR24CA48_ENH_W_TOT | C21: =$C$5 -> Total enhancement allowance - Water - Eel fish screens - Totex | D21: £m | E21: Price Review 2024 | I21: =SUMIFS('Outputs to aggregator'!U$30:U$47, 'Outputs to aggregator'!$O$30:$O$47, $A21) -> 0 | J21: =SUMIFS('Outputs to aggregator'!V$30:V$47, 'Outputs to aggregator'!$O$30:$O$47, $A21) -> 0 | K21: =SUMIFS('Outputs to aggregator'!W$30:W$47, 'Outputs to aggregator'!$O$30:$O$47, $A21) -> 0 | L21: =SUMIFS('Outputs to aggregator'!X$30:X$47, 'Outputs to aggregator'!$O$30:$O$47, $A21) -> 0 | M21: =SUMIFS('Outputs to aggregator'!Y$30:Y$47, 'Outputs to aggregator'!$O$30:$O$47, $A21) -> 0
A22: NES | B22: =CONCATENATE("C_", $C$2, "_ENH_W_AP") -> C_PR24CA48_ENH_W_AP | C22: =$C$6 -> Total enhancement allowance - Water - Eel fish screens - Accelerated programme | D22: £m | E22: Price Review 2024 | G22: =SUMIFS('Outputs to aggregator'!R$30:R$47, 'Outputs to aggregator'!$O$30:$O$47, $A22) -> 0 | H22: =SUMIFS('Outputs to aggregator'!T$30:T$47, 'Outputs to aggregator'!$O$30:$O$47, $A22) -> 0
A23: NES | B23: =CONCATENATE("C_", $C$2, "_ENH_W_TE") -> C_PR24CA48_ENH_W_TE | C23: =$C$7 -> Total enhancement allowance - Water - Eel fish screens - Transition allowance | D23: £m | E23: Price Review 2024 | G23: =SUMIFS('Outputs to aggregator'!Q$30:Q$47, 'Outputs to aggregator'!$O$30:$O$47, $A23) -> 0 | H23: =SUMIFS('Outputs to aggregator'!S$30:S$47, 'Outputs to aggregator'!$O$30:$O$47, $A23) -> 0
A24: NES | B24: =CONCATENATE("PR24QA_", $C$2, "_OUT1") -> PR24QA_PR24CA48_OUT1 | C24: =CONCATENATE("Date & Time for Model - ", $C$2) -> Date & Time for Model - PR24CA48 | D24: Text | E24: Price Review 2024 | F24: =CONCATENATE("[…]", TEXT(NOW(),"dd/mm/yyy hh:mm:ss")) -> […]16/12/2024 16:46:21 | G24: […]16/12/2024 16:46:21 | H24: […]16/12/2024 16:46:21 | I24: […]16/12/2024 16:46:21 | J24: […]16/12/2024 16:46:21 | K24: […]16/12/2024 16:46:21 | L24: […]16/12/2024 16:46:21 | M24: […]16/12/2024 16:46:21
A25: NES | B25: =CONCATENATE("PR24QA_", $C$2, "_OUT2") -> PR24QA_PR24CA48_OUT2 | C25: =CONCATENATE("Name of Model - ", $C$2) -> Name of Model - PR24CA48 | D25: Text | E25: Price Review 2024 | F25: =MID(CELL("filename"),SEARCH("[",CELL("filename"))+1,SEARCH("]",CELL("filename"))-SEARCH("[",CELL("filename"))-1) -> 
A26: NES | B26: =CONCATENATE("PR24QA_", $C$2, "_OUT3") -> PR24QA_PR24CA48_OUT3 | C26: =CONCATENATE("F_Inputs time stamp - ", $C$2) -> F_Inputs time stamp - PR24CA48 | D26: Text | E26: Price Review 2024 | F26: ='F_Inputs BP'!$E$2 -> Run on 04 Sep 2024 9:05 | G26: ='F_Inputs BP'!$E$2 -> Run on 04 Sep 2024 9:05 | H26: ='F_Inputs BP'!$E$2 -> Run on 04 Sep 2024 9:05 | I26: ='F_Inputs BP'!$E$2 -> Run on 04 Sep 2024 9:05 | J26: ='F_Inputs BP'!$E$2 -> Run on 04 Sep 2024 9:05 | K26: ='F_Inputs BP'!$E$2 -> Run on 04 Sep 2024 9:05 | L26: ='F_Inputs BP'!$E$2 -> Run on 04 Sep 2024 9:05 | M26: ='F_Inputs BP'!$E$2 -> Run on 04 Sep 2024 9:05
A27: NES | B27: =CONCATENATE("PR24QA_", $C$2, "_OUT4") -> PR24QA_PR24CA48_OUT4 | C27: =CONCATENATE("Model override switch for - ", $C$2) -> Model override switch for - PR24CA48 | D27: nr | E27: Price Review 2024 | F27: =IF(SUM('Consolidated Input Override'!$E$5:$K$147)>0,1,0) -> 0 | G27: =IF(SUM('Consolidated Input Override'!$E$5:$K$147)>0,1,0) -> 0 | H27: =IF(SUM('Consolidated Input Override'!$E$5:$K$147)>0,1,0) -> 0 | I27: =IF(SUM('Consolidated Input Override'!$E$5:$K$147)>0,1,0) -> 0 | J27: =IF(SUM('Consolidated Input Override'!$E$5:$K$147)>0,1,0) -> 0 | K27: =IF(SUM('Consolidated Input Override'!$E$5:$K$147)>0,1,0) -> 0 | L27: =IF(SUM('Consolidated Input Override'!$E$5:$K$147)>0,1,0) -> 0 | M27: =IF(SUM('Consolidated Input Override'!$E$5:$K$147)>0,1,0) -> 0
A28: NES | B28: =CONCATENATE("C_", $C$2, "_ENH_W_ASSESSED") -> C_PR24CA48_ENH_W_ASSESSED | C28: =CONCATENATE("Total amount assessed - ", MID($C$5,31,200)) -> Total amount assessed - Water - Eel fish screens - Totex | D28: £m | E28: Price Review 2024 | F28: =SUMIFS(Allowance!$E$10:$E$26, Allowance!$B$10:$B$26, A28) -> 0
A29: NWT | B29: =CONCATENATE("C_", $C$2, "_ENH_W_TOT") -> C_PR24CA48_ENH_W_TOT | C29: =$C$5 -> Total enhancement allowance - Water - Eel fish screens - Totex | D29: £m | E29: Price Review 2024 | I29: =SUMIFS('Outputs to aggregator'!U$30:U$47, 'Outputs to aggregator'!$O$30:$O$47, $A29) -> 0.2639852097 | J29: =SUMIFS('Outputs to aggregator'!V$30:V$47, 'Outputs to aggregator'!$O$30:$O$47, $A29) -> 1.501720622 | K29: =SUMIFS('Outputs to aggregator'!W$30:W$47, 'Outputs to aggregator'!$O$30:$O$47, $A29) -> 0.5716014928 | L29: =SUMIFS('Outputs to aggregator'!X$30:X$47, 'Outputs to aggregator'!$O$30:$O$47, $A29) -> 0.04646325433 | M29: =SUMIFS('Outputs to aggregator'!Y$30:Y$47, 'Outputs to aggregator'!$O$30:$O$47, $A29) -> 0.1518328585
A30: NWT | B30: =CONCATENATE("C_", $C$2, "_ENH_W_AP") -> C_PR24CA48_ENH_W_AP | C30: =$C$6 -> Total enhancement allowance - Water - Eel fish screens - Accelerated programme | D30: £m | E30: Price Review 2024 | G30: =SUMIFS('Outputs to aggregator'!R$30:R$47, 'Outputs to aggregator'!$O$30:$O$47, $A30) -> 0 | H30: =SUMIFS('Outputs to aggregator'!T$30:T$47, 'Outputs to aggregator'!$O$30:$O$47, $A30) -> 0
A31: NWT | B31: =CONCATENATE("C_", $C$2, "_ENH_W_TE") -> C_PR24CA48_ENH_W_TE | C31: =$C$7 -> Total enhancement allowance - Water - Eel fish screens - Transition allowance | D31: £m | E31: Price Review 2024 | G31: =SUMIFS('Outputs to aggregator'!Q$30:Q$47, 'Outputs to aggregator'!$O$30:$O$47, $A31) -> 0 | H31: =SUMIFS('Outputs to aggregator'!S$30:S$47, 'Outputs to aggregator'!$O$30:$O$47, $A31) -> 0.0707137191
A32: NWT | B32: =CONCATENATE("PR24QA_", $C$2, "_OUT1") -> PR24QA_PR24CA48_OUT1 | C32: =CONCATENATE("Date & Time for Model - ", $C$2) -> Date & Time for Model - PR24CA48 | D32: Text | E32: Price Review 2024 | F32: =CONCATENATE("[…]", TEXT(NOW(),"dd/mm/yyy hh:mm:ss")) -> […]16/12/2024 16:46:21 | G32: […]16/12/2024 16:46:21 | H32: […]16/12/2024 16:46:21 | I32: […]16/12/2024 16:46:21 | J32: […]16/12/2024 16:46:21 | K32: […]16/12/2024 16:46:21 | L32: […]16/12/2024 16:46:21 | M32: […]16/12/2024 16:46:21
A33: NWT | B33: =CONCATENATE("PR24QA_", $C$2, "_OUT2") -> PR24QA_PR24CA48_OUT2 | C33: =CONCATENATE("Name of Model - ", $C$2) -> Name of Model - PR24CA48 | D33: Text | E33: Price Review 2024 | F33: =MID(CELL("filename"),SEARCH("[",CELL("filename"))+1,SEARCH("]",CELL("filename"))-SEARCH("[",CELL("filename"))-1) -> 
A34: NWT | B34: =CONCATENATE("PR24QA_", $C$2, "_OUT3") -> PR24QA_PR24CA48_OUT3 | C34: =CONCATENATE("F_Inputs time stamp - ", $C$2) -> F_Inputs time stamp - PR24CA48 | D34: Text | E34: Price Review 2024 | F34: ='F_Inputs BP'!$E$2 -> Run on 04 Sep 2024 9:05 | G34: ='F_Inputs BP'!$E$2 -> Run on 04 Sep 2024 9:05 | H34: ='F_Inputs BP'!$E$2 -> Run on 04 Sep 2024 9:05 | I34: ='F_Inputs BP'!$E$2 -> Run on 04 Sep 2024 9:05 | J34: ='F_Inputs BP'!$E$2 -> Run on 04 Sep 2024 9:05 | K34: ='F_Inputs BP'!$E$2 -> Run on 04 Sep 2024 9:05 | L34: ='F_Inputs BP'!$E$2 -> Run on 04 Sep 2024 9:05 | M34: ='F_Inputs BP'!$E$2 -> Run on 04 Sep 2024 9:05
A35: NWT | B35: =CONCATENATE("PR24QA_", $C$2, "_OUT4") -> PR24QA_PR24CA48_OUT4 | C35: =CONCATENATE("Model override switch for - ", $C$2) -> Model override switch for - PR24CA48 | D35: nr | E35: Price Review 2024 | F35: =IF(SUM('Consolidated Input Override'!$E$5:$K$147)>0,1,0) -> 0 | G35: =IF(SUM('Consolidated Input Override'!$E$5:$K$147)>0,1,0) -> 0 | H35: =IF(SUM('Consolidated Input Override'!$E$5:$K$147)>0,1,0) -> 0 | I35: =IF(SUM('Consolidated Input Override'!$E$5:$K$147)>0,1,0) -> 0 | J35: =IF(SUM('Consolidated Input Override'!$E$5:$K$147)>0,1,0) -> 0 | K35: =IF(SUM('Consolidated Input Override'!$E$5:$K$147)>0,1,0) -> 0 | L35: =IF(SUM('Consolidated Input Override'!$E$5:$K$147)>0,1,0) -> 0 | M35: =IF(SUM('Consolidated Input Override'!$E$5:$K$147)>0,1,0) -> 0
A36: NWT | B36: =CONCATENATE("C_", $C$2, "_ENH_W_ASSESSED") -> C_PR24CA48_ENH_W_ASSESSED | C36: =CONCATENATE("Total amount assessed - ", MID($C$5,31,200)) -> Total amount assessed - Water - Eel fish screens - Totex | D36: £m | E36: Price Review 2024 | F36: =SUMIFS(Allowance!$E$10:$E$26, Allowance!$B$10:$B$26, A36) -> 2.606317156
A37: SRN | B37: =CONCATENATE("C_", $C$2, "_ENH_W_TOT") -> C_PR24CA48_ENH_W_TOT | C37: =$C$5 -> Total enhancement allowance - Water - Eel fish screens - Totex | D37: £m | E37: Price Review 2024 | I37: =SUMIFS('Outputs to aggregator'!U$30:U$47, 'Outputs to aggregator'!$O$30:$O$47, $A37) -> 0 | J37: =SUMIFS('Outputs to aggregator'!V$30:V$47, 'Outputs to aggregator'!$O$30:$O$47, $A37) -> 0 | K37: =SUMIFS('Outputs to aggregator'!W$30:W$47, 'Outputs to aggregator'!$O$30:$O$47, $A37) -> 0 | L37: =SUMIFS('Outputs to aggregator'!X$30:X$47, 'Outputs to aggregator'!$O$30:$O$47, $A37) -> 0 | M37: =SUMIFS('Outputs to aggregator'!Y$30:Y$47, 'Outputs to aggregator'!$O$30:$O$47, $A37) -> 0
A38: SRN | B38: =CONCATENATE("C_", $C$2, "_ENH_W_AP") -> C_PR24CA48_ENH_W_AP | C38: =$C$6 -> Total enhancement allowance - Water - Eel fish screens - Accelerated programme | D38: £m | E38: Price Review 2024 | G38: =SUMIFS('Outputs to aggregator'!R$30:R$47, 'Outputs to aggregator'!$O$30:$O$47, $A38) -> 0 | H38: =SUMIFS('Outputs to aggregator'!T$30:T$47, 'Outputs to aggregator'!$O$30:$O$47, $A38) -> 0
A39: SRN | B39: =CONCATENATE("C_", $C$2, "_ENH_W_TE") -> C_PR24CA48_ENH_W_TE | C39: =$C$7 -> Total enhancement allowance - Water - Eel fish screens - Transition allowance | D39: £m | E39: Price Review 2024 | G39: =SUMIFS('Outputs to aggregator'!Q$30:Q$47, 'Outputs to aggregator'!$O$30:$O$47, $A39) -> 0 | H39: =SUMIFS('Outputs to aggregator'!S$30:S$47, 'Outputs to aggregator'!$O$30:$O$47, $A39) -> 0
A40: SRN | B40: =CONCATENATE("PR24QA_", $C$2, "_OUT1") -> PR24QA_PR24CA48_OUT1 | C40: =CONCATENATE("Date & Time for Model - ", $C$2) -> Date & Time for Model - PR24CA48 | D40: Text | E40: Price Review 2024 | F40: =CONCATENATE("[…]", TEXT(NOW(),"dd/mm/yyy hh:mm:ss")) -> […]16/12/2024 16:46:21 | G40: […]16/12/2024 16:46:21 | H40: […]16/12/2024 16:46:21 | I40: […]16/12/2024 16:46:21 | J40: […]16/12/2024 16:46:21 | K40: […]16/12/2024 16:46:21 | L40: […]16/12/2024 16:46:21 | M40: […]16/12/2024 16:46:21
A41: SRN | B41: =CONCATENATE("PR24QA_", $C$2, "_OUT2") -> PR24QA_PR24CA48_OUT2 | C41: =CONCATENATE("Name of Model - ", $C$2) -> Name of Model - PR24CA48 | D41: Text | E41: Price Review 2024 | F41: =MID(CELL("filename"),SEARCH("[",CELL("filename"))+1,SEARCH("]",CELL("filename"))-SEARCH("[",CELL("filename"))-1) -> 
A42: SRN | B42: =CONCATENATE("PR24QA_", $C$2, "_OUT3") -> PR24QA_PR24CA48_OUT3 | C42: =CONCATENATE("F_Inputs time stamp - ", $C$2) -> F_Inputs time stamp - PR24CA48 | D42: Text | E42: Price Review 2024 | F42: ='F_Inputs BP'!$E$2 -> Run on 04 Sep 2024 9:05 | G42: ='F_Inputs BP'!$E$2 -> Run on 04 Sep 2024 9:05 | H42: ='F_Inputs BP'!$E$2 -> Run on 04 Sep 2024 9:05 | I42: ='F_Inputs BP'!$E$2 -> Run on 04 Sep 2024 9:05 | J42: ='F_Inputs BP'!$E$2 -> Run on 04 Sep 2024 9:05 | K42: ='F_Inputs BP'!$E$2 -> Run on 04 Sep 2024 9:05 | L42: ='F_Inputs BP'!$E$2 -> Run on 04 Sep 2024 9:05 | M42: ='F_Inputs BP'!$E$2 -> Run on 04 Sep 2024 9:05
A43: SRN | B43: =CONCATENATE("PR24QA_", $C$2, "_OUT4") -> PR24QA_PR24CA48_OUT4 | C43: =CONCATENATE("Model override switch for - ", $C$2) -> Model override switch for - PR24CA48 | D43: nr | E43: Price Review 2024 | F43: =IF(SUM('Consolidated Input Override'!$E$5:$K$147)>0,1,0) -> 0 | G43: =IF(SUM('Consolidated Input Override'!$E$5:$K$147)>0,1,0) -> 0 | H43: =IF(SUM('Consolidated Input Override'!$E$5:$K$147)>0,1,0) -> 0 | I43: =IF(SUM('Consolidated Input Override'!$E$5:$K$147)>0,1,0) -> 0 | J43: =IF(SUM('Consolidated Input Override'!$E$5:$K$147)>0,1,0) -> 0 | K43: =IF(SUM('Consolidated Input Override'!$E$5:$K$147)>0,1,0) -> 0 | L43: =IF(SUM('Consolidated Input Override'!$E$5:$K$147)>0,1,0) -> 0 | M43: =IF(SUM('Consolidated Input Override'!$E$5:$K$147)>0,1,0) -> 0
A44: SRN | B44: =CONCATENATE("C_", $C$2, "_ENH_W_ASSESSED") -> C_PR24CA48_ENH_W_ASSESSED | C44: =CONCATENATE("Total amount assessed - ", MID($C$5,31,200)) -> Total amount assessed - Water - Eel fish screens - Totex | D44: £m | E44: Price Review 2024 | F44: =SUMIFS(Allowance!$E$10:$E$26, Allowance!$B$10:$B$26, A44) -> 0
A45: SVE | B45: =CONCATENATE("C_", $C$2, "_ENH_W_TOT") -> C_PR24CA48_ENH_W_TOT | C45: =$C$5 -> Total enhancement allowance - Water - Eel fish screens - Totex | D45: £m | E45: Price Review 2024 | I45: =SUMIFS('Outputs to aggregator'!U$30:U$47, 'Outputs to aggregator'!$O$30:$O$47, $A45) -> 0 | J45: =SUMIFS('Outputs to aggregator'!V$30:V$47, 'Outputs to aggregator'!$O$30:$O$47, $A45) -> 0 | K45: =SUMIFS('Outputs to aggregator'!W$30:W$47, 'Outputs to aggregator'!$O$30:$O$47, $A45) -> 0 | L45: =SUMIFS('Outputs to aggregator'!X$30:X$47, 'Outputs to aggregator'!$O$30:$O$47, $A45) -> 0 | M45: =SUMIFS('Outputs to aggregator'!Y$30:Y$47, 'Outputs to aggregator'!$O$30:$O$47, $A45) -> 0
A46: SVE | B46: =CONCATENATE("C_", $C$2, "_ENH_W_AP") -> C_PR24CA48_ENH_W_AP | C46: =$C$6 -> Total enhancement allowance - Water - Eel fish screens - Accelerated programme | D46: £m | E46: Price Review 2024 | G46: =SUMIFS('Outputs to aggregator'!R$30:R$47, 'Outputs to aggregator'!$O$30:$O$47, $A46) -> 0 | H46: =SUMIFS('Outputs to aggregator'!T$30:T$47, 'Outputs to aggregator'!$O$30:$O$47, $A46) -> 0
A47: SVE | B47: =CONCATENATE("C_", $C$2, "_ENH_W_TE") -> C_PR24CA48_ENH_W_TE | C47: =$C$7 -> Total enhancement allowance - Water - Eel fish screens - Transition allowance | D47: £m | E47: Price Review 2024 | G47: =SUMIFS('Outputs to aggregator'!Q$30:Q$47, 'Outputs to aggregator'!$O$30:$O$47, $A47) -> 0 | H47: =SUMIFS('Outputs to aggregator'!S$30:S$47, 'Outputs to aggregator'!$O$30:$O$47, $A47) -> 0
A48: SVE | B48: =CONCATENATE("PR24QA_", $C$2, "_OUT1") -> PR24QA_PR24CA48_OUT1 | C48: =CONCATENATE("Date & Time for Model - ", $C$2) -> Date & Time for Model - PR24CA48 | D48: Text | E48: Price Review 2024 | F48: =CONCATENATE("[…]", TEXT(NOW(),"dd/mm/yyy hh:mm:ss")) -> […]16/12/2024 16:46:21 | G48: […]16/12/2024 16:46:21 | H48: […]16/12/2024 16:46:21 | I48: […]16/12/2024 16:46:21 | J48: […]16/12/2024 16:46:21 | K48: […]16/12/2024 16:46:21 | L48: […]16/12/2024 16:46:21 | M48: […]16/12/2024 16:46:21
A49: SVE | B49: =CONCATENATE("PR24QA_", $C$2, "_OUT2") -> PR24QA_PR24CA48_OUT2 | C49: =CONCATENATE("Name of Model - ", $C$2) -> Name of Model - PR24CA48 | D49: Text | E49: Price Review 2024 | F49: =MID(CELL("filename"),SEARCH("[",CELL("filename"))+1,SEARCH("]",CELL("filename"))-SEARCH("[",CELL("filename"))-1) -> 
A50: SVE | B50: =CONCATENATE("PR24QA_", $C$2, "_OUT3") -> PR24QA_PR24CA48_OUT3 | C50: =CONCATENATE("F_Inputs time stamp - ", $C$2) -> F_Inputs time stamp - PR24CA48 | D50: Text | E50: Price Review 2024 | F50: ='F_Inputs BP'!$E$2 -> Run on 04 Sep 2024 9:05 | G50: ='F_Inputs BP'!$E$2 -> Run on 04 Sep 2024 9:05 | H50: ='F_Inputs BP'!$E$2 -> Run on 04 Sep 2024 9:05 | I50: ='F_Inputs BP'!$E$2 -> Run on 04 Sep 2024 9:05 | J50: ='F_Inputs BP'!$E$2 -> Run on 04 Sep 2024 9:05 | K50: ='F_Inputs BP'!$E$2 -> Run on 04 Sep 2024 9:05 | L50: ='F_Inputs BP'!$E$2 -> Run on 04 Sep 2024 9:05 | M50: ='F_Inputs BP'!$E$2 -> Run on 04 Sep 2024 9:05
A51: SVE | B51: =CONCATENATE("PR24QA_", $C$2, "_OUT4") -> PR24QA_PR24CA48_OUT4 | C51: =CONCATENATE("Model override switch for - ", $C$2) -> Model override switch for - PR24CA48 | D51: nr | E51: Price Review 2024 | F51: =IF(SUM('Consolidated Input Override'!$E$5:$K$147)>0,1,0) -> 0 | G51: =IF(SUM('Consolidated Input Override'!$E$5:$K$147)>0,1,0) -> 0 | H51: =IF(SUM('Consolidated Input Override'!$E$5:$K$147)>0,1,0) -> 0 | I51: =IF(SUM('Consolidated Input Override'!$E$5:$K$147)>0,1,0) -> 0 | J51: =IF(SUM('Consolidated Input Override'!$E$5:$K$147)>0,1,0) -> 0 | K51: =IF(SUM('Consolidated Input Override'!$E$5:$K$147)>0,1,0) -> 0 | L51: =IF(SUM('Consolidated Input Override'!$E$5:$K$147)>0,1,0) -> 0 | M51: =IF(SUM('Consolidated Input Override'!$E$5:$K$147)>0,1,0) -> 0
A52: SVE | B52: =CONCATENATE("C_", $C$2, "_ENH_W_ASSESSED") -> C_PR24CA48_ENH_W_ASSESSED | C52: =CONCATENATE("Total amount assessed - ", MID($C$5,31,200)) -> Total amount assessed - Water - Eel fish screens - Totex | D52: £m | E52: Price Review 2024 | F52: =SUMIFS(Allowance!$E$10:$E$26, Allowance!$B$10:$B$26, A52) -> 0
A53: SWB | B53: =CONCATENATE("C_", $C$2, "_ENH_W_TOT") -> C_PR24CA48_ENH_W_TOT | C53: =$C$5 -> Total enhancement allowance - Water - Eel fish screens - Totex | D53: £m | E53: Price Review 2024 | I53: =SUMIFS('Outputs to aggregator'!U$30:U$47, 'Outputs to aggregator'!$O$30:$O$47, $A53) -> 1.683225 | J53: =SUMIFS('Outputs to aggregator'!V$30:V$47, 'Outputs to aggregator'!$O$30:$O$47, $A53) -> 1.683225 | K53: =SUMIFS('Outputs to aggregator'!W$30:W$47, 'Outputs to aggregator'!$O$30:$O$47, $A53) -> 1.683225 | L53: =SUMIFS('Outputs to aggregator'!X$30:X$47, 'Outputs to aggregator'!$O$30:$O$47, $A53) -> 1.683225 | M53: =SUMIFS('Outputs to aggregator'!Y$30:Y$47, 'Outputs to aggregator'!$O$30:$O$47, $A53) -> 1.683225
A54: SWB | B54: =CONCATENATE("C_", $C$2, "_ENH_W_AP") -> C_PR24CA48_ENH_W_AP | C54: =$C$6 -> Total enhancement allowance - Water - Eel fish screens - Accelerated programme | D54: £m | E54: Price Review 2024 | G54: =SUMIFS('Outputs to aggregator'!R$30:R$47, 'Outputs to aggregator'!$O$30:$O$47, $A54) -> 0 | H54: =SUMIFS('Outputs to aggregator'!T$30:T$47, 'Outputs to aggregator'!$O$30:$O$47, $A54) -> 0
A55: SWB | B55: =CONCATENATE("C_", $C$2, "_ENH_W_TE") -> C_PR24CA48_ENH_W_TE | C55: =$C$7 -> Total enhancement allowance - Water - Eel fish screens - Transition allowance | D55: £m | E55: Price Review 2024 | G55: =SUMIFS('Outputs to aggregator'!Q$30:Q$47, 'Outputs to aggregator'!$O$30:$O$47, $A55) -> 0 | H55: =SUMIFS('Outputs to aggregator'!S$30:S$47, 'Outputs to aggregator'!$O$30:$O$47, $A55) -> 0
A56: SWB | B56: =CONCATENATE("PR24QA_", $C$2, "_OUT1") -> PR24QA_PR24CA48_OUT1 | C56: =CONCATENATE("Date & Time for Model - ", $C$2) -> Date & Time for Model - PR24CA48 | D56: Text | E56: Price Review 2024 | F56: =CONCATENATE("[…]", TEXT(NOW(),"dd/mm/yyy hh:mm:ss")) -> […]16/12/2024 16:46:21 | G56: […]16/12/2024 16:46:21 | H56: […]16/12/2024 16:46:21 | I56: […]16/12/2024 16:46:21 | J56: […]16/12/2024 16:46:21 | K56: […]16/12/2024 16:46:21 | L56: […]16/12/2024 16:46:21 | M56: […]16/12/2024 16:46:21
A57: SWB | B57: =CONCATENATE("PR24QA_", $C$2, "_OUT2") -> PR24QA_PR24CA48_OUT2 | C57: =CONCATENATE("Name of Model - ", $C$2) -> Name of Model - PR24CA48 | D57: Text | E57: Price Review 2024 | F57: =MID(CELL("filename"),SEARCH("[",CELL("filename"))+1,SEARCH("]",CELL("filename"))-SEARCH("[",CELL("filename"))-1) -> 
A58: SWB | B58: =CONCATENATE("PR24QA_", $C$2, "_OUT3") -> PR24QA_PR24CA48_OUT3 | C58: =CONCATENATE("F_Inputs time stamp - ", $C$2) -> F_Inputs time stamp - PR24CA48 | D58: Text | E58: Price Review 2024 | F58: ='F_Inputs BP'!$E$2 -> Run on 04 Sep 2024 9:05 | G58: ='F_Inputs BP'!$E$2 -> Run on 04 Sep 2024 9:05 | H58: ='F_Inputs BP'!$E$2 -> Run on 04 Sep 2024 9:05 | I58: ='F_Inputs BP'!$E$2 -> Run on 04 Sep 2024 9:05 | J58: ='F_Inputs BP'!$E$2 -> Run on 04 Sep 2024 9:05 | K58: ='F_Inputs BP'!$E$2 -> Run on 04 Sep 2024 9:05 | L58: ='F_Inputs BP'!$E$2 -> Run on 04 Sep 2024 9:05 | M58: ='F_Inputs BP'!$E$2 -> Run on 04 Sep 2024 9:05
A59: SWB | B59: =CONCATENATE("PR24QA_", $C$2, "_OUT4") -> PR24QA_PR24CA48_OUT4 | C59: =CONCATENATE("Model override switch for - ", $C$2) -> Model override switch for - PR24CA48 | D59: nr | E59: Price Review 2024 | F59: =IF(SUM('Consolidated Input Override'!$E$5:$K$147)>0,1,0) -> 0 | G59: =IF(SUM('Consolidated Input Override'!$E$5:$K$147)>0,1,0) -> 0 | H59: =IF(SUM('Consolidated Input Override'!$E$5:$K$147)>0,1,0) -> 0 | I59: =IF(SUM('Consolidated Input Override'!$E$5:$K$147)>0,1,0) -> 0 | J59: =IF(SUM('Consolidated Input Override'!$E$5:$K$147)>0,1,0) -> 0 | K59: =IF(SUM('Consolidated Input Override'!$E$5:$K$147)>0,1,0) -> 0 | L59: =IF(SUM('Consolidated Input Override'!$E$5:$K$147)>0,1,0) -> 0 | M59: =IF(SUM('Consolidated Input Override'!$E$5:$K$147)>0,1,0) -> 0
A60: SWB | B60: =CONCATENATE("C_", $C$2, "_ENH_W_ASSESSED") -> C_PR24CA48_ENH_W_ASSESSED | C60: =CONCATENATE("Total amount assessed - ", MID($C$5,31,200)) -> Total amount assessed - Water - Eel fish screens - Totex | D60: £m | E60: Price Review 2024 | F60: =SUMIFS(Allowance!$E$10:$E$26, Allowance!$B$10:$B$26, A60) -> 9.35125
A61: TMS | B61: =CONCATENATE("C_", $C$2, "_ENH_W_TOT") -> C_PR24CA48_ENH_W_TOT | C61: =$C$5 -> Total enhancement allowance - Water - Eel fish screens - Totex | D61: £m | E61: Price Review 2024 | I61: =SUMIFS('Outputs to aggregator'!U$30:U$47, 'Outputs to aggregator'!$O$30:$O$47, $A61) -> 0.114 | J61: =SUMIFS('Outputs to aggregator'!V$30:V$47, 'Outputs to aggregator'!$O$30:$O$47, $A61) -> 0.541 | K61: =SUMIFS('Outputs to aggregator'!W$30:W$47, 'Outputs to aggregator'!$O$30:$O$47, $A61) -> 0.519 | L61: =SUMIFS('Outputs to aggregator'!X$30:X$47, 'Outputs to aggregator'!$O$30:$O$47, $A61) -> 0.521 | M61: =SUMIFS('Outputs to aggregator'!Y$30:Y$47, 'Outputs to aggregator'!$O$30:$O$47, $A61) -> 0
A62: TMS | B62: =CONCATENATE("C_", $C$2, "_ENH_W_AP") -> C_PR24CA48_ENH_W_AP | C62: =$C$6 -> Total enhancement allowance - Water - Eel fish screens - Accelerated programme | D62: £m | E62: Price Review 2024 | G62: =SUMIFS('Outputs to aggregator'!R$30:R$47, 'Outputs to aggregator'!$O$30:$O$47, $A62) -> 0 | H62: =SUMIFS('Outputs to aggregator'!T$30:T$47, 'Outputs to aggregator'!$O$30:$O$47, $A62) -> 0
A63: TMS | B63: =CONCATENATE("C_", $C$2, "_ENH_W_TE") -> C_PR24CA48_ENH_W_TE | C63: =$C$7 -> Total enhancement allowance - Water - Eel fish screens - Transition allowance | D63: £m | E63: Price Review 2024 | G63: =SUMIFS('Outputs to aggregator'!Q$30:Q$47, 'Outputs to aggregator'!$O$30:$O$47, $A63) -> 0 | H63: =SUMIFS('Outputs to aggregator'!S$30:S$47, 'Outputs to aggregator'!$O$30:$O$47, $A63) -> 0
A64: TMS | B64: =CONCATENATE("PR24QA_", $C$2, "_OUT1") -> PR24QA_PR24CA48_OUT1 | C64: =CONCATENATE("Date & Time for Model - ", $C$2) -> Date & Time for Model - PR24CA48 | D64: Text | E64: Price Review 2024 | F64: =CONCATENATE("[…]", TEXT(NOW(),"dd/mm/yyy hh:mm:ss")) -> […]16/12/2024 16:46:21 | G64: […]16/12/2024 16:46:21 | H64: […]16/12/2024 16:46:21 | I64: […]16/12/2024 16:46:21 | J64: […]16/12/2024 16:46:21 | K64: […]16/12/2024 16:46:21 | L64: […]16/12/2024 16:46:21 | M64: […]16/12/2024 16:46:21
A65: TMS | B65: =CONCATENATE("PR24QA_", $C$2, "_OUT2") -> PR24QA_PR24CA48_OUT2 | C65: =CONCATENATE("Name of Model - ", $C$2) -> Name of Model - PR24CA48 | D65: Text | E65: Price Review 2024 | F65: =MID(CELL("filename"),SEARCH("[",CELL("filename"))+1,SEARCH("]",CELL("filename"))-SEARCH("[",CELL("filename"))-1) -> 
A66: TMS | B66: =CONCATENATE("PR24QA_", $C$2, "_OUT3") -> PR24QA_PR24CA48_OUT3 | C66: =CONCATENATE("F_Inputs time stamp - ", $C$2) -> F_Inputs time stamp - PR24CA48 | D66: Text | E66: Price Review 2024 | F66: ='F_Inputs BP'!$E$2 -> Run on 04 Sep 2024 9:05 | G66: ='F_Inputs BP'!$E$2 -> Run on 04 Sep 2024 9:05 | H66: ='F_Inputs BP'!$E$2 -> Run on 04 Sep 2024 9:05 | I66: ='F_Inputs BP'!$E$2 -> Run on 04 Sep 2024 9:05 | J66: ='F_Inputs BP'!$E$2 -> Run on 04 Sep 2024 9:05 | K66: ='F_Inputs BP'!$E$2 -> Run on 04 Sep 2024 9:05 | L66: ='F_Inputs BP'!$E$2 -> Run on 04 Sep 2024 9:05 | M66: ='F_Inputs BP'!$E$2 -> Run on 04 Sep 2024 9:05
A67: TMS | B67: =CONCATENATE("PR24QA_", $C$2, "_OUT4") -> PR24QA_PR24CA48_OUT4 | C67: =CONCATENATE("Model override switch for - ", $C$2) -> Model override switch for - PR24CA48 | D67: nr | E67: Price Review 2024 | F67: =IF(SUM('Consolidated Input Override'!$E$5:$K$147)>0,1,0) -> 0 | G67: =IF(SUM('Consolidated Input Override'!$E$5:$K$147)>0,1,0) -> 0 | H67: =IF(SUM('Consolidated Input Override'!$E$5:$K$147)>0,1,0) -> 0 | I67: =IF(SUM('Consolidated Input Override'!$E$5:$K$147)>0,1,0) -> 0 | J67: =IF(SUM('Consolidated Input Override'!$E$5:$K$147)>0,1,0) -> 0 | K67: =IF(SUM('Consolidated Input Override'!$E$5:$K$147)>0,1,0) -> 0 | L67: =IF(SUM('Consolidated Input Override'!$E$5:$K$147)>0,1,0) -> 0 | M67: =IF(SUM('Consolidated Input Override'!$E$5:$K$147)>0,1,0) -> 0
A68: TMS | B68: =CONCATENATE("C_", $C$2, "_ENH_W_ASSESSED") -> C_PR24CA48_ENH_W_ASSESSED | C68: =CONCATENATE("Total amount assessed - ", MID($C$5,31,200)) -> Total amount assessed - Water - Eel fish screens - Totex | D68: £m | E68: Price Review 2024 | F68: =SUMIFS(Allowance!$E$10:$E$26, Allowance!$B$10:$B$26, A68) -> 1.695
A69: WSH | B69: =CONCATENATE("C_", $C$2, "_ENH_W_TOT") -> C_PR24CA48_ENH_W_TOT | C69: =$C$5 -> Total enhancement allowance - Water - Eel fish screens - Totex | D69: £m | E69: Price Review 2024 | I69: =SUMIFS('Outputs to aggregator'!U$30:U$47, 'Outputs to aggregator'!$O$30:$O$47, $A69) -> 1.68696 | J69: =SUMIFS('Outputs to aggregator'!V$30:V$47, 'Outputs to aggregator'!$O$30:$O$47, $A69) -> 1.65924 | K69: =SUMIFS('Outputs to aggregator'!W$30:W$47, 'Outputs to aggregator'!$O$30:$O$47, $A69) -> 0.7524 | L69: =SUMIFS('Outputs to aggregator'!X$30:X$47, 'Outputs to aggregator'!$O$30:$O$47, $A69) -> 0.75735 | M69: =SUMIFS('Outputs to aggregator'!Y$30:Y$47, 'Outputs to aggregator'!$O$30:$O$47, $A69) -> 0.76725
A70: WSH | B70: =CONCATENATE("C_", $C$2, "_ENH_W_AP") -> C_PR24CA48_ENH_W_AP | C70: =$C$6 -> Total enhancement allowance - Water - Eel fish screens - Accelerated programme | D70: £m | E70: Price Review 2024 | G70: =SUMIFS('Outputs to aggregator'!R$30:R$47, 'Outputs to aggregator'!$O$30:$O$47, $A70) -> 0 | H70: =SUMIFS('Outputs to aggregator'!T$30:T$47, 'Outputs to aggregator'!$O$30:$O$47, $A70) -> 0
A71: WSH | B71: =CONCATENATE("C_", $C$2, "_ENH_W_TE") -> C_PR24CA48_ENH_W_TE | C71: =$C$7 -> Total enhancement allowance - Water - Eel fish screens - Transition allowance | D71: £m | E71: Price Review 2024 | G71: =SUMIFS('Outputs to aggregator'!Q$30:Q$47, 'Outputs to aggregator'!$O$30:$O$47, $A71) -> 0 | H71: =SUMIFS('Outputs to aggregator'!S$30:S$47, 'Outputs to aggregator'!$O$30:$O$47, $A71) -> 0
A72: WSH | B72: =CONCATENATE("PR24QA_", $C$2, "_OUT1") -> PR24QA_PR24CA48_OUT1 | C72: =CONCATENATE("Date & Time for Model - ", $C$2) -> Date & Time for Model - PR24CA48 | D72: Text | E72: Price Review 2024 | F72: =CONCATENATE("[…]", TEXT(NOW(),"dd/mm/yyy hh:mm:ss")) -> […]16/12/2024 16:46:21 | G72: […]16/12/2024 16:46:21 | H72: […]16/12/2024 16:46:21 | I72: […]16/12/2024 16:46:21 | J72: […]16/12/2024 16:46:21 | K72: […]16/12/2024 16:46:21 | L72: […]16/12/2024 16:46:21 | M72: […]16/12/2024 16:46:21
A73: WSH | B73: =CONCATENATE("PR24QA_", $C$2, "_OUT2") -> PR24QA_PR24CA48_OUT2 | C73: =CONCATENATE("Name of Model - ", $C$2) -> Name of Model - PR24CA48 | D73: Text | E73: Price Review 2024 | F73: =MID(CELL("filename"),SEARCH("[",CELL("filename"))+1,SEARCH("]",CELL("filename"))-SEARCH("[",CELL("filename"))-1) -> 
A74: WSH | B74: =CONCATENATE("PR24QA_", $C$2, "_OUT3") -> PR24QA_PR24CA48_OUT3 | C74: =CONCATENATE("F_Inputs time stamp - ", $C$2) -> F_Inputs time stamp - PR24CA48 | D74: Text | E74: Price Review 2024 | F74: ='F_Inputs BP'!$E$2 -> Run on 04 Sep 2024 9:05 | G74: ='F_Inputs BP'!$E$2 -> Run on 04 Sep 2024 9:05 | H74: ='F_Inputs BP'!$E$2 -> Run on 04 Sep 2024 9:05 | I74: ='F_Inputs BP'!$E$2 -> Run on 04 Sep 2024 9:05 | J74: ='F_Inputs BP'!$E$2 -> Run on 04 Sep 2024 9:05 | K74: ='F_Inputs BP'!$E$2 -> Run on 04 Sep 2024 9:05 | L74: ='F_Inputs BP'!$E$2 -> Run on 04 Sep 2024 9:05 | M74: ='F_Inputs BP'!$E$2 -> Run on 04 Sep 2024 9:05
A75: WSH | B75: =CONCATENATE("PR24QA_", $C$2, "_OUT4") -> PR24QA_PR24CA48_OUT4 | C75: =CONCATENATE("Model override switch for - ", $C$2) -> Model override switch for - PR24CA48 | D75: nr | E75: Price Review 2024 | F75: =IF(SUM('Consolidated Input Override'!$E$5:$K$147)>0,1,0) -> 0 | G75: =IF(SUM('Consolidated Input Override'!$E$5:$K$147)>0,1,0) -> 0 | H75: =IF(SUM('Consolidated Input Override'!$E$5:$K$147)>0,1,0) -> 0 | I75: =IF(SUM('Consolidated Input Override'!$E$5:$K$147)>0,1,0) -> 0 | J75: =IF(SUM('Consolidated Input Override'!$E$5:$K$147)>0,1,0) -> 0 | K75: =IF(SUM('Consolidated Input Override'!$E$5:$K$147)>0,1,0) -> 0 | L75: =IF(SUM('Consolidated Input Override'!$E$5:$K$147)>0,1,0) -> 0 | M75: =IF(SUM('Consolidated Input Override'!$E$5:$K$147)>0,1,0) -> 0
A76: WSH | B76: =CONCATENATE("C_", $C$2, "_ENH_W_ASSESSED") -> C_PR24CA48_ENH_W_ASSESSED | C76: =CONCATENATE("Total amount assessed - ", MID($C$5,31,200)) -> Total amount assessed - Water - Eel fish screens - Totex | D76: £m | E76: Price Review 2024 | F76: =SUMIFS(Allowance!$E$10:$E$26, Allowance!$B$10:$B$26, A76) -> 5.68
A77: WSX | B77: =CONCATENATE("C_", $C$2, "_ENH_W_TOT") -> C_PR24CA48_ENH_W_TOT | C77: =$C$5 -> Total enhancement allowance - Water - Eel fish screens - Totex | D77: £m | E77: Price Review 2024 | I77: =SUMIFS('Outputs to aggregator'!U$30:U$47, 'Outputs to aggregator'!$O$30:$O$47, $A77) -> 0 | J77: =SUMIFS('Outputs to aggregator'!V$30:V$47, 'Outputs to aggregator'!$O$30:$O$47, $A77) -> 0 | K77: =SUMIFS('Outputs to aggregator'!W$30:W$47, 'Outputs to aggregator'!$O$30:$O$47, $A77) -> 0 | L77: =SUMIFS('Outputs to aggregator'!X$30:X$47, 'Outputs to aggregator'!$O$30:$O$47, $A77) -> 0 | M77: =SUMIFS('Outputs to aggregator'!Y$30:Y$47, 'Outputs to aggregator'!$O$30:$O$47, $A77) -> 0
A78: WSX | B78: =CONCATENATE("C_", $C$2, "_ENH_W_AP") -> C_PR24CA48_ENH_W_AP | C78: =$C$6 -> Total enhancement allowance - Water - Eel fish screens - Accelerated programme | D78: £m | E78: Price Review 2024 | G78: =SUMIFS('Outputs to aggregator'!R$30:R$47, 'Outputs to aggregator'!$O$30:$O$47, $A78) -> 0 | H78: =SUMIFS('Outputs to aggregator'!T$30:T$47, 'Outputs to aggregator'!$O$30:$O$47, $A78) -> 0
A79: WSX | B79: =CONCATENATE("C_", $C$2, "_ENH_W_TE") -> C_PR24CA48_ENH_W_TE | C79: =$C$7 -> Total enhancement allowance - Water - Eel fish screens - Transition allowance | D79: £m | E79: Price Review 2024 | G79: =SUMIFS('Outputs to aggregator'!Q$30:Q$47, 'Outputs to aggregator'!$O$30:$O$47, $A79) -> 0 | H79: =SUMIFS('Outputs to aggregator'!S$30:S$47, 'Outputs to aggregator'!$O$30:$O$47, $A79) -> 0
A80: WSX | B80: =CONCATENATE("PR24QA_", $C$2, "_OUT1") -> PR24QA_PR24CA48_OUT1 | C80: =CONCATENATE("Date & Time for Model - ", $C$2) -> Date & Time for Model - PR24CA48 | D80: Text | E80: Price Review 2024 | F80: =CONCATENATE("[…]", TEXT(NOW(),"dd/mm/yyy hh:mm:ss")) -> […]16/12/2024 16:46:21 | G80: […]16/12/2024 16:46:21 | H80: […]16/12/2024 16:46:21 | I80: […]16/12/2024 16:46:21 | J80: […]16/12/2024 16:46:21 | K80: […]16/12/2024 16:46:21 | L80: […]16/12/2024 16:46:21 | M80: […]16/12/2024 16:46:21
A81: WSX | B81: =CONCATENATE("PR24QA_", $C$2, "_OUT2") -> PR24QA_PR24CA48_OUT2 | C81: =CONCATENATE("Name of Model - ", $C$2) -> Name of Model - PR24CA48 | D81: Text | E81: Price Review 2024 | F81: =MID(CELL("filename"),SEARCH("[",CELL("filename"))+1,SEARCH("]",CELL("filename"))-SEARCH("[",CELL("filename"))-1) -> 
A82: WSX | B82: =CONCATENATE("PR24QA_", $C$2, "_OUT3") -> PR24QA_PR24CA48_OUT3 | C82: =CONCATENATE("F_Inputs time stamp - ", $C$2) -> F_Inputs time stamp - PR24CA48 | D82: Text | E82: Price Review 2024 | F82: ='F_Inputs BP'!$E$2 -> Run on 04 Sep 2024 9:05 | G82: ='F_Inputs BP'!$E$2 -> Run on 04 Sep 2024 9:05 | H82: ='F_Inputs BP'!$E$2 -> Run on 04 Sep 2024 9:05 | I82: ='F_Inputs BP'!$E$2 -> Run on 04 Sep 2024 9:05 | J82: ='F_Inputs BP'!$E$2 -> Run on 04 Sep 2024 9:05 | K82: ='F_Inputs BP'!$E$2 -> Run on 04 Sep 2024 9:05 | L82: ='F_Inputs BP'!$E$2 -> Run on 04 Sep 2024 9:05 | M82: ='F_Inputs BP'!$E$2 -> Run on 04 Sep 2024 9:05
A83: WSX | B83: =CONCATENATE("PR24QA_", $C$2, "_OUT4") -> PR24QA_PR24CA48_OUT4 | C83: =CONCATENATE("Model override switch for - ", $C$2) -> Model override switch for - PR24CA48 | D83: nr | E83: Price Review 2024 | F83: =IF(SUM('Consolidated Input Override'!$E$5:$K$147)>0,1,0) -> 0 | G83: =IF(SUM('Consolidated Input Override'!$E$5:$K$147)>0,1,0) -> 0 | H83: =IF(SUM('Consolidated Input Override'!$E$5:$K$147)>0,1,0) -> 0 | I83: =IF(SUM('Consolidated Input Override'!$E$5:$K$147)>0,1,0) -> 0 | J83: =IF(SUM('Consolidated Input Override'!$E$5:$K$147)>0,1,0) -> 0 | K83: =IF(SUM('Consolidated Input Override'!$E$5:$K$147)>0,1,0) -> 0 | L83: =IF(SUM('Consolidated Input Override'!$E$5:$K$147)>0,1,0) -> 0 | M83: =IF(SUM('Consolidated Input Override'!$E$5:$K$147)>0,1,0) -> 0
A84: WSX | B84: =CONCATENATE("C_", $C$2, "_ENH_W_ASSESSED") -> C_PR24CA48_ENH_W_ASSESSED | C84: =CONCATENATE("Total amount assessed - ", MID($C$5,31,200)) -> Total amount assessed - Water - Eel fish screens - Totex | D84: £m | E84: Price Review 2024 | F84: =SUMIFS(Allowance!$E$10:$E$26, Allowance!$B$10:$B$26, A84) -> 0
A85: YKY | B85: =CONCATENATE("C_", $C$2, "_ENH_W_TOT") -> C_PR24CA48_ENH_W_TOT | C85: =$C$5 -> Total enhancement allowance - Water - Eel fish screens - Totex | D85: £m | E85: Price Review 2024 | I85: =SUMIFS('Outputs to aggregator'!U$30:U$47, 'Outputs to aggregator'!$O$30:$O$47, $A85) -> 1.0055168 | J85: =SUMIFS('Outputs to aggregator'!V$30:V$47, 'Outputs to aggregator'!$O$30:$O$47, $A85) -> 1.5313664 | K85: =SUMIFS('Outputs to aggregator'!W$30:W$47, 'Outputs to aggregator'!$O$30:$O$47, $A85) -> 1.6405248 | L85: =SUMIFS('Outputs to aggregator'!X$30:X$47, 'Outputs to aggregator'!$O$30:$O$47, $A85) -> 1.3361408 | M85: =SUMIFS('Outputs to aggregator'!Y$30:Y$47, 'Outputs to aggregator'!$O$30:$O$47, $A85) -> 0.7441664
A86: YKY | B86: =CONCATENATE("C_", $C$2, "_ENH_W_AP") -> C_PR24CA48_ENH_W_AP | C86: =$C$6 -> Total enhancement allowance - Water - Eel fish screens - Accelerated programme | D86: £m | E86: Price Review 2024 | G86: =SUMIFS('Outputs to aggregator'!R$30:R$47, 'Outputs to aggregator'!$O$30:$O$47, $A86) -> 0 | H86: =SUMIFS('Outputs to aggregator'!T$30:T$47, 'Outputs to aggregator'!$O$30:$O$47, $A86) -> 0
A87: YKY | B87: =CONCATENATE("C_", $C$2, "_ENH_W_TE") -> C_PR24CA48_ENH_W_TE | C87: =$C$7 -> Total enhancement allowance - Water - Eel fish screens - Transition allowance | D87: £m | E87: Price Review 2024 | G87: =SUMIFS('Outputs to aggregator'!Q$30:Q$47, 'Outputs to aggregator'!$O$30:$O$47, $A87) -> 0 | H87: =SUMIFS('Outputs to aggregator'!S$30:S$47, 'Outputs to aggregator'!$O$30:$O$47, $A87) -> 0
A88: YKY | B88: =CONCATENATE("PR24QA_", $C$2, "_OUT1") -> PR24QA_PR24CA48_OUT1 | C88: =CONCATENATE("Date & Time for Model - ", $C$2) -> Date & Time for Model - PR24CA48 | D88: Text | E88: Price Review 2024 | F88: =CONCATENATE("[…]", TEXT(NOW(),"dd/mm/yyy hh:mm:ss")) -> […]16/12/2024 16:46:21 | G88: […]16/12/2024 16:46:21 | H88: […]16/12/2024 16:46:21 | I88: […]16/12/2024 16:46:21 | J88: […]16/12/2024 16:46:21 | K88: […]16/12/2024 16:46:21 | L88: […]16/12/2024 16:46:21 | M88: […]16/12/2024 16:46:21
A89: YKY | B89: =CONCATENATE("PR24QA_", $C$2, "_OUT2") -> PR24QA_PR24CA48_OUT2 | C89: =CONCATENATE("Name of Model - ", $C$2) -> Name of Model - PR24CA48 | D89: Text | E89: Price Review 2024 | F89: =MID(CELL("filename"),SEARCH("[",CELL("filename"))+1,SEARCH("]",CELL("filename"))-SEARCH("[",CELL("filename"))-1) -> 
A90: YKY | B90: =CONCATENATE("PR24QA_", $C$2, "_OUT3") -> PR24QA_PR24CA48_OUT3 | C90: =CONCATENATE("F_Inputs time stamp - ", $C$2) -> F_Inputs time stamp - PR24CA48 | D90: Text | E90: Price Review 2024 | F90: ='F_Inputs BP'!$E$2 -> Run on 04 Sep 2024 9:05 | G90: ='F_Inputs BP'!$E$2 -> Run on 04 Sep 2024 9:05 | H90: ='F_Inputs BP'!$E$2 -> Run on 04 Sep 2024 9:05 | I90: ='F_Inputs BP'!$E$2 -> Run on 04 Sep 2024 9:05 | J90: ='F_Inputs BP'!$E$2 -> Run on 04 Sep 2024 9:05 | K90: ='F_Inputs BP'!$E$2 -> Run on 04 Sep 2024 9:05 | L90: ='F_Inputs BP'!$E$2 -> Run on 04 Sep 2024 9:05 | M90: ='F_Inputs BP'!$E$2 -> Run on 04 Sep 2024 9:05
A91: YKY | B91: =CONCATENATE("PR24QA_", $C$2, "_OUT4") -> PR24QA_PR24CA48_OUT4 | C91: =CONCATENATE("Model override switch for - ", $C$2) -> Model override switch for - PR24CA48 | D91: nr | E91: Price Review 2024 | F91: =IF(SUM('Consolidated Input Override'!$E$5:$K$147)>0,1,0) -> 0 | G91: =IF(SUM('Consolidated Input Override'!$E$5:$K$147)>0,1,0) -> 0 | H91: =IF(SUM('Consolidated Input Override'!$E$5:$K$147)>0,1,0) -> 0 | I91: =IF(SUM('Consolidated Input Override'!$E$5:$K$147)>0,1,0) -> 0 | J91: =IF(SUM('Consolidated Input Override'!$E$5:$K$147)>0,1,0) -> 0 | K91: =IF(SUM('Consolidated Input Override'!$E$5:$K$147)>0,1,0) -> 0 | L91: =IF(SUM('Consolidated Input Override'!$E$5:$K$147)>0,1,0) -> 0 | M91: =IF(SUM('Consolidated Input Override'!$E$5:$K$147)>0,1,0) -> 0
A92: YKY | B92: =CONCATENATE("C_", $C$2, "_ENH_W_ASSESSED") -> C_PR24CA48_ENH_W_ASSESSED | C92: =CONCATENATE("Total amount assessed - ", MID($C$5,31,200)) -> Total amount assessed - Water - Eel fish screens - Totex | D92: £m | E92: Price Review 2024 | F92: =SUMIFS(Allowance!$E$10:$E$26, Allowance!$B$10:$B$26, A92) -> 6.2577152
A93: AFW | B93: =CONCATENATE("C_", $C$2, "_ENH_W_TOT") -> C_PR24CA48_ENH_W_TOT | C93: =$C$5 -> Total enhancement allowance - Water - Eel fish screens - Totex | D93: £m | E93: Price Review 2024 | I93: =SUMIFS('Outputs to aggregator'!U$30:U$47, 'Outputs to aggregator'!$O$30:$O$47, $A93) -> 0 | J93: =SUMIFS('Outputs to aggregator'!V$30:V$47, 'Outputs to aggregator'!$O$30:$O$47, $A93) -> 0 | K93: =SUMIFS('Outputs to aggregator'!W$30:W$47, 'Outputs to aggregator'!$O$30:$O$47, $A93) -> 0 | L93: =SUMIFS('Outputs to aggregator'!X$30:X$47, 'Outputs to aggregator'!$O$30:$O$47, $A93) -> 0 | M93: =SUMIFS('Outputs to aggregator'!Y$30:Y$47, 'Outputs to aggregator'!$O$30:$O$47, $A93) -> 0
A94: AFW | B94: =CONCATENATE("C_", $C$2, "_ENH_W_AP") -> C_PR24CA48_ENH_W_AP | C94: =$C$6 -> Total enhancement allowance - Water - Eel fish screens - Accelerated programme | D94: £m | E94: Price Review 2024 | G94: =SUMIFS('Outputs to aggregator'!R$30:R$47, 'Outputs to aggregator'!$O$30:$O$47, $A94) -> 0 | H94: =SUMIFS('Outputs to aggregator'!T$30:T$47, 'Outputs to aggregator'!$O$30:$O$47, $A94) -> 0
A95: AFW | B95: =CONCATENATE("C_", $C$2, "_ENH_W_TE") -> C_PR24CA48_ENH_W_TE | C95: =$C$7 -> Total enhancement allowance - Water - Eel fish screens - Transition allowance | D95: £m | E95: Price Review 2024 | G95: =SUMIFS('Outputs to aggregator'!Q$30:Q$47, 'Outputs to aggregator'!$O$30:$O$47, $A95) -> 0 | H95: =SUMIFS('Outputs to aggregator'!S$30:S$47, 'Outputs to aggregator'!$O$30:$O$47, $A95) -> 0
A96: AFW | B96: =CONCATENATE("PR24QA_", $C$2, "_OUT1") -> PR24QA_PR24CA48_OUT1 | C96: =CONCATENATE("Date & Time for Model - ", $C$2) -> Date & Time for Model - PR24CA48 | D96: Text | E96: Price Review 2024 | F96: =CONCATENATE("[…]", TEXT(NOW(),"dd/mm/yyy hh:mm:ss")) -> […]16/12/2024 16:46:21 | G96: […]16/12/2024 16:46:21 | H96: […]16/12/2024 16:46:21 | I96: […]16/12/2024 16:46:21 | J96: […]16/12/2024 16:46:21 | K96: […]16/12/2024 16:46:21 | L96: […]16/12/2024 16:46:21 | M96: […]16/12/2024 16:46:21
A97: AFW | B97: =CONCATENATE("PR24QA_", $C$2, "_OUT2") -> PR24QA_PR24CA48_OUT2 | C97: =CONCATENATE("Name of Model - ", $C$2) -> Name of Model - PR24CA48 | D97: Text | E97: Price Review 2024 | F97: =MID(CELL("filename"),SEARCH("[",CELL("filename"))+1,SEARCH("]",CELL("filename"))-SEARCH("[",CELL("filename"))-1) -> 
A98: AFW | B98: =CONCATENATE("PR24QA_", $C$2, "_OUT3") -> PR24QA_PR24CA48_OUT3 | C98: =CONCATENATE("F_Inputs time stamp - ", $C$2) -> F_Inputs time stamp - PR24CA48 | D98: Text | E98: Price Review 2024 | F98: ='F_Inputs BP'!$E$2 -> Run on 04 Sep 2024 9:05 | G98: ='F_Inputs BP'!$E$2 -> Run on 04 Sep 2024 9:05 | H98: ='F_Inputs BP'!$E$2 -> Run on 04 Sep 2024 9:05 | I98: ='F_Inputs BP'!$E$2 -> Run on 04 Sep 2024 9:05 | J98: ='F_Inputs BP'!$E$2 -> Run on 04 Sep 2024 9:05 | K98: ='F_Inputs BP'!$E$2 -> Run on 04 Sep 2024 9:05 | L98: ='F_Inputs BP'!$E$2 -> Run on 04 Sep 2024 9:05 | M98: ='F_Inputs BP'!$E$2 -> Run on 04 Sep 2024 9:05
A99: AFW | B99: =CONCATENATE("PR24QA_", $C$2, "_OUT4") -> PR24QA_PR24CA48_OUT4 | C99: =CONCATENATE("Model override switch for - ", $C$2) -> Model override switch for - PR24CA48 | D99: nr | E99: Price Review 2024 | F99: =IF(SUM('Consolidated Input Override'!$E$5:$K$147)>0,1,0) -> 0 | G99: =IF(SUM('Consolidated Input Override'!$E$5:$K$147)>0,1,0) -> 0 | H99: =IF(SUM('Consolidated Input Override'!$E$5:$K$147)>0,1,0) -> 0 | I99: =IF(SUM('Consolidated Input Override'!$E$5:$K$147)>0,1,0) -> 0 | J99: =IF(SUM('Consolidated Input Override'!$E$5:$K$147)>0,1,0) -> 0 | K99: =IF(SUM('Consolidated Input Override'!$E$5:$K$147)>0,1,0) -> 0 | L99: =IF(SUM('Consolidated Input Override'!$E$5:$K$147)>0,1,0) -> 0 | M99: =IF(SUM('Consolidated Input Override'!$E$5:$K$147)>0,1,0) -> 0
A100: AFW | B100: =CONCATENATE("C_", $C$2, "_ENH_W_ASSESSED") -> C_PR24CA48_ENH_W_ASSESSED | C100: =CONCATENATE("Total amount assessed - ", MID($C$5,31,200)) -> Total amount assessed - Water - Eel fish screens - Totex | D100: £m | E100: Price Review 2024 | F100: =SUMIFS(Allowance!$E$10:$E$26, Allowance!$B$10:$B$26, A100) -> 0
A101: BRL | B101: =CONCATENATE("C_", $C$2, "_ENH_W_TOT") -> C_PR24CA48_ENH_W_TOT | C101: =$C$5 -> Total enhancement allowance - Water - Eel fish screens - Totex | D101: £m | E101: Price Review 2024 | I101: =SUMIFS('Outputs to aggregator'!U$30:U$47, 'Outputs to aggregator'!$O$30:$O$47, $A101) -> 0 | J101: =SUMIFS('Outputs to aggregator'!V$30:V$47, 'Outputs to aggregator'!$O$30:$O$47, $A101) -> 0 | K101: =SUMIFS('Outputs to aggregator'!W$30:W$47, 'Outputs to aggregator'!$O$30:$O$47, $A101) -> 0 | L101: =SUMIFS('Outputs to aggregator'!X$30:X$47, 'Outputs to aggregator'!$O$30:$O$47, $A101) -> 0 | M101: =SUMIFS('Outputs to aggregator'!Y$30:Y$47, 'Outputs to aggregator'!$O$30:$O$47, $A101) -> 0
A102: BRL | B102: =CONCATENATE("C_", $C$2, "_ENH_W_AP") -> C_PR24CA48_ENH_W_AP | C102: =$C$6 -> Total enhancement allowance - Water - Eel fish screens - Accelerated programme | D102: £m | E102: Price Review 2024 | G102: =SUMIFS('Outputs to aggregator'!R$30:R$47, 'Outputs to aggregator'!$O$30:$O$47, $A102) -> 0 | H102: =SUMIFS('Outputs to aggregator'!T$30:T$47, 'Outputs to aggregator'!$O$30:$O$47, $A102) -> 0
A103: BRL | B103: =CONCATENATE("C_", $C$2, "_ENH_W_TE") -> C_PR24CA48_ENH_W_TE | C103: =$C$7 -> Total enhancement allowance - Water - Eel fish screens - Transition allowance | D103: £m | E103: Price Review 2024 | G103: =SUMIFS('Outputs to aggregator'!Q$30:Q$47, 'Outputs to aggregator'!$O$30:$O$47, $A103) -> 0 | H103: =SUMIFS('Outputs to aggregator'!S$30:S$47, 'Outputs to aggregator'!$O$30:$O$47, $A103) -> 0
A104: BRL | B104: =CONCATENATE("PR24QA_", $C$2, "_OUT1") -> PR24QA_PR24CA48_OUT1 | C104: =CONCATENATE("Date & Time for Model - ", $C$2) -> Date & Time for Model - PR24CA48 | D104: Text | E104: Price Review 2024 | F104: =CONCATENATE("[…]", TEXT(NOW(),"dd/mm/yyy hh:mm:ss")) -> […]16/12/2024 16:46:21 | G104: […]16/12/2024 16:46:21 | H104: […]16/12/2024 16:46:21 | I104: […]16/12/2024 16:46:21 | J104: […]16/12/2024 16:46:21 | K104: […]16/12/2024 16:46:21 | L104: […]16/12/2024 16:46:21 | M104: […]16/12/2024 16:46:21
A105: BRL | B105: =CONCATENATE("PR24QA_", $C$2, "_OUT2") -> PR24QA_PR24CA48_OUT2 | C105: =CONCATENATE("Name of Model - ", $C$2) -> Name of Model - PR24CA48 | D105: Text | E105: Price Review 2024 | F105: =MID(CELL("filename"),SEARCH("[",CELL("filename"))+1,SEARCH("]",CELL("filename"))-SEARCH("[",CELL("filename"))-1) -> 
A106: BRL | B106: =CONCATENATE("PR24QA_", $C$2, "_OUT3") -> PR24QA_PR24CA48_OUT3 | C106: =CONCATENATE("F_Inputs time stamp - ", $C$2) -> F_Inputs time stamp - PR24CA48 | D106: Text | E106: Price Review 2024 | F106: ='F_Inputs BP'!$E$2 -> Run on 04 Sep 2024 9:05 | G106: ='F_Inputs BP'!$E$2 -> Run on 04 Sep 2024 9:05 | H106: ='F_Inputs BP'!$E$2 -> Run on 04 Sep 2024 9:05 | I106: ='F_Inputs BP'!$E$2 -> Run on 04 Sep 2024 9:05 | J106: ='F_Inputs BP'!$E$2 -> Run on 04 Sep 2024 9:05 | K106: ='F_Inputs BP'!$E$2 -> Run on 04 Sep 2024 9:05 | L106: ='F_Inputs BP'!$E$2 -> Run on 04 Sep 2024 9:05 | M106: ='F_Inputs BP'!$E$2 -> Run on 04 Sep 2024 9:05
A107: BRL | B107: =CONCATENATE("PR24QA_", $C$2, "_OUT4") -> PR24QA_PR24CA48_OUT4 | C107: =CONCATENATE("Model override switch for - ", $C$2) -> Model override switch for - PR24CA48 | D107: nr | E107: Price Review 2024 | F107: =IF(SUM('Consolidated Input Override'!$E$5:$K$147)>0,1,0) -> 0 | G107: =IF(SUM('Consolidated Input Override'!$E$5:$K$147)>0,1,0) -> 0 | H107: =IF(SUM('Consolidated Input Override'!$E$5:$K$147)>0,1,0) -> 0 | I107: =IF(SUM('Consolidated Input Override'!$E$5:$K$147)>0,1,0) -> 0 | J107: =IF(SUM('Consolidated Input Override'!$E$5:$K$147)>0,1,0) -> 0 | K107: =IF(SUM('Consolidated Input Override'!$E$5:$K$147)>0,1,0) -> 0 | L107: =IF(SUM('Consolidated Input Override'!$E$5:$K$147)>0,1,0) -> 0 | M107: =IF(SUM('Consolidated Input Override'!$E$5:$K$147)>0,1,0) -> 0
A108: BRL | B108: =CONCATENATE("C_", $C$2, "_ENH_W_ASSESSED") -> C_PR24CA48_ENH_W_ASSESSED | C108: =CONCATENATE("Total amount assessed - ", MID($C$5,31,200)) -> Total amount assessed - Water - Eel fish screens - Totex | D108: £m | E108: Price Review 2024 | F108: =SUMIFS(Allowance!$E$10:$E$26, Allowance!$B$10:$B$26, A108) -> 0
A109: PRT | B109: =CONCATENATE("C_", $C$2, "_ENH_W_TOT") -> C_PR24CA48_ENH_W_TOT | C109: =$C$5 -> Total enhancement allowance - Water - Eel fish screens - Totex | D109: £m | E109: Price Review 2024 | I109: =SUMIFS('Outputs to aggregator'!U$30:U$47, 'Outputs to aggregator'!$O$30:$O$47, $A109) -> 0 | J109: =SUMIFS('Outputs to aggregator'!V$30:V$47, 'Outputs to aggregator'!$O$30:$O$47, $A109) -> 0 | K109: =SUMIFS('Outputs to aggregator'!W$30:W$47, 'Outputs to aggregator'!$O$30:$O$47, $A109) -> 0 | L109: =SUMIFS('Outputs to aggregator'!X$30:X$47, 'Outputs to aggregator'!$O$30:$O$47, $A109) -> 0 | M109: =SUMIFS('Outputs to aggregator'!Y$30:Y$47, 'Outputs to aggregator'!$O$30:$O$47, $A109) -> 0
A110: PRT | B110: =CONCATENATE("C_", $C$2, "_ENH_W_AP") -> C_PR24CA48_ENH_W_AP | C110: =$C$6 -> Total enhancement allowance - Water - Eel fish screens - Accelerated programme | D110: £m | E110: Price Review 2024 | G110: =SUMIFS('Outputs to aggregator'!R$30:R$47, 'Outputs to aggregator'!$O$30:$O$47, $A110) -> 0 | H110: =SUMIFS('Outputs to aggregator'!T$30:T$47, 'Outputs to aggregator'!$O$30:$O$47, $A110) -> 0
A111: PRT | B111: =CONCATENATE("C_", $C$2, "_ENH_W_TE") -> C_PR24CA48_ENH_W_TE | C111: =$C$7 -> Total enhancement allowance - Water - Eel fish screens - Transition allowance | D111: £m | E111: Price Review 2024 | G111: =SUMIFS('Outputs to aggregator'!Q$30:Q$47, 'Outputs to aggregator'!$O$30:$O$47, $A111) -> 0 | H111: =SUMIFS('Outputs to aggregator'!S$30:S$47, 'Outputs to aggregator'!$O$30:$O$47, $A111) -> 0
A112: PRT | B112: =CONCATENATE("PR24QA_", $C$2, "_OUT1") -> PR24QA_PR24CA48_OUT1 | C112: =CONCATENATE("Date & Time for Model - ", $C$2) -> Date & Time for Model - PR24CA48 | D112: Text | E112: Price Review 2024 | F112: =CONCATENATE("[…]", TEXT(NOW(),"dd/mm/yyy hh:mm:ss")) -> […]16/12/2024 16:46:21 | G112: […]16/12/2024 16:46:21 | H112: […]16/12/2024 16:46:21 | I112: […]16/12/2024 16:46:21 | J112: […]16/12/2024 16:46:21 | K112: […]16/12/2024 16:46:21 | L112: […]16/12/2024 16:46:21 | M112: […]16/12/2024 16:46:21
A113: PRT | B113: =CONCATENATE("PR24QA_", $C$2, "_OUT2") -> PR24QA_PR24CA48_OUT2 | C113: =CONCATENATE("Name of Model - ", $C$2) -> Name of Model - PR24CA48 | D113: Text | E113: Price Review 2024 | F113: =MID(CELL("filename"),SEARCH("[",CELL("filename"))+1,SEARCH("]",CELL("filename"))-SEARCH("[",CELL("filename"))-1) -> 
A114: PRT | B114: =CONCATENATE("PR24QA_", $C$2, "_OUT3") -> PR24QA_PR24CA48_OUT3 | C114: =CONCATENATE("F_Inputs time stamp - ", $C$2) -> F_Inputs time stamp - PR24CA48 | D114: Text | E114: Price Review 2024 | F114: ='F_Inputs BP'!$E$2 -> Run on 04 Sep 2024 9:05 | G114: ='F_Inputs BP'!$E$2 -> Run on 04 Sep 2024 9:05 | H114: ='F_Inputs BP'!$E$2 -> Run on 04 Sep 2024 9:05 | I114: ='F_Inputs BP'!$E$2 -> Run on 04 Sep 2024 9:05 | J114: ='F_Inputs BP'!$E$2 -> Run on 04 Sep 2024 9:05 | K114: ='F_Inputs BP'!$E$2 -> Run on 04 Sep 2024 9:05 | L114: ='F_Inputs BP'!$E$2 -> Run on 04 Sep 2024 9:05 | M114: ='F_Inputs BP'!$E$2 -> Run on 04 Sep 2024 9:05
A115: PRT | B115: =CONCATENATE("PR24QA_", $C$2, "_OUT4") -> PR24QA_PR24CA48_OUT4 | C115: =CONCATENATE("Model override switch for - ", $C$2) -> Model override switch for - PR24CA48 | D115: nr | E115: Price Review 2024 | F115: =IF(SUM('Consolidated Input Override'!$E$5:$K$147)>0,1,0) -> 0 | G115: =IF(SUM('Consolidated Input Override'!$E$5:$K$147)>0,1,0) -> 0 | H115: =IF(SUM('Consolidated Input Override'!$E$5:$K$147)>0,1,0) -> 0 | I115: =IF(SUM('Consolidated Input Override'!$E$5:$K$147)>0,1,0) -> 0 | J115: =IF(SUM('Consolidated Input Override'!$E$5:$K$147)>0,1,0) -> 0 | K115: =IF(SUM('Consolidated Input Override'!$E$5:$K$147)>0,1,0) -> 0 | L115: =IF(SUM('Consolidated Input Override'!$E$5:$K$147)>0,1,0) -> 0 | M115: =IF(SUM('Consolidated Input Override'!$E$5:$K$147)>0,1,0) -> 0
A116: PRT | B116: =CONCATENATE("C_", $C$2, "_ENH_W_ASSESSED") -> C_PR24CA48_ENH_W_ASSESSED | C116: =CONCATENATE("Total amount assessed - ", MID($C$5,31,200)) -> Total amount assessed - Water - Eel fish screens - Totex | D116: £m | E116: Price Review 2024 | F116: =SUMIFS(Allowance!$E$10:$E$26, Allowance!$B$10:$B$26, A116) -> 0
A117: SEW | B117: =CONCATENATE("C_", $C$2, "_ENH_W_TOT") -> C_PR24CA48_ENH_W_TOT | C117: =$C$5 -> Total enhancement allowance - Water - Eel fish screens - Totex | D117: £m | E117: Price Review 2024 | I117: =SUMIFS('Outputs to aggregator'!U$30:U$47, 'Outputs to aggregator'!$O$30:$O$47, $A117) -> 0 | J117: =SUMIFS('Outputs to aggregator'!V$30:V$47, 'Outputs to aggregator'!$O$30:$O$47, $A117) -> 0 | K117: =SUMIFS('Outputs to aggregator'!W$30:W$47, 'Outputs to aggregator'!$O$30:$O$47, $A117) -> 0 | L117: =SUMIFS('Outputs to aggregator'!X$30:X$47, 'Outputs to aggregator'!$O$30:$O$47, $A117) -> 0 | M117: =SUMIFS('Outputs to aggregator'!Y$30:Y$47, 'Outputs to aggregator'!$O$30:$O$47, $A117) -> 0
A118: SEW | B118: =CONCATENATE("C_", $C$2, "_ENH_W_AP") -> C_PR24CA48_ENH_W_AP | C118: =$C$6 -> Total enhancement allowance - Water - Eel fish screens - Accelerated programme | D118: £m | E118: Price Review 2024 | G118: =SUMIFS('Outputs to aggregator'!R$30:R$47, 'Outputs to aggregator'!$O$30:$O$47, $A118) -> 0 | H118: =SUMIFS('Outputs to aggregator'!T$30:T$47, 'Outputs to aggregator'!$O$30:$O$47, $A118) -> 0
A119: SEW | B119: =CONCATENATE("C_", $C$2, "_ENH_W_TE") -> C_PR24CA48_ENH_W_TE | C119: =$C$7 -> Total enhancement allowance - Water - Eel fish screens - Transition allowance | D119: £m | E119: Price Review 2024 | G119: =SUMIFS('Outputs to aggregator'!Q$30:Q$47, 'Outputs to aggregator'!$O$30:$O$47, $A119) -> 0 | H119: =SUMIFS('Outputs to aggregator'!S$30:S$47, 'Outputs to aggregator'!$O$30:$O$47, $A119) -> 0
A120: SEW | B120: =CONCATENATE("PR24QA_", $C$2, "_OUT1") -> PR24QA_PR24CA48_OUT1 | C120: =CONCATENATE("Date & Time for Model - ", $C$2) -> Date & Time for Model - PR24CA48 | D120: Text | E120: Price Review 2024 | F120: =CONCATENATE("[…]", TEXT(NOW(),"dd/mm/yyy hh:mm:ss")) -> […]16/12/2024 16:46:21 | G120: […]16/12/2024 16:46:21 | H120: […]16/12/2024 16:46:21 | I120: […]16/12/2024 16:46:21 | J120: […]16/12/2024 16:46:21 | K120: […]16/12/2024 16:46:21 | L120: […]16/12/2024 16:46:21 | M120: […]16/12/2024 16:46:21
A121: SEW | B121: =CONCATENATE("PR24QA_", $C$2, "_OUT2") -> PR24QA_PR24CA48_OUT2 | C121: =CONCATENATE("Name of Model - ", $C$2) -> Name of Model - PR24CA48 | D121: Text | E121: Price Review 2024 | F121: =MID(CELL("filename"),SEARCH("[",CELL("filename"))+1,SEARCH("]",CELL("filename"))-SEARCH("[",CELL("filename"))-1) -> 
A122: SEW | B122: =CONCATENATE("PR24QA_", $C$2, "_OUT3") -> PR24QA_PR24CA48_OUT3 | C122: =CONCATENATE("F_Inputs time stamp - ", $C$2) -> F_Inputs time stamp - PR24CA48 | D122: Text | E122: Price Review 2024 | F122: ='F_Inputs BP'!$E$2 -> Run on 04 Sep 2024 9:05 | G122: ='F_Inputs BP'!$E$2 -> Run on 04 Sep 2024 9:05 | H122: ='F_Inputs BP'!$E$2 -> Run on 04 Sep 2024 9:05 | I122: ='F_Inputs BP'!$E$2 -> Run on 04 Sep 2024 9:05 | J122: ='F_Inputs BP'!$E$2 -> Run on 04 Sep 2024 9:05 | K122: ='F_Inputs BP'!$E$2 -> Run on 04 Sep 2024 9:05 | L122: ='F_Inputs BP'!$E$2 -> Run on 04 Sep 2024 9:05 | M122: ='F_Inputs BP'!$E$2 -> Run on 04 Sep 2024 9:05
A123: SEW | B123: =CONCATENATE("PR24QA_", $C$2, "_OUT4") -> PR24QA_PR24CA48_OUT4 | C123: =CONCATENATE("Model override switch for - ", $C$2) -> Model override switch for - PR24CA48 | D123: nr | E123: Price Review 2024 | F123: =IF(SUM('Consolidated Input Override'!$E$5:$K$147)>0,1,0) -> 0 | G123: =IF(SUM('Consolidated Input Override'!$E$5:$K$147)>0,1,0) -> 0 | H123: =IF(SUM('Consolidated Input Override'!$E$5:$K$147)>0,1,0) -> 0 | I123: =IF(SUM('Consolidated Input Override'!$E$5:$K$147)>0,1,0) -> 0 | J123: =IF(SUM('Consolidated Input Override'!$E$5:$K$147)>0,1,0) -> 0 | K123: =IF(SUM('Consolidated Input Override'!$E$5:$K$147)>0,1,0) -> 0 | L123: =IF(SUM('Consolidated Input Override'!$E$5:$K$147)>0,1,0) -> 0 | M123: =IF(SUM('Consolidated Input Override'!$E$5:$K$147)>0,1,0) -> 0
A124: SEW | B124: =CONCATENATE("C_", $C$2, "_ENH_W_ASSESSED") -> C_PR24CA48_ENH_W_ASSESSED | C124: =CONCATENATE("Total amount assessed - ", MID($C$5,31,200)) -> Total amount assessed - Water - Eel fish screens - Totex | D124: £m | E124: Price Review 2024 | F124: =SUMIFS(Allowance!$E$10:$E$26, Allowance!$B$10:$B$26, A124) -> 0
A125: SSC | B125: =CONCATENATE("C_", $C$2, "_ENH_W_TOT") -> C_PR24CA48_ENH_W_TOT | C125: =$C$5 -> Total enhancement allowance - Water - Eel fish screens - Totex | D125: £m | E125: Price Review 2024 | I125: =SUMIFS('Outputs to aggregator'!U$30:U$47, 'Outputs to aggregator'!$O$30:$O$47, $A125) -> 0.42 | J125: =SUMIFS('Outputs to aggregator'!V$30:V$47, 'Outputs to aggregator'!$O$30:$O$47, $A125) -> 0.42 | K125: =SUMIFS('Outputs to aggregator'!W$30:W$47, 'Outputs to aggregator'!$O$30:$O$47, $A125) -> 0.42 | L125: =SUMIFS('Outputs to aggregator'!X$30:X$47, 'Outputs to aggregator'!$O$30:$O$47, $A125) -> 0.42 | M125: =SUMIFS('Outputs to aggregator'!Y$30:Y$47, 'Outputs to aggregator'!$O$30:$O$47, $A125) -> 0.42
A126: SSC | B126: =CONCATENATE("C_", $C$2, "_ENH_W_AP") -> C_PR24CA48_ENH_W_AP | C126: =$C$6 -> Total enhancement allowance - Water - Eel fish screens - Accelerated programme | D126: £m | E126: Price Review 2024 | G126: =SUMIFS('Outputs to aggregator'!R$30:R$47, 'Outputs to aggregator'!$O$30:$O$47, $A126) -> 0 | H126: =SUMIFS('Outputs to aggregator'!T$30:T$47, 'Outputs to aggregator'!$O$30:$O$47, $A126) -> 0
A127: SSC | B127: =CONCATENATE("C_", $C$2, "_ENH_W_TE") -> C_PR24CA48_ENH_W_TE | C127: =$C$7 -> Total enhancement allowance - Water - Eel fish screens - Transition allowance | D127: £m | E127: Price Review 2024 | G127: =SUMIFS('Outputs to aggregator'!Q$30:Q$47, 'Outputs to aggregator'!$O$30:$O$47, $A127) -> 0 | H127: =SUMIFS('Outputs to aggregator'!S$30:S$47, 'Outputs to aggregator'!$O$30:$O$47, $A127) -> 0
A128: SSC | B128: =CONCATENATE("PR24QA_", $C$2, "_OUT1") -> PR24QA_PR24CA48_OUT1 | C128: =CONCATENATE("Date & Time for Model - ", $C$2) -> Date & Time for Model - PR24CA48 | D128: Text | E128: Price Review 2024 | F128: =CONCATENATE("[…]", TEXT(NOW(),"dd/mm/yyy hh:mm:ss")) -> […]16/12/2024 16:46:21 | G128: […]16/12/2024 16:46:21 | H128: […]16/12/2024 16:46:21 | I128: […]16/12/2024 16:46:21 | J128: […]16/12/2024 16:46:21 | K128: […]16/12/2024 16:46:21 | L128: […]16/12/2024 16:46:21 | M128: […]16/12/2024 16:46:21
A129: SSC | B129: =CONCATENATE("PR24QA_", $C$2, "_OUT2") -> PR24QA_PR24CA48_OUT2 | C129: =CONCATENATE("Name of Model - ", $C$2) -> Name of Model - PR24CA48 | D129: Text | E129: Price Review 2024 | F129: =MID(CELL("filename"),SEARCH("[",CELL("filename"))+1,SEARCH("]",CELL("filename"))-SEARCH("[",CELL("filename"))-1) -> 
A130: SSC | B130: =CONCATENATE("PR24QA_", $C$2, "_OUT3") -> PR24QA_PR24CA48_OUT3 | C130: =CONCATENATE("F_Inputs time stamp - ", $C$2) -> F_Inputs time stamp - PR24CA48 | D130: Text | E130: Price Review 2024 | F130: ='F_Inputs BP'!$E$2 -> Run on 04 Sep 2024 9:05 | G130: ='F_Inputs BP'!$E$2 -> Run on 04 Sep 2024 9:05 | H130: ='F_Inputs BP'!$E$2 -> Run on 04 Sep 2024 9:05 | I130: ='F_Inputs BP'!$E$2 -> Run on 04 Sep 2024 9:05 | J130: ='F_Inputs BP'!$E$2 -> Run on 04 Sep 2024 9:05 | K130: ='F_Inputs BP'!$E$2 -> Run on 04 Sep 2024 9:05 | L130: ='F_Inputs BP'!$E$2 -> Run on 04 Sep 2024 9:05 | M130: ='F_Inputs BP'!$E$2 -> Run on 04 Sep 2024 9:05
A131: SSC | B131: =CONCATENATE("PR24QA_", $C$2, "_OUT4") -> PR24QA_PR24CA48_OUT4 | C131: =CONCATENATE("Model override switch for - ", $C$2) -> Model override switch for - PR24CA48 | D131: nr | E131: Price Review 2024 | F131: =IF(SUM('Consolidated Input Override'!$E$5:$K$147)>0,1,0) -> 0 | G131: =IF(SUM('Consolidated Input Override'!$E$5:$K$147)>0,1,0) -> 0 | H131: =IF(SUM('Consolidated Input Override'!$E$5:$K$147)>0,1,0) -> 0 | I131: =IF(SUM('Consolidated Input Override'!$E$5:$K$147)>0,1,0) -> 0 | J131: =IF(SUM('Consolidated Input Override'!$E$5:$K$147)>0,1,0) -> 0 | K131: =IF(SUM('Consolidated Input Override'!$E$5:$K$147)>0,1,0) -> 0 | L131: =IF(SUM('Consolidated Input Override'!$E$5:$K$147)>0,1,0) -> 0 | M131: =IF(SUM('Consolidated Input Override'!$E$5:$K$147)>0,1,0) -> 0
A132: SSC | B132: =CONCATENATE("C_", $C$2, "_ENH_W_ASSESSED") -> C_PR24CA48_ENH_W_ASSESSED | C132: =CONCATENATE("Total amount assessed - ", MID($C$5,31,200)) -> Total amount assessed - Water - Eel fish screens - Totex | D132: £m | E132: Price Review 2024 | F132: =SUMIFS(Allowance!$E$10:$E$26, Allowance!$B$10:$B$26, A132) -> 2.1
A133: SES | B133: =CONCATENATE("C_", $C$2, "_ENH_W_TOT") -> C_PR24CA48_ENH_W_TOT | C133: =$C$5 -> Total enhancement allowance - Water - Eel fish screens - Totex | D133: £m | E133: Price Review 2024 | I133: =SUMIFS('Outputs to aggregator'!U$30:U$47, 'Outputs to aggregator'!$O$30:$O$47, $A133) -> 0.225 | J133: =SUMIFS('Outputs to aggregator'!V$30:V$47, 'Outputs to aggregator'!$O$30:$O$47, $A133) -> 0.6759 | K133: =SUMIFS('Outputs to aggregator'!W$30:W$47, 'Outputs to aggregator'!$O$30:$O$47, $A133) -> 0.9 | L133: =SUMIFS('Outputs to aggregator'!X$30:X$47, 'Outputs to aggregator'!$O$30:$O$47, $A133) -> 0 | M133: =SUMIFS('Outputs to aggregator'!Y$30:Y$47, 'Outputs to aggregator'!$O$30:$O$47, $A133) -> 0
A134: SES | B134: =CONCATENATE("C_", $C$2, "_ENH_W_AP") -> C_PR24CA48_ENH_W_AP | C134: =$C$6 -> Total enhancement allowance - Water - Eel fish screens - Accelerated programme | D134: £m | E134: Price Review 2024 | G134: =SUMIFS('Outputs to aggregator'!R$30:R$47, 'Outputs to aggregator'!$O$30:$O$47, $A134) -> 0 | H134: =SUMIFS('Outputs to aggregator'!T$30:T$47, 'Outputs to aggregator'!$O$30:$O$47, $A134) -> 0
A135: SES | B135: =CONCATENATE("C_", $C$2, "_ENH_W_TE") -> C_PR24CA48_ENH_W_TE | C135: =$C$7 -> Total enhancement allowance - Water - Eel fish screens - Transition allowance | D135: £m | E135: Price Review 2024 | G135: =SUMIFS('Outputs to aggregator'!Q$30:Q$47, 'Outputs to aggregator'!$O$30:$O$47, $A135) -> 0 | H135: =SUMIFS('Outputs to aggregator'!S$30:S$47, 'Outputs to aggregator'!$O$30:$O$47, $A135) -> 0
A136: SES | B136: =CONCATENATE("PR24QA_", $C$2, "_OUT1") -> PR24QA_PR24CA48_OUT1 | C136: =CONCATENATE("Date & Time for Model - ", $C$2) -> Date & Time for Model - PR24CA48 | D136: Text | E136: Price Review 2024 | F136: =CONCATENATE("[…]", TEXT(NOW(),"dd/mm/yyy hh:mm:ss")) -> […]16/12/2024 16:46:21 | G136: […]16/12/2024 16:46:21 | H136: […]16/12/2024 16:46:21 | I136: […]16/12/2024 16:46:21 | J136: […]16/12/2024 16:46:21 | K136: […]16/12/2024 16:46:21 | L136: […]16/12/2024 16:46:21 | M136: […]16/12/2024 16:46:21
A137: SES | B137: =CONCATENATE("PR24QA_", $C$2, "_OUT2") -> PR24QA_PR24CA48_OUT2 | C137: =CONCATENATE("Name of Model - ", $C$2) -> Name of Model - PR24CA48 | D137: Text | E137: Price Review 2024 | F137: =MID(CELL("filename"),SEARCH("[",CELL("filename"))+1,SEARCH("]",CELL("filename"))-SEARCH("[",CELL("filename"))-1) -> 
A138: SES | B138: =CONCATENATE("PR24QA_", $C$2, "_OUT3") -> PR24QA_PR24CA48_OUT3 | C138: =CONCATENATE("F_Inputs time stamp - ", $C$2) -> F_Inputs time stamp - PR24CA48 | D138: Text | E138: Price Review 2024 | F138: ='F_Inputs BP'!$E$2 -> Run on 04 Sep 2024 9:05 | G138: ='F_Inputs BP'!$E$2 -> Run on 04 Sep 2024 9:05 | H138: ='F_Inputs BP'!$E$2 -> Run on 04 Sep 2024 9:05 | I138: ='F_Inputs BP'!$E$2 -> Run on 04 Sep 2024 9:05 | J138: ='F_Inputs BP'!$E$2 -> Run on 04 Sep 2024 9:05 | K138: ='F_Inputs BP'!$E$2 -> Run on 04 Sep 2024 9:05 | L138: ='F_Inputs BP'!$E$2 -> Run on 04 Sep 2024 9:05 | M138: ='F_Inputs BP'!$E$2 -> Run on 04 Sep 2024 9:05
A139: SES | B139: =CONCATENATE("PR24QA_", $C$2, "_OUT4") -> PR24QA_PR24CA48_OUT4 | C139: =CONCATENATE("Model override switch for - ", $C$2) -> Model override switch for - PR24CA48 | D139: nr | E139: Price Review 2024 | F139: =IF(SUM('Consolidated Input Override'!$E$5:$K$147)>0,1,0) -> 0 | G139: =IF(SUM('Consolidated Input Override'!$E$5:$K$147)>0,1,0) -> 0 | H139: =IF(SUM('Consolidated Input Override'!$E$5:$K$147)>0,1,0) -> 0 | I139: =IF(SUM('Consolidated Input Override'!$E$5:$K$147)>0,1,0) -> 0 | J139: =IF(SUM('Consolidated Input Override'!$E$5:$K$147)>0,1,0) -> 0 | K139: =IF(SUM('Consolidated Input Override'!$E$5:$K$147)>0,1,0) -> 0 | L139: =IF(SUM('Consolidated Input Override'!$E$5:$K$147)>0,1,0) -> 0 | M139: =IF(SUM('Consolidated Input Override'!$E$5:$K$147)>0,1,0) -> 0
A140: SES | B140: =CONCATENATE("C_", $C$2, "_ENH_W_ASSESSED") -> C_PR24CA48_ENH_W_ASSESSED | C140: =CONCATENATE("Total amount assessed - ", MID($C$5,31,200)) -> Total amount assessed - Water - Eel fish screens - Totex | D140: £m | E140: Price Review 2024 | F140: =SUMIFS(Allowance!$E$10:$E$26, Allowance!$B$10:$B$26, A140) -> 2.001

Sheet Post Adj & FS Allowances
A1: =RIGHT(CELL("filename", A1), LEN(CELL("filename", A1)) - SEARCH("]", CELL("filename", A1))) -> 
C2: PR24CA14 W post FS excl DM and Cont | E2: Run on 20 Nov 2024 13:33
A4: Company Acronym | B4: Item Code | C4: Item Description | D4: Item Unit | E4: Item Table Suite | F4: 2023-24 | G4: 2024-25 | H4: 2025-26 | I4: 2026-27 | J4: 2027-28 | K4: 2028-29 | L4: 2029-30 | M4: Total
A5: ANH | B5: PR24CA14_W_TOTAL_ENHANCEMENT_ALLOW_TOT | C5: PR24 final water enhancement totex allowance- total enhancement expenditure | D5: £m | E5: Price Review 2024 | F5: 3.001484091 | G5: 25.67351035 | H5: 301.2255215 | I5: 374.1648394 | J5: 474.5219644 | K5: 486.7580892 | L5: 447.6720324 | M5: =SUM(F5:L5) -> 2113.017441
A6: ANH | B6: PR24CA14_W_BIODIVERSITY_ALLOW_TOT | C6: PR24 final water enhancement totex allowance- WINEP/NEP - biodiversity and conservation expenditure | D6: £m | E6: Price Review 2024 | F6: 0 | G6: 1.20881586 | H6: 0.7292165433 | I6: 0.3962734781 | J6: 0.4645914043 | K6: 0.1074203492 | L6: 0.1066950033 | M6: =SUM(F6:L6) -> 3.013012638
A7: ANH | B7: PR24CA14_W_EELS_SCREENS_ALLOW_TOT | C7: PR24 final water enhancement totex allowance- WINEP/NEP - eels and fish screens expenditure | D7: £m | E7: Price Review 2024 | F7: 0 | G7: 0 | H7: 0 | I7: 0 | J7: 0 | K7: 0 | L7: 0 | M7: 0
A8: ANH | B8: PR24CA14_W_EELS_PASSES_ALLOW_TOT | C8: PR24 final water enhancement totex allowance- WINEP/NEP - eels and fish passes expenditure | D8: £m | E8: Price Review 2024 | F8: 0 | G8: 0 | H8: 0.09018236506 | I8: 0.2381497545 | J8: 0.2873761264 | K8: 0.1758651734 | L8: 0.08781093189 | M8: 0.8793843512
A9: ANH | B9: PR24CA14_W_INNS_ALLOW_TOT | C9: PR24 final water enhancement totex allowance- WINEP/NEP - invasive non-native species expenditure | D9: £m | E9: Price Review 2024 | F9: 0 | G9: 0 | H9: 0.04557603395 | I9: 0.1504103712 | J9: 0.4262745875 | K9: 0.1654083253 | L9: 0.04909858557 | M9: 0.8367679035
A10: ANH | B10: PR24CA14_W_DWPA_ALLOW_TOT | C10: PR24 final water enhancement totex allowance- WINEP/NEP - drinking water protected areas expenditure | D10: £m | E10: Price Review 2024 | F10: 0 | G10: 0 | H10: 2.272983481 | I10: 2.260012245 | J10: 2.245365468 | K10: 2.228259278 | L10: 2.40488649 | M10: 11.41150696
A11: ANH | B11: PR24CA14_W_WFD_ALLOW_TOT | C11: PR24 final water enhancement totex allowance- WINEP/NEP - water framework directive expenditure | D11: £m | E11: Price Review 2024 | F11: 0 | G11: 0.5881935634 | H11: 3.033190935 | I11: 4.935561672 | J11: 5.814088223 | K11: 5.125504632 | L11: 3.667941823 | M11: 23.16448085
A12: ANH | B12: PR24CA14_W_DISCHARGE_MONITOR_ALLOW_TOT | C12: PR24 final water enhancement totex allowance- WINEP/NEP - trade effluent discharge flow monitoring expenditure | D12: £m | E12: Price Review 2024 | F12: 0 | G12: 0 | H12: 0 | I12: 0 | J12: 0 | K12: 0 | L12: 0 | M12: 0
A13: ANH | B13: PR24CA14_W_25YR_EP_ALLOW_TOT | C13: PR24 final water enhancement totex allowance- WINEP/NEP - 25 year environment plan expenditure | D13: £m | E13: Price Review 2024 | F13: 0 | G13: 0 | H13: 0 | I13: 0 | J13: 0 | K13: 0 | L13: 0 | M13: 0
A14: ANH | B14: PR24CA14_W_INVESTIGATIONS_ALLOW_TOT | C14: PR24 final water enhancement totex allowance- WINEP/NEP - investigations expenditure | D14: £m | E14: Price Review 2024 | F14: 0.194 | G14: 0.9688830217 | H14: 7.123357977 | I14: 1.817163499 | J14: 0.729192484 | K14: 0.7236371724 | L14: 0.7187508799 | M14: 12.27498503
A15: ANH | B15: PR24CA14_W_WETLAND_ALLOW_TOT | C15: PR24 final water enhancement totex allowance- WINEP/NEP - wetland creation expenditure | D15: £m | E15: Price Review 2024 | F15: 0 | G15: 0 | H15: 0 | I15: 0 | J15: 0 | K15: 0 | L15: 0 | M15: 0
A16: ANH | B16: PR24CA14_W_SUPPLY_ALLOW_TOT | C16: PR24 final water enhancement totex allowance- Supply-demand balance - supply expenditure | D16: £m | E16: Price Review 2024 | F16: 1.055690615 | G16: 9.6095149 | H16: 17.26257872 | I16: 27.52083118 | J16: 38.42251236 | K16: 70.02840177 | L16: 59.6766948 | M16: 223.5762243
A17: ANH | B17: PR24CA14_W_SUPPLY_INTER_ALLOW_TOT | C17: PR24 final water enhancement totex allowance- Supply-demand balance - supply interconnectors expenditure | D17: £m | E17: Price Review 2024 | F17: 1.751793476 | G17: 7.193569414 | H17: 26.38643284 | I17: 57.4456357 | J17: 97.87381773 | K17: 147.0526361 | L17: 261.2476794 | M17: 598.9515646
A18: ANH | B18: PR24CA14_W_LEAKAGE_ALLOW_TOT | C18: PR24 final water enhancement totex allowance- Supply-demand balance - leakage expenditure | D18: £m | E18: Price Review 2024 | F18: 0 | G18: 0 | H18: 6.199542748 | I18: 7.018553607 | J18: 8.412692188 | K18: 9.683794031 | L18: 9.09034527 | M18: 40.40492784
A19: ANH | B19: PR24CA14_W_DEMAND_ALLOW_TOT | C19: PR24 final water enhancement totex allowance- Supply-demand balance - demand expenditure | D19: £m | E19: Price Review 2024 | F19: 0 | G19: 0 | H19: 6.188968388 | I19: 5.712561117 | J19: 3.285193157 | K19: 3.428444765 | L19: 3.604658294 | M19: 22.21982572
A20: ANH | B20: PR24CA14_W_SRO_ALLOW_TOT | C20: PR24 final water enhancement totex allowance- Supply-demand balance - strategic resource options expenditure | D20: £m | E20: Price Review 2024 | F20: 0 | G20: 0 | H20: 181.9646062 | I20: 182.6508708 | J20: 216.1758572 | K20: 159.802624 | L20: 53.04604048 | M20: 793.6399988
A21: ANH | B21: PR24CA14_W_METERING_ALLOW_TOT | C21: PR24 final water enhancement totex allowance- Metering - metering expenditure | D21: £m | E21: Price Review 2024 | F21: 0 | G21: 6.104533591 | H21: 22.79789893 | I21: 21.12654535 | J21: 20.7554805 | K21: 19.11070843 | L21: 15.39455654 | M21: 105.2897233
A22: ANH | B22: PR24CA14_W_TOC_ALLOW_TOT | C22: PR24 final water enhancement totex allowance- water quality improvements - taste, odour and colour expenditure | D22: £m | E22: Price Review 2024 | F22: 0 | G22: 0 | H22: 0.8960054335 | I22: 2.168416185 | J22: 0.3898736115 | K22: 0.1958282471 | L22: 0.05193119628 | M22: 3.702054674
A23: ANH | B23: PR24CA14_W_RWD_ALLOW_TOT | C23: PR24 final water enhancement totex allowance- water quality improvements - raw water deterioration expenditure | D23: £m | E23: Price Review 2024 | F23: 0 | G23: 0 | H23: 18.61674117 | I23: 43.18216146 | J23: 58.5664323 | K23: 54.96902776 | L23: 32.94194659 | M23: 208.2763093
A24: ANH | B24: PR24CA14_W_LEAD_ALLOW_TOT | C24: PR24 final water enhancement totex allowance- water quality improvements - lead expenditure | D24: £m | E24: Price Review 2024 | F24: 0 | G24: 0 | H24: 3.094582454 | I24: 3.082087099 | J24: 3.067243617 | K24: 3.050665249 | L24: 3.035123473 | M24: 15.32970189
A25: ANH | B25: PR24CA14_W_RESILIENCE_INTER_ALLOW_TOT | C25: PR24 final water enhancement totex allowance- resilience interconnectors expenditure | D25: £m | E25: Price Review 2024 | F25: 0 | G25: 0 | H25: 0.692659427 | I25: 1.859861984 | J25: 2.748406289 | K25: 1.354569564 | L25: 0.000866896237 | M25: 6.656364161
A26: ANH | B26: PR24CA14_W_RESILIENCE_ALLOW_TOT | C26: PR24 final water enhancement totex allowance- resilience expenditure | D26: £m | E26: Price Review 2024 | F26: 0 | G26: 0 | H26: 0.007914675184 | I26: 5.026648557 | J26: 3.992325382 | K26: 2.878567714 | L26: 0.3178952324 | M26: 12.22335156
A27: ANH | B27: PR24CA14_W_SEMD_ALLOW_TOT | C27: PR24 final water enhancement totex allowance- security SEMD expenditure | D27: £m | E27: Price Review 2024 | F27: 0 | G27: 0 | H27: 0.4620930928 | I27: 0.459456066 | J27: 0.4564784049 | K27: 0.45300075 | L27: 1.172546677 | M27: 3.00357499
A28: ANH | B28: PR24CA14_W_CYBER_ALLOW_TOT | C28: PR24 final water enhancement totex allowance- security cyber expenditure | D28: £m | E28: Price Review 2024 | F28: 0 | G28: 0 | H28: 3.360990078 | I28: 7.113639224 | J28: 10.4087633 | K28: 6.223725893 | L28: 1.056563793 | M28: 28.16368229
A29: ANH | B29: PR24CA14_W_RESERVOIR_SAFETY_ALLOW_TOT | C29: PR24 final water enhancement totex allowance- reservoir safety expenditure | D29: £m | E29: Price Review 2024 | F29: 0 | G29: 0 | H29: 0 | I29: 0 | J29: 0 | K29: 0 | L29: 0 | M29: 0
A30: ANH | B30: PR24CA14_W_NET_ZERO_ALLOW_TOT | C30: PR24 final water enhancement totex allowance- Greenhouse gas reduction (net zero) expenditure | D30: £m | E30: Price Review 2024 | F30: 0 | G30: 0 | H30: 0 | I30: 0 | J30: 0 | K30: 0 | L30: 0 | M30: 0
A31: ANH | B31: PR24CA14_W_FREEFORM_ALLOW_TOT | C31: PR24 final water enhancement totex allowance- freeform line expenditure | D31: £m | E31: Price Review 2024 | F31: 0 | G31: 0 | H31: 0 | I31: 0 | J31: 0 | K31: 0 | L31: 0 | M31: 0
A32: ANH | B32: PR24CA103_W_WINEPCARRYOVER_ALLOW_TOT | C32: PR24 final water enhancement totex allowance- WINEP carryover expenditure | D32: £m | E32: Price Review 2024 | F32: 0 | G32: 0 | H32: 0 | I32: 0 | J32: 0 | K32: 0 | L32: 0 | M32: 0
A33: WSH | B33: PR24CA14_W_TOTAL_ENHANCEMENT_ALLOW_TOT | C33: PR24 final water enhancement totex allowance- total enhancement expenditure | D33: £m | E33: Price Review 2024 | F33: 0 | G33: 0 | H33: 119.2351072 | I33: 125.3270007 | J33: 124.8583347 | K33: 112.8890956 | L33: 103.5696363 | M33: 585.8791745
A34: WSH | B34: PR24CA14_W_BIODIVERSITY_ALLOW_TOT | C34: PR24 final water enhancement totex allowance- WINEP/NEP - biodiversity and conservation expenditure | D34: £m | E34: Price Review 2024 | F34: 0 | G34: 0 | H34: 0.2448994443 | I34: 0.238631839 | J34: 0.235149914 | K34: 0.2362394061 | L34: 0.2413210896 | M34: 1.196241693
A35: WSH | B35: PR24CA14_W_EELS_SCREENS_ALLOW_TOT | C35: PR24 final water enhancement totex allowance- WINEP/NEP - eels and fish screens expenditure | D35: £m | E35: Price Review 2024 | F35: 0 | G35: 0 | H35: 1.669234612 | I35: 1.63243658 | J35: 0.7354482908 | K35: 0.7346469337 | L35: 0.7392246817 | M35: 5.510991099
A36: WSH | B36: PR24CA14_W_EELS_PASSES_ALLOW_TOT | C36: PR24 final water enhancement totex allowance- WINEP/NEP - eels and fish passes expenditure | D36: £m | E36: Price Review 2024 | F36: 0 | G36: 0 | H36: 0.1165721355 | I36: 0.1129848707 | J36: 0.113220329 | K36: 0.1133180891 | L36: 0.1144605959 | M36: 0.5705560202
A37: WSH | B37: PR24CA14_W_INNS_ALLOW_TOT | C37: PR24 final water enhancement totex allowance- WINEP/NEP - invasive non-native species expenditure | D37: £m | E37: Price Review 2024 | F37: 0 | G37: 0 | H37: 0 | I37: 0 | J37: 0 | K37: 0 | L37: 0 | M37: 0
A38: WSH | B38: PR24CA14_W_DWPA_ALLOW_TOT | C38: PR24 final water enhancement totex allowance- WINEP/NEP - drinking water protected areas expenditure | D38: £m | E38: Price Review 2024 | F38: 0 | G38: 0 | H38: 3.786145409 | I38: 3.703176538 | J38: 3.68595071 | K38: 3.685718865 | L38: 3.704707953 | M38: 18.56569947
A39: WSH | B39: PR24CA14_W_WFD_ALLOW_TOT | C39: PR24 final water enhancement totex allowance- WINEP/NEP - water framework directive expenditure | D39: £m | E39: Price Review 2024 | F39: 0 | G39: 0 | H39: 0.4447373908 | I39: 0.4344073477 | J39: 0.4325597184 | K39: 0.4302246095 | L39: 0.4349502643 | M39: 2.176879331
A40: WSH | B40: PR24CA14_W_DISCHARGE_MONITOR_ALLOW_TOT | C40: PR24 final water enhancement totex allowance- WINEP/NEP - trade effluent discharge flow monitoring expenditure | D40: £m | E40: Price Review 2024 | F40: 0 | G40: 0 | H40: 0 | I40: 0 | J40: 0 | K40: 0 | L40: 0 | M40: 0
A41: WSH | B41: PR24CA14_W_25YR_EP_ALLOW_TOT | C41: PR24 final water enhancement totex allowance- WINEP/NEP - 25 year environment plan expenditure | D41: £m | E41: Price Review 2024 | F41: 0 | G41: 0 | H41: 0 | I41: 0 | J41: 0 | K41: 0 | L41: 0 | M41: 0
A42: WSH | B42: PR24CA14_W_INVESTIGATIONS_ALLOW_TOT | C42: PR24 final water enhancement totex allowance- WINEP/NEP - investigations expenditure | D42: £m | E42: Price Review 2024 | F42: 0 | G42: 0 | H42: 1.388258264 | I42: 1.358691279 | J42: 1.268755823 | K42: 1.267820086 | L42: 1.275638291 | M42: 6.559163743
A43: WSH | B43: PR24CA14_W_WETLAND_ALLOW_TOT | C43: PR24 final water enhancement totex allowance- WINEP/NEP - wetland creation expenditure | D43: £m | E43: Price Review 2024 | F43: 0 | G43: 0 | H43: 0 | I43: 0 | J43: 0 | K43: 0 | L43: 0 | M43: 0
A44: WSH | B44: PR24CA14_W_SUPPLY_ALLOW_TOT | C44: PR24 final water enhancement totex allowance- Supply-demand balance - supply expenditure | D44: £m | E44: Price Review 2024 | F44: 0 | G44: 0 | H44: 0.218084192 | I44: 0.2168396508 | J44: 0.2154343478 | K44: 0.2137930735 | L44: 0.2123494557 | M44: 1.07650072
A45: WSH | B45: PR24CA14_W_SUPPLY_INTER_ALLOW_TOT | C45: PR24 final water enhancement totex allowance- Supply-demand balance - supply interconnectors expenditure | D45: £m | E45: Price Review 2024 | F45: 0 | G45: 0 | H45: 6.969722016 | I45: 15.68832928 | J45: 17.23197349 | K45: 2.74972217 | L45: 2.740124827 | M45: 45.37987178
A46: WSH | B46: PR24CA14_W_LEAKAGE_ALLOW_TOT | C46: PR24 final water enhancement totex allowance- Supply-demand balance - leakage expenditure | D46: £m | E46: Price Review 2024 | F46: 0 | G46: 0 | H46: 0.5393495853 | I46: 0.5362716788 | J46: 0.532796188 | K46: 0.5287371105 | L46: 0.5251668624 | M46: 2.662321425
A47: WSH | B47: PR24CA14_W_DEMAND_ALLOW_TOT | C47: PR24 final water enhancement totex allowance- Supply-demand balance - demand expenditure | D47: £m | E47: Price Review 2024 | F47: 0 | G47: 0 | H47: 2.304701669 | I47: 2.252923635 | J47: 2.240536767 | K47: 2.23591761 | L47: 2.250644092 | M47: 11.28472377
A48: WSH | B48: PR24CA14_W_SRO_ALLOW_TOT | C48: PR24 final water enhancement totex allowance- Supply-demand balance - strategic resource options expenditure | D48: £m | E48: Price Review 2024 | F48: 0 | G48: 0 | H48: 0 | I48: 0 | J48: 0 | K48: 0 | L48: 0 | M48: 0
A49: WSH | B49: PR24CA14_W_METERING_ALLOW_TOT | C49: PR24 final water enhancement totex allowance- Metering - metering expenditure | D49: £m | E49: Price Review 2024 | F49: 0 | G49: 0 | H49: 27.56341387 | I49: 24.00302211 | J49: 21.97464329 | K49: 20.92664538 | L49: 22.57534261 | M49: 117.0430673
A50: WSH | B50: PR24CA14_W_TOC_ALLOW_TOT | C50: PR24 final water enhancement totex allowance- water quality improvements - taste, odour and colour expenditure | D50: £m | E50: Price Review 2024 | F50: 0 | G50: 0 | H50: 15.33991247 | I50: 15.21431159 | J50: 19.63940773 | K50: 25.42213393 | L50: 21.35550092 | M50: 96.97126664
A51: WSH | B51: PR24CA14_W_RWD_ALLOW_TOT | C51: PR24 final water enhancement totex allowance- water quality improvements - raw water deterioration expenditure | D51: £m | E51: Price Review 2024 | F51: 0 | G51: 0 | H51: 12.29447196 | I51: 13.87604836 | J51: 12.38984798 | K51: 10.57776176 | L51: 5.076552626 | M51: 54.21468268
A52: WSH | B52: PR24CA14_W_LEAD_ALLOW_TOT | C52: PR24 final water enhancement totex allowance- water quality improvements - lead expenditure | D52: £m | E52: Price Review 2024 | F52: 0 | G52: 0 | H52: 2.677275148 | I52: 2.641001831 | J52: 2.626120798 | K52: 2.614985245 | L52: 2.61274792 | M52: 13.17213094
A53: WSH | B53: PR24CA14_W_RESILIENCE_INTER_ALLOW_TOT | C53: PR24 final water enhancement totex allowance- resilience interconnectors expenditure | D53: £m | E53: Price Review 2024 | F53: 0 | G53: 0 | H53: 8.696057681 | I53: 8.646431885 | J53: 8.590395746 | K53: 8.524950303 | L53: 8.467386371 | M53: 42.92522199
A54: WSH | B54: PR24CA14_W_RESILIENCE_ALLOW_TOT | C54: PR24 final water enhancement totex allowance- resilience expenditure | D54: £m | E54: Price Review 2024 | F54: 0 | G54: 0 | H54: 5.532136782 | I54: 6.623243658 | J54: 7.947497151 | K54: 7.870222679 | L54: 6.159005703 | M54: 34.13210597
A55: WSH | B55: PR24CA14_W_SEMD_ALLOW_TOT | C55: PR24 final water enhancement totex allowance- security SEMD expenditure | D55: £m | E55: Price Review 2024 | F55: 0 | G55: 0 | H55: 5.678896528 | I55: 5.634682615 | J55: 2.599287739 | K55: 2.25278146 | L55: 2.204426291 | M55: 18.37007463
A56: WSH | B56: PR24CA14_W_CYBER_ALLOW_TOT | C56: PR24 final water enhancement totex allowance- security cyber expenditure | D56: £m | E56: Price Review 2024 | F56: 0 | G56: 0 | H56: 1.08833313 | I56: 1.064590204 | J56: 1.059626156 | K56: 1.058275714 | L56: 1.06543738 | M56: 5.336262584
A57: WSH | B57: PR24CA14_W_RESERVOIR_SAFETY_ALLOW_TOT | C57: PR24 final water enhancement totex allowance- reservoir safety expenditure | D57: £m | E57: Price Review 2024 | F57: 0 | G57: 0 | H57: 14.00187967 | I57: 13.69577746 | J57: 13.63046759 | K57: 13.62552899 | L57: 13.7001407 | M57: 68.65379441
A58: WSH | B58: PR24CA14_W_NET_ZERO_ALLOW_TOT | C58: PR24 final water enhancement totex allowance- Greenhouse gas reduction (net zero) expenditure | D58: £m | E58: Price Review 2024 | F58: 0 | G58: 0 | H58: 2.708637328 | I58: 2.693179947 | J58: 2.675725879 | K58: 2.655341013 | L58: 2.63741107 | M58: 13.37029524
A59: WSH | B59: PR24CA14_W_FREEFORM_ALLOW_TOT | C59: PR24 final water enhancement totex allowance- freeform line expenditure | D59: £m | E59: Price Review 2024 | F59: 0 | G59: 0 | H59: 5.9723879 | I59: 5.060018326 | J59: 5.033489105 | K59: 5.164331167 | L59: 5.47709662 | M59: 26.70732312
A60: WSH | B60: PR24CA103_W_WINEPCARRYOVER_ALLOW_TOT | C60: PR24 final water enhancement totex allowance- WINEP carryover expenditure | D60: £m | E60: Price Review 2024 | F60: 0 | G60: 0 | H60: 0 | I60: 0 | J60: 0 | K60: 0 | L60: 0 | M60: 0
A61: HDD | B61: PR24CA14_W_TOTAL_ENHANCEMENT_ALLOW_TOT | C61: PR24 final water enhancement totex allowance- total enhancement expenditure | D61: £m | E61: Price Review 2024 | F61: 0 | G61: 0 | H61: 8.669746739 | I61: 6.976055696 | J61: 3.163933805 | K61: 3.7200978 | L61: 3.422059663 | M61: 25.9518937
A62: HDD | B62: PR24CA14_W_BIODIVERSITY_ALLOW_TOT | C62: PR24 final water enhancement totex allowance- WINEP/NEP - biodiversity and conservation expenditure | D62: £m | E62: Price Review 2024 | F62: 0 | G62: 0 | H62: 0.1978985408 | I62: 0.1977530391 | J62: 0.198426373 | K62: 0.08633204872 | L62: 0.02119640664 | M62: 0.7016064083
A63: HDD | B63: PR24CA14_W_EELS_SCREENS_ALLOW_TOT | C63: PR24 final water enhancement totex allowance- WINEP/NEP - eels and fish screens expenditure | D63: £m | E63: Price Review 2024 | F63: 0 | G63: 0 | H63: 0 | I63: 0 | J63: 0 | K63: 0 | L63: 0 | M63: 0
A64: HDD | B64: PR24CA14_W_EELS_PASSES_ALLOW_TOT | C64: PR24 final water enhancement totex allowance- WINEP/NEP - eels and fish passes expenditure | D64: £m | E64: Price Review 2024 | F64: 0 | G64: 0 | H64: 0 | I64: 0 | J64: 0 | K64: 0 | L64: 0 | M64: 0
A65: HDD | B65: PR24CA14_W_INNS_ALLOW_TOT | C65: PR24 final water enhancement totex allowance- WINEP/NEP - invasive non-native species expenditure | D65: £m | E65: Price Review 2024 | F65: 0 | G65: 0 | H65: 0.03265325924 | I65: 0.02557999511 | J65: 0.03812132289 | K65: 0.03880092077 | L65: 0.001926946059 | M65: 0.1370824441
A66: HDD | B66: PR24CA14_W_DWPA_ALLOW_TOT | C66: PR24 final water enhancement totex allowance- WINEP/NEP - drinking water protected areas expenditure | D66: £m | E66: Price Review 2024 | F66: 0 | G66: 0 | H66: 0.1385289786 | I66: 0.1879145795 | J66: 0.1642149294 | K66: 0.1144627163 | L66: 0.1146532905 | M66: 0.7197744942
A67: HDD | B67: PR24CA14_W_WFD_ALLOW_TOT | C67: PR24 final water enhancement totex allowance- WINEP/NEP - water framework directive expenditure | D67: £m | E67: Price Review 2024 | F67: 0 | G67: 0 | H67: 0 | I67: 0 | J67: 0.0273691549 | K67: 0.02716064454 | L67: 0.02794071785 | M67: 0.08247051729
A68: HDD | B68: PR24CA14_W_DISCHARGE_MONITOR_ALLOW_TOT | C68: PR24 final water enhancement totex allowance- WINEP/NEP - trade effluent discharge flow monitoring expenditure | D68: £m | E68: Price Review 2024 | F68: 0 | G68: 0 | H68: 0 | I68: 0 | J68: 0 | K68: 0 | L68: 0 | M68: 0
A69: HDD | B69: PR24CA14_W_25YR_EP_ALLOW_TOT | C69: PR24 final water enhancement totex allowance- WINEP/NEP - 25 year environment plan expenditure | D69: £m | E69: Price Review 2024 | F69: 0 | G69: 0 | H69: 0 | I69: 0 | J69: 0 | K69: 0 | L69: 0 | M69: 0
A70: HDD | B70: PR24CA14_W_INVESTIGATIONS_ALLOW_TOT | C70: PR24 final water enhancement totex allowance- WINEP/NEP - investigations expenditure | D70: £m | E70: Price Review 2024 | F70: 0 | G70: 0 | H70: 0.2948688258 | I70: 0.2961376357 | J70: 0.2179757693 | K70: 0.06499154229 | L70: 0 | M70: =SUM(F70:L70) -> 0.8739737732
A71: HDD | B71: PR24CA14_W_WETLAND_ALLOW_TOT | C71: PR24 final water enhancement totex allowance- WINEP/NEP - wetland creation expenditure | D71: £m | E71: Price Review 2024 | F71: 0 | G71: 0 | H71: 0 | I71: 0 | J71: 0 | K71: 0 | L71: 0 | M71: 0
A72: HDD | B72: PR24CA14_W_SUPPLY_ALLOW_TOT | C72: PR24 final water enhancement totex allowance- Supply-demand balance - supply expenditure | D72: £m | E72: Price Review 2024 | F72: 0 | G72: 0 | H72: 0 | I72: 0 | J72: 0 | K72: 0 | L72: 0 | M72: 0
A73: HDD | B73: PR24CA14_W_SUPPLY_INTER_ALLOW_TOT | C73: PR24 final water enhancement totex allowance- Supply-demand balance - supply interconnectors expenditure | D73: £m | E73: Price Review 2024 | F73: 0 | G73: 0 | H73: 0 | I73: 0 | J73: 0 | K73: 0 | L73: 0 | M73: 0
A74: HDD | B74: PR24CA14_W_LEAKAGE_ALLOW_TOT | C74: PR24 final water enhancement totex allowance- Supply-demand balance - leakage expenditure | D74: £m | E74: Price Review 2024 | F74: 0 | G74: 0 | H74: 0 | I74: 0 | J74: 0 | K74: 0 | L74: 0 | M74: 0
A75: HDD | B75: PR24CA14_W_DEMAND_ALLOW_TOT | C75: PR24 final water enhancement totex allowance- Supply-demand balance - demand expenditure | D75: £m | E75: Price Review 2024 | F75: 0 | G75: 0 | H75: 0.236969727 | I75: 0.259179153 | J75: 0.1388936451 | K75: 0.1316406382 | L75: 0.1322900029 | M75: 0.8989731662
A76: HDD | B76: PR24CA14_W_SRO_ALLOW_TOT | C76: PR24 final water enhancement totex allowance- Supply-demand balance - strategic resource options expenditure | D76: £m | E76: Price Review 2024 | F76: 0 | G76: 0 | H76: 0 | I76: 0 | J76: 0 | K76: 0 | L76: 0 | M76: 0
A77: HDD | B77: PR24CA14_W_METERING_ALLOW_TOT | C77: PR24 final water enhancement totex allowance- Metering - metering expenditure | D77: £m | E77: Price Review 2024 | F77: 0 | G77: 0 | H77: 0.5682737977 | I77: 0.6215062432 | J77: 0.5203748161 | K77: 0.5214570454 | L77: 0.516045664 | M77: 2.747657566
A78: HDD | B78: PR24CA14_W_TOC_ALLOW_TOT | C78: PR24 final water enhancement totex allowance- water quality improvements - taste, odour and colour expenditure | D78: £m | E78: Price Review 2024 | F78: 0 | G78: 0 | H78: 0 | I78: 0 | J78: 0 | K78: 0 | L78: 0 | M78: 0
A79: HDD | B79: PR24CA14_W_RWD_ALLOW_TOT | C79: PR24 final water enhancement totex allowance- water quality improvements - raw water deterioration expenditure | D79: £m | E79: Price Review 2024 | F79: 0 | G79: 0 | H79: 0 | I79: 0 | J79: 0 | K79: 0 | L79: 0 | M79: 0
A80: HDD | B80: PR24CA14_W_LEAD_ALLOW_TOT | C80: PR24 final water enhancement totex allowance- water quality improvements - lead expenditure | D80: £m | E80: Price Review 2024 | F80: 0 | G80: 0 | H80: 0.4128126518 | I80: 0.571083706 | J80: 0.841857761 | K80: 1.254887127 | L80: 1.144285477 | M80: 4.224926723
A81: HDD | B81: PR24CA14_W_RESILIENCE_INTER_ALLOW_TOT | C81: PR24 final water enhancement totex allowance- resilience interconnectors expenditure | D81: £m | E81: Price Review 2024 | F81: 0 | G81: 0 | H81: 0 | I81: 0 | J81: 0 | K81: 0 | L81: 0 | M81: 0
A82: HDD | B82: PR24CA14_W_RESILIENCE_ALLOW_TOT | C82: PR24 final water enhancement totex allowance- resilience expenditure | D82: £m | E82: Price Review 2024 | F82: 0 | G82: 0 | H82: 0.1827141274 | I82: 0.1816714326 | J82: 0.1804940492 | K82: 0.1791189655 | L82: 0.1779094814 | M82: 0.9019080562
A83: HDD | B83: PR24CA14_W_SEMD_ALLOW_TOT | C83: PR24 final water enhancement totex allowance- security SEMD expenditure | D83: £m | E83: Price Review 2024 | F83: 0 | G83: 0 | H83: 0 | I83: 0 | J83: 0 | K83: 0 | L83: 0 | M83: 0
A84: HDD | B84: PR24CA14_W_CYBER_ALLOW_TOT | C84: PR24 final water enhancement totex allowance- security cyber expenditure | D84: £m | E84: Price Review 2024 | F84: 0 | G84: 0 | H84: 0.3393959975 | I84: 0.3187660929 | J84: 0.3127903417 | K84: 0.2318355016 | L84: 0.2244892158 | M84: 1.42727715
A85: HDD | B85: PR24CA14_W_RESERVOIR_SAFETY_ALLOW_TOT | C85: PR24 final water enhancement totex allowance- reservoir safety expenditure | D85: £m | E85: Price Review 2024 | F85: 0 | G85: 0 | H85: 6.265630833 | I85: 4.316463819 | J85: 0.5234156426 | K85: 1.06941065 | L85: 1.061322461 | M85: 13.23624341
A86: HDD | B86: PR24CA14_W_NET_ZERO_ALLOW_TOT | C86: PR24 final water enhancement totex allowance- Greenhouse gas reduction (net zero) expenditure | D86: £m | E86: Price Review 2024 | F86: 0 | G86: 0 | H86: 0 | I86: 0 | J86: 0 | K86: 0 | L86: 0 | M86: 0
A87: HDD | B87: PR24CA14_W_FREEFORM_ALLOW_TOT | C87: PR24 final water enhancement totex allowance- freeform line expenditure | D87: £m | E87: Price Review 2024 | F87: 0 | G87: 0 | H87: 0 | I87: 0 | J87: 0 | K87: 0 | L87: 0 | M87: 0
A88: HDD | B88: PR24CA103_W_WINEPCARRYOVER_ALLOW_TOT | C88: PR24 final water enhancement totex allowance- WINEP carryover expenditure | D88: £m | E88: Price Review 2024 | F88: 0 | G88: 0 | H88: 0 | I88: 0 | J88: 0 | K88: 0 | L88: 0 | M88: 0
A89: NES | B89: PR24CA14_W_TOTAL_ENHANCEMENT_ALLOW_TOT | C89: PR24 final water enhancement totex allowance- total enhancement expenditure | D89: £m | E89: Price Review 2024 | F89: 6.758250518 | G89: 14.71189934 | H89: 157.8876107 | I89: 186.9850166 | J89: 144.0556459 | K89: 121.214942 | L89: 105.6776549 | M89: 737.2910199
A90: NES | B90: PR24CA14_W_BIODIVERSITY_ALLOW_TOT | C90: PR24 final water enhancement totex allowance- WINEP/NEP - biodiversity and conservation expenditure | D90: £m | E90: Price Review 2024 | F90: 0 | G90: 0 | H90: 1.612677569 | I90: 3.079978462 | J90: 3.101234179 | K90: 3.077607602 | L90: 3.056826344 | M90: 13.92832416
A91: NES | B91: PR24CA14_W_EELS_SCREENS_ALLOW_TOT | C91: PR24 final water enhancement totex allowance- WINEP/NEP - eels and fish screens expenditure | D91: £m | E91: Price Review 2024 | F91: 0 | G91: 0 | H91: 0 | I91: 0 | J91: 0 | K91: 0 | L91: 0 | M91: 0
A92: NES | B92: PR24CA14_W_EELS_PASSES_ALLOW_TOT | C92: PR24 final water enhancement totex allowance- WINEP/NEP - eels and fish passes expenditure | D92: £m | E92: Price Review 2024 | F92: 0 | G92: 0 | H92: 1.019177485 | I92: 1.013361345 | J92: 1.060554752 | K92: 0.05335126606 | L92: 0.05299101661 | M92: 3.199435865
A93: NES | B93: PR24CA14_W_INNS_ALLOW_TOT | C93: PR24 final water enhancement totex allowance- WINEP/NEP - invasive non-native species expenditure | D93: £m | E93: Price Review 2024 | F93: 0 | G93: 0 | H93: 0.2711210009 | I93: 0.2459614914 | J93: 0.2443674544 | K93: 0.2425057548 | L93: 0.2408682573 | M93: 1.244823959
A94: NES | B94: PR24CA14_W_DWPA_ALLOW_TOT | C94: PR24 final water enhancement totex allowance- WINEP/NEP - drinking water protected areas expenditure | D94: £m | E94: Price Review 2024 | F94: 0 | G94: 0 | H94: 0.8294571017 | I94: 0.8247236385 | J94: 0.8193787367 | K94: 0.8131363463 | L94: 0.8076457189 | M94: 4.094341542
A95: NES | B95: PR24CA14_W_WFD_ALLOW_TOT | C95: PR24 final water enhancement totex allowance- WINEP/NEP - water framework directive expenditure | D95: £m | E95: Price Review 2024 | F95: 0 | G95: 0.0517268143 | H95: 1.670263685 | I95: 1.545622012 | J95: 1.400714249 | K95: 1.431753977 | L95: 1.380656851 | M95: 7.480737587
A96: NES | B96: PR24CA14_W_DISCHARGE_MONITOR_ALLOW_TOT | C96: PR24 final water enhancement totex allowance- WINEP/NEP - trade effluent discharge flow monitoring expenditure | D96: £m | E96: Price Review 2024 | F96: 0 | G96: 0 | H96: 1.41695356 | I96: 0.007870767726 | J96: 0.007819758541 | K96: 0.007760184155 | L96: 0.007707784234 | M96: 1.448112055
A97: NES | B97: PR24CA14_W_25YR_EP_ALLOW_TOT | C97: PR24 final water enhancement totex allowance- WINEP/NEP - 25 year environment plan expenditure | D97: £m | E97: Price Review 2024 | F97: 0 | G97: 0 | H97: 1.313056818 | I97: 1.305563597 | J97: 1.297102448 | K97: 1.287220547 | L97: 1.27852871 | M97: 6.48147212
A98: NES | B98: PR24CA14_W_INVESTIGATIONS_ALLOW_TOT | C98: PR24 final water enhancement totex allowance- WINEP/NEP - investigations expenditure | D98: £m | E98: Price Review 2024 | F98: 0 | G98: 0 | H98: 3.229704186 | I98: 3.067631721 | J98: 0.1378232443 | K98: 0.1367732457 | L98: 0.1358496971 | M98: 6.707782095
A99: NES | B99: PR24CA14_W_WETLAND_ALLOW_TOT | C99: PR24 final water enhancement totex allowance- WINEP/NEP - wetland creation expenditure | D99: £m | E99: Price Review 2024 | F99: 0 | G99: 0 | H99: 0 | I99: 0 | J99: 0 | K99: 0 | L99: 0 | M99: 0
A100: NES | B100: PR24CA14_W_SUPPLY_ALLOW_TOT | C100: PR24 final water enhancement totex allowance- Supply-demand balance - supply expenditure | D100: £m | E100: Price Review 2024 | F100: 3.661833299 | G100: 8.698560044 | H100: 37.80195167 | I100: 39.61346551 | J100: 22.86494265 | K100: 22.88921408 | L100: 17.25891855 | M100: 152.7888858
A101: NES | B101: PR24CA14_W_SUPPLY_INTER_ALLOW_TOT | C101: PR24 final water enhancement totex allowance- Supply-demand balance - supply interconnectors expenditure | D101: £m | E101: Price Review 2024 | F101: 3.09641722 | G101: 5.961612477 | H101: 38.4391363 | I101: 38.21977567 | J101: 37.97207942 | K101: 3.074926565 | L101: 3.05416341 | M101: 129.8181111
A102: NES | B102: PR24CA14_W_LEAKAGE_ALLOW_TOT | C102: PR24 final water enhancement totex allowance- Supply-demand balance - leakage expenditure | D102: £m | E102: Price Review 2024 | F102: 0 | G102: 0 | H102: 3.630139058 | I102: 3.609422942 | J102: 3.586030851 | K102: 3.558710878 | L102: 3.534681014 | M102: 17.91898474
A103: NES | B103: PR24CA14_W_DEMAND_ALLOW_TOT | C103: PR24 final water enhancement totex allowance- Supply-demand balance - demand expenditure | D103: £m | E103: Price Review 2024 | F103: 0 | G103: 0 | H103: 2.882945072 | I103: 3.048179411 | J103: 3.041833886 | K103: 3.0544866 | L103: 2.944391019 | M103: 14.97183599
A104: NES | B104: PR24CA14_W_SRO_ALLOW_TOT | C104: PR24 final water enhancement totex allowance- Supply-demand balance - strategic resource options expenditure | D104: £m | E104: Price Review 2024 | F104: 0 | G104: 0 | H104: 3.377533739 | I104: 35.26761292 | J104: 2.751144857 | K104: 2.962541621 | L104: 3.404111819 | M104: 47.76294496
A105: NES | B105: PR24CA14_W_METERING_ALLOW_TOT | C105: PR24 final water enhancement totex allowance- Metering - metering expenditure | D105: £m | E105: Price Review 2024 | F105: 0 | G105: 0 | H105: 18.75247758 | I105: 23.39110999 | J105: 24.49113671 | K105: 25.05074554 | L105: 23.41936925 | M105: 115.1048391
A106: NES | B106: PR24CA14_W_TOC_ALLOW_TOT | C106: PR24 final water enhancement totex allowance- water quality improvements - taste, odour and colour expenditure | D106: £m | E106: Price Review 2024 | F106: 0 | G106: 0 | H106: 0 | I106: 0 | J106: 0 | K106: 0 | L106: 0 | M106: 0
A107: NES | B107: PR24CA14_W_RWD_ALLOW_TOT | C107: PR24 final water enhancement totex allowance- water quality improvements - raw water deterioration expenditure | D107: £m | E107: Price Review 2024 | F107: 0 | G107: 0 | H107: 3.392273745 | I107: 3.372915055 | J107: 0.387862719 | K107: 0.3849078088 | L107: 0.3823087547 | M107: 7.920268082
A108: NES | B108: PR24CA14_W_LEAD_ALLOW_TOT | C108: PR24 final water enhancement totex allowance- water quality improvements - lead expenditure | D108: £m | E108: Price Review 2024 | F108: 0 | G108: 0 | H108: 4.888407314 | I108: 9.569779381 | J108: 14.1858682 | K108: 11.75665925 | L108: 7.0669401 | M108: 47.46765425
A109: NES | B109: PR24CA14_W_RESILIENCE_INTER_ALLOW_TOT | C109: PR24 final water enhancement totex allowance- resilience interconnectors expenditure | D109: £m | E109: Price Review 2024 | F109: 0 | G109: 0 | H109: 0 | I109: 0 | J109: 0 | K109: 0 | L109: 0 | M109: 0
A110: NES | B110: PR24CA14_W_RESILIENCE_ALLOW_TOT | C110: PR24 final water enhancement totex allowance- resilience expenditure | D110: £m | E110: Price Review 2024 | F110: 0 | G110: 0 | H110: 14.48630482 | I110: 12.35499318 | J110: 18.36368677 | K110: 16.15969418 | L110: 8.729418368 | M110: 70.09409732
A111: NES | B111: PR24CA14_W_SEMD_ALLOW_TOT | C111: PR24 final water enhancement totex allowance- security SEMD expenditure | D111: £m | E111: Price Review 2024 | F111: 0 | G111: 0 | H111: 3.290336175 | I111: 4.193321204 | J111: 5.107732913 | K111: 2.803243553 | L111: 2.059652463 | M111: 17.45428631
A112: NES | B112: PR24CA14_W_CYBER_ALLOW_TOT | C112: PR24 final water enhancement totex allowance- security cyber expenditure | D112: £m | E112: Price Review 2024 | F112: 0 | G112: 0 | H112: 2.31640242 | I112: 1.399028963 | J112: 1.389962081 | K112: 1.379372733 | L112: 1.370058648 | M112: 7.854824846
A113: NES | B113: PR24CA14_W_RESERVOIR_SAFETY_ALLOW_TOT | C113: PR24 final water enhancement totex allowance- reservoir safety expenditure | D113: £m | E113: Price Review 2024 | F113: 0 | G113: 0 | H113: 13.00642747 | I113: 1.593835442 | J113: 1.58350605 | K113: 20.82946634 | L113: 25.23170318 | M113: 62.24493848
A114: NES | B114: PR24CA14_W_NET_ZERO_ALLOW_TOT | C114: PR24 final water enhancement totex allowance- Greenhouse gas reduction (net zero) expenditure | D114: £m | E114: Price Review 2024 | F114: 0 | G114: 0 | H114: 0 | I114: 0 | J114: 0 | K114: 0 | L114: 0 | M114: 0
A115: NES | B115: PR24CA14_W_FREEFORM_ALLOW_TOT | C115: PR24 final water enhancement totex allowance- freeform line expenditure | D115: £m | E115: Price Review 2024 | F115: 0 | G115: 0 | H115: 0 | I115: 0 | J115: 0 | K115: 0 | L115: 0 | M115: 0
A116: NES | B116: PR24CA103_W_WINEPCARRYOVER_ALLOW_TOT | C116: PR24 final water enhancement totex allowance- WINEP carryover expenditure | D116: £m | E116: Price Review 2024 | F116: 0 | G116: 0 | H116: 0.2608639298 | I116: 0.2608639298 | J116: 0.2608639298 | K116: 0.2608639298 | L116: 0.2608639298 | M116: 1.304319649
A117: SVE | B117: PR24CA14_W_TOTAL_ENHANCEMENT_ALLOW_TOT | C117: PR24 final water enhancement totex allowance- total enhancement expenditure | D117: £m | E117: Price Review 2024 | F117: 17.15533574 | G117: 116.796652 | H117: 357.4532958 | I117: 390.4948423 | J117: 490.7984883 | K117: 436.884537 | L117: 347.5632214 | M117: 2157.146373
A118: SVE | B118: PR24CA14_W_BIODIVERSITY_ALLOW_TOT | C118: PR24 final water enhancement totex allowance- WINEP/NEP - biodiversity and conservation expenditure | D118: £m | E118: Price Review 2024 | F118: 0 | G118: 0 | H118: 7.98283134 | I118: 7.965610477 | J118: 8.338892762 | K118: 7.894726347 | L118: 7.852690578 | M118: 40.0347515
A119: SVE | B119: PR24CA14_W_EELS_SCREENS_ALLOW_TOT | C119: PR24 final water enhancement totex allowance- WINEP/NEP - eels and fish screens expenditure | D119: £m | E119: Price Review 2024 | F119: 0 | G119: 0 | H119: 0 | I119: 0 | J119: 0 | K119: 0 | L119: 0 | M119: 0
A120: SVE | B120: PR24CA14_W_EELS_PASSES_ALLOW_TOT | C120: PR24 final water enhancement totex allowance- WINEP/NEP - eels and fish passes expenditure | D120: £m | E120: Price Review 2024 | F120: 0 | G120: 0 | H120: 0 | I120: 0 | J120: 0 | K120: 0 | L120: 0 | M120: 0
A121: SVE | B121: PR24CA14_W_INNS_ALLOW_TOT | C121: PR24 final water enhancement totex allowance- WINEP/NEP - invasive non-native species expenditure | D121: £m | E121: Price Review 2024 | F121: 0 | G121: 0 | H121: 0.8004995977 | I121: 0.3010568655 | J121: 0.2766239584 | K121: 0.2764565605 | L121: 0.2755532864 | M121: 1.930190268
A122: SVE | B122: PR24CA14_W_DWPA_ALLOW_TOT | C122: PR24 final water enhancement totex allowance- WINEP/NEP - drinking water protected areas expenditure | D122: £m | E122: Price Review 2024 | F122: 0 | G122: 0 | H122: 1.26087991 | I122: 1.261051833 | J122: 1.260649917 | K122: 1.258653264 | L122: 1.257059095 | M122: 6.298294019
A123: SVE | B123: PR24CA14_W_WFD_ALLOW_TOT | C123: PR24 final water enhancement totex allowance- WINEP/NEP - water framework directive expenditure | D123: £m | E123: Price Review 2024 | F123: 0 | G123: 9.260934589 | H123: 43.40952984 | I123: 55.88282366 | J123: 68.44117905 | K123: 67.49803793 | L123: 24.6807877 | M123: 269.1732928
A124: SVE | B124: PR24CA14_W_DISCHARGE_MONITOR_ALLOW_TOT | C124: PR24 final water enhancement totex allowance- WINEP/NEP - trade effluent discharge flow monitoring expenditure | D124: £m | E124: Price Review 2024 | F124: 0 | G124: 0 | H124: 0 | I124: 0 | J124: 0 | K124: 0 | L124: 0 | M124: 0
A125: SVE | B125: PR24CA14_W_25YR_EP_ALLOW_TOT | C125: PR24 final water enhancement totex allowance- WINEP/NEP - 25 year environment plan expenditure | D125: £m | E125: Price Review 2024 | F125: 0 | G125: 0 | H125: 0 | I125: 0 | J125: 0 | K125: 0 | L125: 0 | M125: 0
A126: SVE | B126: PR24CA14_W_INVESTIGATIONS_ALLOW_TOT | C126: PR24 final water enhancement totex allowance- WINEP/NEP - investigations expenditure | D126: £m | E126: Price Review 2024 | F126: 0 | G126: 3.456639796 | H126: 15.02887077 | I126: 9.59453684 | J126: 6.195767271 | K126: 7.158174605 | L126: 1.759878504 | M126: 43.19386778
A127: SVE | B127: PR24CA14_W_WETLAND_ALLOW_TOT | C127: PR24 final water enhancement totex allowance- WINEP/NEP - wetland creation expenditure | D127: £m | E127: Price Review 2024 | F127: 0 | G127: 0 | H127: 0 | I127: 0 | J127: 0 | K127: 0 | L127: 0 | M127: 0
A128: SVE | B128: PR24CA14_W_SUPPLY_ALLOW_TOT | C128: PR24 final water enhancement totex allowance- Supply-demand balance - supply expenditure | D128: £m | E128: Price Review 2024 | F128: 1.709585733 | G128: 6.36234811 | H128: 68.51070026 | I128: 53.51970949 | J128: 69.10751296 | K128: 70.66572789 | L128: 30.55178742 | M128: 300.4273719
A129: SVE | B129: PR24CA14_W_SUPPLY_INTER_ALLOW_TOT | C129: PR24 final water enhancement totex allowance- Supply-demand balance - supply interconnectors expenditure | D129: £m | E129: Price Review 2024 | F129: 0.4583143368 | G129: 3.689685259 | H129: 45.91401376 | I129: 52.28475616 | J129: 62.74010102 | K129: 62.49401045 | L129: 35.60869751 | M129: 263.1895785
A130: SVE | B130: PR24CA14_W_LEAKAGE_ALLOW_TOT | C130: PR24 final water enhancement totex allowance- Supply-demand balance - leakage expenditure | D130: £m | E130: Price Review 2024 | F130: 0 | G130: 21.81203978 | H130: 15.00386942 | I130: 34.38487173 | J130: 34.3695587 | K130: 34.31591121 | L130: 34.29202063 | M130: 174.1782715
A131: SVE | B131: PR24CA14_W_DEMAND_ALLOW_TOT | C131: PR24 final water enhancement totex allowance- Supply-demand balance - demand expenditure | D131: £m | E131: Price Review 2024 | F131: 0 | G131: 9.214687156 | H131: 2.025602002 | I131: 1.821553737 | J131: 1.019080223 | K131: 0.9254277468 | L131: 0.9150384368 | M131: 15.9213893
A132: SVE | B132: PR24CA14_W_SRO_ALLOW_TOT | C132: PR24 final water enhancement totex allowance- Supply-demand balance - strategic resource options expenditure | D132: £m | E132: Price Review 2024 | F132: 0 | G132: 0 | H132: 27.51011508 | I132: 35.95797818 | J132: 18.21327529 | K132: 12.4607446 | L132: 7.299356741 | M132: 101.4414699
A133: SVE | B133: PR24CA14_W_METERING_ALLOW_TOT | C133: PR24 final water enhancement totex allowance- Metering - metering expenditure | D133: £m | E133: Price Review 2024 | F133: 14.11043567 | G133: 41.495583 | H133: 31.6273182 | I133: 24.07246023 | J133: 47.16848534 | K133: 40.32016901 | L133: 75.94351083 | M133: 274.7379623
A134: SVE | B134: PR24CA14_W_TOC_ALLOW_TOT | C134: PR24 final water enhancement totex allowance- water quality improvements - taste, odour and colour expenditure | D134: £m | E134: Price Review 2024 | F134: 0 | G134: 0 | H134: 0 | I134: 0 | J134: 0 | K134: 0 | L134: 0 | M134: =SUM(F134:L134) -> 0
A135: SVE | B135: PR24CA14_W_RWD_ALLOW_TOT | C135: PR24 final water enhancement totex allowance- water quality improvements - raw water deterioration expenditure | D135: £m | E135: Price Review 2024 | F135: 0 | G135: 10.03507236 | H135: 33.31334388 | I135: 31.30218122 | J135: 84.84389458 | K135: 89.61704778 | L135: 83.64715829 | M135: 332.7586981
A136: SVE | B136: PR24CA14_W_LEAD_ALLOW_TOT | C136: PR24 final water enhancement totex allowance- water quality improvements - lead expenditure | D136: £m | E136: Price Review 2024 | F136: 0 | G136: 0 | H136: 8.13649336 | I136: 8.150507403 | J136: 8.081864305 | K136: 7.868530999 | L136: 7.712613337 | M136: 39.9500094
A137: SVE | B137: PR24CA14_W_RESILIENCE_INTER_ALLOW_TOT | C137: PR24 final water enhancement totex allowance- resilience interconnectors expenditure | D137: £m | E137: Price Review 2024 | F137: 0.877 | G137: 4.151076848 | H137: 32.28912592 | I137: 38.79107874 | J137: 41.6187099 | K137: 3.155484882 | L137: 8.203009371 | M137: 129.0854857
A138: SVE | B138: PR24CA14_W_RESILIENCE_ALLOW_TOT | C138: PR24 final water enhancement totex allowance- resilience expenditure | D138: £m | E138: Price Review 2024 | F138: 0 | G138: 0 | H138: 5.145807837 | I138: 6.076231721 | J138: 6.490698713 | K138: 0.8311995202 | L138: 1.57223021 | M138: 20.116168
A139: SVE | B139: PR24CA14_W_SEMD_ALLOW_TOT | C139: PR24 final water enhancement totex allowance- security SEMD expenditure | D139: £m | E139: Price Review 2024 | F139: 0 | G139: 2.207975855 | H139: 7.992665504 | I139: 11.27374198 | J139: 15.66151846 | K139: 16.73827697 | L139: 12.32478974 | M139: 66.19896851
A140: SVE | B140: PR24CA14_W_CYBER_ALLOW_TOT | C140: PR24 final water enhancement totex allowance- security cyber expenditure | D140: £m | E140: Price Review 2024 | F140: 0 | G140: 5.110609253 | H140: 7.296420251 | I140: 12.07666004 | J140: 12.24447117 | K140: 9.401366101 | L140: 8.730125466 | M140: 54.85965227
A141: SVE | B141: PR24CA14_W_RESERVOIR_SAFETY_ALLOW_TOT | C141: PR24 final water enhancement totex allowance- reservoir safety expenditure | D141: £m | E141: Price Review 2024 | F141: 0 | G141: 0 | H141: 3.749970338 | I141: 5.168191089 | J141: 4.123924487 | K141: 3.448386814 | L141: 4.356552915 | M141: 20.84702564
A142: SVE | B142: PR24CA14_W_NET_ZERO_ALLOW_TOT | C142: PR24 final water enhancement totex allowance- Greenhouse gas reduction (net zero) expenditure | D142: £m | E142: Price Review 2024 | F142: 0 | G142: 0 | H142: 0 | I142: 0 | J142: 0 | K142: 0 | L142: 0 | M142: 0
A143: SVE | B143: PR24CA14_W_FREEFORM_ALLOW_TOT | C143: PR24 final water enhancement totex allowance- freeform line expenditure | D143: £m | E143: Price Review 2024 | F143: 0 | G143: 0 | H143: 0.4552385142 | I143: 0.6098409422 | J143: 0.6022801731 | K143: 0.5562043316 | L143: 0.5803613502 | M143: 2.803925311
A144: SVE | B144: PR24CA103_W_WINEPCARRYOVER_ALLOW_TOT | C144: PR24 final water enhancement totex allowance- WINEP carryover expenditure | D144: £m | E144: Price Review 2024 | F144: 0 | G144: 0 | H144: 0 | I144: 0 | J144: 0 | K144: 0 | L144: 0 | M144: 0
A145: SWB | B145: PR24CA14_W_TOTAL_ENHANCEMENT_ALLOW_TOT | C145: PR24 final water enhancement totex allowance- total enhancement expenditure | D145: £m | E145: Price Review 2024 | F145: 0.09313694398 | G145: 3.413887864 | H145: 103.2889541 | I145: 86.91783716 | J145: 81.633437 | K145: 91.6579938 | L145: 78.75916014 | M145: 445.764407
A146: SWB | B146: PR24CA14_W_BIODIVERSITY_ALLOW_TOT | C146: PR24 final water enhancement totex allowance- WINEP/NEP - biodiversity and conservation expenditure | D146: £m | E146: Price Review 2024 | F146: 0 | G146: 0 | H146: 0.214189054 | I146: 0.2129667412 | J146: 0.2115865379 | K146: 0.2099745778 | L146: 0.2085567441 | M146: 1.057273655
A147: SWB | B147: PR24CA14_W_EELS_SCREENS_ALLOW_TOT | C147: PR24 final water enhancement totex allowance- WINEP/NEP - eels and fish screens expenditure | D147: £m | E147: Price Review 2024 | F147: 0 | G147: 0 | H147: 1.665538857 | I147: 1.656034126 | J147: 1.645301634 | K147: 1.632766997 | L147: 1.62174189 | M147: 8.221383503
A148: SWB | B148: PR24CA14_W_EELS_PASSES_ALLOW_TOT | C148: PR24 final water enhancement totex allowance- WINEP/NEP - eels and fish passes expenditure | D148: £m | E148: Price Review 2024 | F148: 0 | G148: 0 | H148: 0.6706638072 | I148: 0.6668365298 | J148: 0.6625148691 | K148: 0.6574675372 | L148: 0.6530280489 | M148: 3.310510792
A149: SWB | B149: PR24CA14_W_INNS_ALLOW_TOT | C149: PR24 final water enhancement totex allowance- WINEP/NEP - invasive non-native species expenditure | D149: £m | E149: Price Review 2024 | F149: 0 | G149: 0 | H149: 1.829666601 | I149: 1.819225242 | J149: 1.798123764 | K149: 1.784424861 | L149: 1.772375698 | M149: 9.003816166
A150: SWB | B150: PR24CA14_W_DWPA_ALLOW_TOT | C150: PR24 final water enhancement totex allowance- WINEP/NEP - drinking water protected areas expenditure | D150: £m | E150: Price Review 2024 | F150: 0 | G150: 0 | H150: 2.197642121 | I150: 2.185100836 | J150: 2.170939547 | K150: 2.154400367 | L150: 2.13985298 | M150: 10.84793585
A151: SWB | B151: PR24CA14_W_WFD_ALLOW_TOT | C151: PR24 final water enhancement totex allowance- WINEP/NEP - water framework directive expenditure | D151: £m | E151: Price Review 2024 | F151: 0 | G151: 0 | H151: 1.113359182 | I151: 1.107005575 | J151: 1.160243575 | K151: 1.151404326 | L151: 1.143629575 | M151: 5.675642233
A152: SWB | B152: PR24CA14_W_DISCHARGE_MONITOR_ALLOW_TOT | C152: PR24 final water enhancement totex allowance- WINEP/NEP - trade effluent discharge flow monitoring expenditure | D152: £m | E152: Price Review 2024 | F152: 0 | G152: 0 | H152: 0 | I152: 0 | J152: 0 | K152: 0 | L152: 0 | M152: 0
A153: SWB | B153: PR24CA14_W_25YR_EP_ALLOW_TOT | C153: PR24 final water enhancement totex allowance- WINEP/NEP - 25 year environment plan expenditure | D153: £m | E153: Price Review 2024 | F153: 0 | G153: 0 | H153: 0 | I153: 0 | J153: 0 | K153: 0 | L153: 0 | M153: 0
A154: SWB | B154: PR24CA14_W_INVESTIGATIONS_ALLOW_TOT | C154: PR24 final water enhancement totex allowance- WINEP/NEP - investigations expenditure | D154: £m | E154: Price Review 2024 | F154: 0 | G154: 0 | H154: 7.47298391 | I154: 7.408693218 | J154: 0.003909879271 | K154: 0 | L154: 0 | M154: 14.88558701
A155: SWB | B155: PR24CA14_W_WETLAND_ALLOW_TOT | C155: PR24 final water enhancement totex allowance- WINEP/NEP - wetland creation expenditure | D155: £m | E155: Price Review 2024 | F155: 0 | G155: 0 | H155: 0 | I155: 0 | J155: 0 | K155: 0 | L155: 0 | M155: 0
A156: SWB | B156: PR24CA14_W_SUPPLY_ALLOW_TOT | C156: PR24 final water enhancement totex allowance- Supply-demand balance - supply expenditure | D156: £m | E156: Price Review 2024 | F156: 0 | G156: 0 | H156: 1.934693734 | I156: 1.084390259 | J156: 4.590484945 | K156: 4.848774871 | L156: 1.405179731 | M156: 13.86352354
A157: SWB | B157: PR24CA14_W_SUPPLY_INTER_ALLOW_TOT | C157: PR24 final water enhancement totex allowance- Supply-demand balance - supply interconnectors expenditure | D157: £m | E157: Price Review 2024 | F157: 0 | G157: 0 | H157: 1.076929599 | I157: 0.7855296172 | J157: 3.122510962 | K157: 3.873215287 | L157: 0.171633982 | M157: 9.029819447
A158: SWB | B158: PR24CA14_W_LEAKAGE_ALLOW_TOT | C158: PR24 final water enhancement totex allowance- Supply-demand balance - leakage expenditure | D158: £m | E158: Price Review 2024 | F158: 0 | G158: 0 | H158: 3.541436161 | I158: 3.618715782 | J158: 4.099834003 | K158: 3.623937922 | L158: 3.039896159 | M158: 17.92382003
A159: SWB | B159: PR24CA14_W_DEMAND_ALLOW_TOT | C159: PR24 final water enhancement totex allowance- Supply-demand balance - demand expenditure | D159: £m | E159: Price Review 2024 | F159: 0 | G159: 0 | H159: 2.592973692 | I159: 2.607924658 | J159: 2.630430445 | K159: 2.646238519 | L159: 2.660739558 | M159: 13.13830687
A160: SWB | B160: PR24CA14_W_SRO_ALLOW_TOT | C160: PR24 final water enhancement totex allowance- Supply-demand balance - strategic resource options expenditure | D160: £m | E160: Price Review 2024 | F160: 0 | G160: 0 | H160: 16.15412792 | I160: 15.94868975 | J160: 17.43613398 | K160: 20.03897356 | L160: 15.20666414 | M160: 84.78458935
A161: SWB | B161: PR24CA14_W_METERING_ALLOW_TOT | C161: PR24 final water enhancement totex allowance- Metering - metering expenditure | D161: £m | E161: Price Review 2024 | F161: 0.09313694398 | G161: 3.413887864 | H161: 12.29118625 | I161: 12.67239887 | J161: 10.08906408 | K161: 10.39531476 | L161: 10.8635934 | M161: 59.81858216
A162: SWB | B162: PR24CA14_W_TOC_ALLOW_TOT | C162: PR24 final water enhancement totex allowance- water quality improvements - taste, odour and colour expenditure | D162: £m | E162: Price Review 2024 | F162: 0 | G162: 0 | H162: 6.614730018 | I162: 4.839934546 | J162: 1.651691422 | K162: 4.332076339 | L162: 4.302824398 | M162: 21.74125672
A163: SWB | B163: PR24CA14_W_RWD_ALLOW_TOT | C163: PR24 final water enhancement totex allowance- water quality improvements - raw water deterioration expenditure | D163: £m | E163: Price Review 2024 | F163: 0 | G163: 0 | H163: 17.82178902 | I163: 12.07794052 | J163: 4.944964513 | K163: 5.737865007 | L163: 5.699120608 | M163: 46.28167967
A164: SWB | B164: PR24CA14_W_LEAD_ALLOW_TOT | C164: PR24 final water enhancement totex allowance- water quality improvements - lead expenditure | D164: £m | E164: Price Review 2024 | F164: 0 | G164: 0 | H164: 8.722008026 | I164: 8.672234139 | J164: 8.616030779 | K164: 8.550390037 | L164: 8.492654326 | M164: 43.05331731
A165: SWB | B165: PR24CA14_W_RESILIENCE_INTER_ALLOW_TOT | C165: PR24 final water enhancement totex allowance- resilience interconnectors expenditure | D165: £m | E165: Price Review 2024 | F165: 0 | G165: 0 | H165: 8.705462758 | I165: 6.60033356 | J165: 14.8470595 | K165: 18.1317816 | L165: 17.50143689 | M165: 65.7860743
A166: SWB | B166: PR24CA14_W_RESILIENCE_ALLOW_TOT | C166: PR24 final water enhancement totex allowance- resilience expenditure | D166: £m | E166: Price Review 2024 | F166: 0 | G166: 0 | H166: 0 | I166: 0 | J166: 0 | K166: 0 | L166: 0 | M166: 0
A167: SWB | B167: PR24CA14_W_SEMD_ALLOW_TOT | C167: PR24 final water enhancement totex allowance- security SEMD expenditure | D167: £m | E167: Price Review 2024 | F167: 0 | G167: 0 | H167: 1.53670572 | I167: 1.144662476 | J167: 0.1319584254 | K167: 0.1309531076 | L167: 0.130068859 | M167: 3.074348587
A168: SWB | B168: PR24CA14_W_CYBER_ALLOW_TOT | C168: PR24 final water enhancement totex allowance- security cyber expenditure | D168: £m | E168: Price Review 2024 | F168: 0 | G168: 0 | H168: 1.845867669 | I168: 1.809220713 | J168: 1.820654148 | K168: 1.75803412 | L168: 1.746163159 | M168: 8.979939809
A169: SWB | B169: PR24CA14_W_RESERVOIR_SAFETY_ALLOW_TOT | C169: PR24 final water enhancement totex allowance- reservoir safety expenditure | D169: £m | E169: Price Review 2024 | F169: 0 | G169: 0 | H169: 0 | I169: 0 | J169: 0 | K169: 0 | L169: 0 | M169: 0
A170: SWB | B170: PR24CA14_W_NET_ZERO_ALLOW_TOT | C170: PR24 final water enhancement totex allowance- Greenhouse gas reduction (net zero) expenditure | D170: £m | E170: Price Review 2024 | F170: 0 | G170: 0 | H170: 0 | I170: 0 | J170: 0 | K170: 0 | L170: 0 | M170: 0
A171: SWB | B171: PR24CA14_W_FREEFORM_ALLOW_TOT | C171: PR24 final water enhancement totex allowance- freeform line expenditure | D171: £m | E171: Price Review 2024 | F171: 0 | G171: 0 | H171: 0 | I171: 0 | J171: 0 | K171: 0 | L171: 0 | M171: 0
A172: SWB | B172: PR24CA103_W_WINEPCARRYOVER_ALLOW_TOT | C172: PR24 final water enhancement totex allowance- WINEP carryover expenditure | D172: £m | E172: Price Review 2024 | F172: 0 | G172: 0 | H172: 0 | I172: 0 | J172: 0 | K172: 0 | L172: 0 | M172: 0
A173: SRN | B173: PR24CA14_W_TOTAL_ENHANCEMENT_ALLOW_TOT | C173: PR24 final water enhancement totex allowance- total enhancement expenditure | D173: £m | E173: Price Review 2024 | F173: 0.2282831096 | G173: 31.12888758 | H173: 274.6913241 | I173: 325.5620456 | J173: 278.0473135 | K173: 246.3635326 | L173: 184.2652645 | M173: 1340.286651
A174: SRN | B174: PR24CA14_W_BIODIVERSITY_ALLOW_TOT | C174: PR24 final water enhancement totex allowance- WINEP/NEP - biodiversity and conservation expenditure | D174: £m | E174: Price Review 2024 | F174: 0 | G174: 0 | H174: 4.79646935 | I174: 4.769097336 | J174: 4.73818958 | K174: 4.702091952 | L174: 4.670341514 | M174: 23.67618973
A175: SRN | B175: PR24CA14_W_EELS_SCREENS_ALLOW_TOT | C175: PR24 final water enhancement totex allowance- WINEP/NEP - eels and fish screens expenditure | D175: £m | E175: Price Review 2024 | F175: 0 | G175: 0 | H175: 0 | I175: 0 | J175: 0 | K175: 0 | L175: 0 | M175: 0
A176: SRN | B176: PR24CA14_W_EELS_PASSES_ALLOW_TOT | C176: PR24 final water enhancement totex allowance- WINEP/NEP - eels and fish passes expenditure | D176: £m | E176: Price Review 2024 | F176: 0 | G176: 0 | H176: 0 | I176: 0 | J176: 0 | K176: 0 | L176: 0 | M176: 0
A177: SRN | B177: PR24CA14_W_INNS_ALLOW_TOT | C177: PR24 final water enhancement totex allowance- WINEP/NEP - invasive non-native species expenditure | D177: £m | E177: Price Review 2024 | F177: 0 | G177: 0 | H177: 1.196890375 | I177: 1.19006008 | J177: 0.6685893553 | K177: 0.6634957452 | L177: 0.659015552 | M177: 4.378051108
A178: SRN | B178: PR24CA14_W_DWPA_ALLOW_TOT | C178: PR24 final water enhancement totex allowance- WINEP/NEP - drinking water protected areas expenditure | D178: £m | E178: Price Review 2024 | F178: 0 | G178: 0 | H178: 4.056425341 | I178: 4.033276536 | J178: 4.007137518 | K178: 3.976609368 | L178: 3.949757684 | M178: 20.02320645
A179: SRN | B179: PR24CA14_W_WFD_ALLOW_TOT | C179: PR24 final water enhancement totex allowance- WINEP/NEP - water framework directive expenditure | D179: £m | E179: Price Review 2024 | F179: 0 | G179: 0 | H179: 1.464943949 | I179: 1.456583952 | J179: 1.447144065 | K179: 1.43611908 | L179: 1.42642182 | M179: 7.231212866
A180: SRN | B180: PR24CA14_W_DISCHARGE_MONITOR_ALLOW_TOT | C180: PR24 final water enhancement totex allowance- WINEP/NEP - trade effluent discharge flow monitoring expenditure | D180: £m | E180: Price Review 2024 | F180: 0 | G180: 0 | H180: 0.04096499795 | I180: 0.1416738191 | J180: 0.02111334806 | K180: 0.001746041435 | L180: 0.001734251453 | M180: 0.207232458
A181: SRN | B181: PR24CA14_W_25YR_EP_ALLOW_TOT | C181: PR24 final water enhancement totex allowance- WINEP/NEP - 25 year environment plan expenditure | D181: £m | E181: Price Review 2024 | F181: 0 | G181: 0 | H181: 0 | I181: 0 | J181: 0 | K181: 0 | L181: 0 | M181: 0
A182: SRN | B182: PR24CA14_W_INVESTIGATIONS_ALLOW_TOT | C182: PR24 final water enhancement totex allowance- WINEP/NEP - investigations expenditure | D182: £m | E182: Price Review 2024 | F182: 0 | G182: 0 | H182: 3.338548384 | I182: 3.319496288 | J182: 1.491618942 | K182: 1.480255127 | L182: 0.8738700376 | M182: 10.50378878
A183: SRN | B183: PR24CA14_W_WETLAND_ALLOW_TOT | C183: PR24 final water enhancement totex allowance- WINEP/NEP - wetland creation expenditure | D183: £m | E183: Price Review 2024 | F183: 0 | G183: 0 | H183: 0 | I183: 0 | J183: 0 | K183: 0 | L183: 0 | M183: 0
A184: SRN | B184: PR24CA14_W_SUPPLY_ALLOW_TOT | C184: PR24 final water enhancement totex allowance- Supply-demand balance - supply expenditure | D184: £m | E184: Price Review 2024 | F184: 0.2282831096 | G184: 3.626841213 | H184: 40.46217259 | I184: 51.41081533 | J184: 36.46520285 | K184: 59.44888078 | L184: 44.79355129 | M184: 236.4357472
A185: SRN | B185: PR24CA14_W_SUPPLY_INTER_ALLOW_TOT | C185: PR24 final water enhancement totex allowance- Supply-demand balance - supply interconnectors expenditure | D185: £m | E185: Price Review 2024 | F185: 0 | G185: 0 | H185: 38.09357963 | I185: 46.40198376 | J185: 42.05924608 | K185: 34.06416892 | L185: 17.28028519 | M185: 177.8992636
A186: SRN | B186: PR24CA14_W_LEAKAGE_ALLOW_TOT | C186: PR24 final water enhancement totex allowance- Supply-demand balance - leakage expenditure | D186: £m | E186: Price Review 2024 | F186: 0 | G186: 0.6073722757 | H186: 5.416130218 | I186: 9.390992917 | J186: 12.2520876 | K186: 15.94703979 | L186: 17.49878977 | M186: 61.11241257
A187: SRN | B187: PR24CA14_W_DEMAND_ALLOW_TOT | C187: PR24 final water enhancement totex allowance- Supply-demand balance - demand expenditure | D187: £m | E187: Price Review 2024 | F187: 0 | G187: 0 | H187: 1.223374147 | I187: 1.224529124 | J187: 1.224676822 | K187: 1.223368781 | L187: 1.222279227 | M187: 6.118228102
A188: SRN | B188: PR24CA14_W_SRO_ALLOW_TOT | C188: PR24 final water enhancement totex allowance- Supply-demand balance - strategic resource options expenditure | D188: £m | E188: Price Review 2024 | F188: 0 | G188: 0 | H188: 63.62696835 | I188: 60.8150584 | J188: 57.61311629 | K188: 30.60971364 | L188: 25.76527492 | M188: 238.4301316
A189: SRN | B189: PR24CA14_W_METERING_ALLOW_TOT | C189: PR24 final water enhancement totex allowance- Metering - metering expenditure | D189: £m | E189: Price Review 2024 | F189: 0 | G189: 5.021632554 | H189: 26.61085891 | I189: 12.50126099 | J189: 12.42024232 | K189: 12.32561941 | L189: 12.24239181 | M189: 81.122006
A190: SRN | B190: PR24CA14_W_TOC_ALLOW_TOT | C190: PR24 final water enhancement totex allowance- water quality improvements - taste, odour and colour expenditure | D190: £m | E190: Price Review 2024 | F190: 0 | G190: 0 | H190: 0 | I190: 0 | J190: 0 | K190: 0 | L190: 0 | M190: 0
A191: SRN | B191: PR24CA14_W_RWD_ALLOW_TOT | C191: PR24 final water enhancement totex allowance- water quality improvements - raw water deterioration expenditure | D191: £m | E191: Price Review 2024 | F191: 0 | G191: 0 | H191: 5.204779714 | I191: 28.38440183 | J191: 28.27376335 | K191: 19.06811906 | L191: 3.826414768 | M191: 84.75747872
A192: SRN | B192: PR24CA14_W_LEAD_ALLOW_TOT | C192: PR24 final water enhancement totex allowance- water quality improvements - lead expenditure | D192: £m | E192: Price Review 2024 | F192: 0 | G192: 0 | H192: 2.644668573 | I192: 2.664075539 | J192: 2.994708571 | K192: 3.289929921 | L192: 3.267714976 | M192: 14.86109758
A193: SRN | B193: PR24CA14_W_RESILIENCE_INTER_ALLOW_TOT | C193: PR24 final water enhancement totex allowance- resilience interconnectors expenditure | D193: £m | E193: Price Review 2024 | F193: 0 | G193: 0 | H193: 0 | I193: 0 | J193: 0 | K193: 0 | L193: 0 | M193: 0
A194: SRN | B194: PR24CA14_W_RESILIENCE_ALLOW_TOT | C194: PR24 final water enhancement totex allowance- resilience expenditure | D194: £m | E194: Price Review 2024 | F194: 0 | G194: 21.87304154 | H194: 27.99971051 | I194: 26.18395446 | J194: 15.14967466 | K194: 16.3943922 | L194: 5.880413113 | M194: 113.4811865
A195: SRN | B195: PR24CA14_W_SEMD_ALLOW_TOT | C195: PR24 final water enhancement totex allowance- security SEMD expenditure | D195: £m | E195: Price Review 2024 | F195: 0 | G195: 0 | H195: 14.91931406 | I195: 19.07250944 | J195: 8.421734917 | K195: 0.2697634017 | L195: 0.2679418494 | M195: 42.95126367
A196: SRN | B196: PR24CA14_W_CYBER_ALLOW_TOT | C196: PR24 final water enhancement totex allowance- security cyber expenditure | D196: £m | E196: Price Review 2024 | F196: 0 | G196: 0 | H196: 11.48326073 | I196: 15.22457359 | J196: 21.93158805 | K196: 21.76450349 | L196: 21.61754071 | M196: 92.02146656
A197: SRN | B197: PR24CA14_W_RESERVOIR_SAFETY_ALLOW_TOT | C197: PR24 final water enhancement totex allowance- reservoir safety expenditure | D197: £m | E197: Price Review 2024 | F197: 0 | G197: 0 | H197: 4.566801856 | I197: 9.688764017 | J197: 9.85905006 | K197: 1.569071642 | L197: 0 | M197: 25.68368758
A198: SRN | B198: PR24CA14_W_NET_ZERO_ALLOW_TOT | C198: PR24 final water enhancement totex allowance- Greenhouse gas reduction (net zero) expenditure | D198: £m | E198: Price Review 2024 | F198: 0 | G198: 0 | H198: 0 | I198: 0 | J198: 0 | K198: 0 | L198: 0 | M198: =SUM(F198:L198) -> 0
A199: SRN | B199: PR24CA14_W_FREEFORM_ALLOW_TOT | C199: PR24 final water enhancement totex allowance- freeform line expenditure | D199: £m | E199: Price Review 2024 | F199: 0 | G199: 0 | H199: 17.54546237 | I199: 27.68893814 | J199: 17.00842916 | K199: 18.12864429 | L199: 19.02152604 | M199: 99.393
A200: SRN | B200: PR24CA103_W_WINEPCARRYOVER_ALLOW_TOT | C200: PR24 final water enhancement totex allowance- WINEP carryover expenditure | D200: £m | E200: Price Review 2024 | F200: 0 | G200: 0 | H200: 0 | I200: 0 | J200: 0 | K200: 0 | L200: 0 | M200: 0
A201: TMS | B201: PR24CA14_W_TOTAL_ENHANCEMENT_ALLOW_TOT | C201: PR24 final water enhancement totex allowance- total enhancement expenditure | D201: £m | E201: Price Review 2024 | F201: 0 | G201: 0 | H201: 406.3022162 | I201: 462.3105995 | J201: 499.6301157 | K201: 500.8419314 | L201: 717.4422292 | M201: 2586.527092
... 279 more rows

Sheet DROPDOWN LISTS
A1: =RIGHT(CELL("filename", A1), LEN(CELL("filename", A1)) - SEARCH("]", CELL("filename", A1))) -> 
B3: Companies | F3: Assessment type
B5: 1 | C5: ANH | D5: WASC | F5: Shallow dive
B6: 2 | C6: HDD | D6: WASC | F6: Deep dive
B7: 3 | C7: NES | D7: WASC | F7: Modelled benchmarking
B8: 4 | C8: NWT | D8: WASC | F8: Mixed
B9: 5 | C9: SRN | D9: WASC
B10: 6 | C10: SVE | D10: WASC
B11: 7 | C11: SWB | D11: WASC
B12: 8 | C12: TMS | D12: WASC
B13: 9 | C13: WSH | D13: WASC
B14: 10 | C14: WSX | D14: WASC
B15: 11 | C15: YKY | D15: WASC
B16: 12 | C16: AFW | D16: WOC
B17: 13 | C17: BRL | D17: WOC
B18: 14 | C18: PRT | D18: WOC
B19: 15 | C19: SES | D19: WOC
B20: 16 | C20: SEW | D20: WOC
B21: 17 | C21: SSC | D21: WOC
B24: Analysis decisions
B26: Need - reject / fail
B27: Need - accept / pass
B28: Need - reallocate to base
B29: Need - apply challenge
B30: Best value - fund preferred plan
B31: Best value - fund least cost plan
